{"text_format":"1","workbook":"xlsx","n_sheets":17,"sheets":["Dt","Datos_Generales","Resumen","Descripción","Objetivos","Metodología","Estado_del_Arte","Marco_Teorico","Cronograma","PD","Integrantes","Presupuesto","Grupo","Impactos","Biblografia","Imagenes","Normas"],"not_rendered":{"charts":0,"images":2,"macros":0,"external_links":0,"defined_names":53,"comments":14,"pivot_tables":0},"unopened":[],"bounds":{"document_bytes":16777216,"sheet_cells":100000,"rows_first":2000,"rows_last":500,"rows_between":2000,"halvings":0,"cell_chars":16384,"cell_head_chars":4096},"cells_cut":0,"cells_raw":0,"read":"whole","date_system":"1900"}

{"sheet":"Dt","index":0,"n_rows":334,"n_cols":71,"rows_kept":334,"cut":false,"hidden":true,"merged":[]}
[null,"No ","Min Pts","Max Pts","Valor en Millones","Abreviatura","Clasificación","Tipo de Entidad","Tipo 2","SIoNo","Convocatoria","IDPRY","Tiempo","Max Presu","Tipo de Impacto","SEDES","Tipo de Proyecto:","Tipos de Productos ","Facultad","Nivel Estudios","Vinculo con la UMNG","FuncionProyecto","Tipo De Impacto","NBC","ID NBC",null,null,null,null,null,null,null,null,null,null,null,null,null,null,null,null,null,"http://scienti.colciencias.gov.co:8080/gruplac/jsp/visualiza/visualizagr.jsp?nro=",null,null,null,null,null,null,null,null,null,null,null,null,null,null,null,null,null,"Ap"]
[null,1,20,39.9,25,"Articulo Q1","A1","Institución Pública","Centro de investigacion ","Si","Proyecto de Iniciación Cientifica PIC","PIC",5,1,"Ambiental","Bogotá","Investigación Básica","Generación ","Ciencias Básicas y Aplicadas","Técnico ","Doc. Carrera TC","Investigador Principal","Ambiental","Programas y certificaciones básicas",11,null,null,null,null,null,null,null,null,null,null,null,null,null,null,null,null,null,null,null,null,"BB",null,{"$f":"MIN(BD3:BD298)","v":4},{"$f":"MAX(BD3:BD298)","v":298},null,null,null,null,null,null,null,null,null,null,"Facultades","Rutas","Mins","Maxs",null,null,null,null,null,null,"Clave","VICEINUMNG2014"]
[null,2,40,59.9,50,"Articulo Q2","B","Institución Privada","Centro de desarrollo tecnológico","No","Proyecto de Investigación Científica","INV",12,60,"Salud Humana","Campus Nueva Granada","Investigación Aplicada","Fortalecimiento","Derecho","Pregrado","Doc. Carrera MT","Coinvestigador ","Competividad","Alfabetización y aritmética elemental",21,null,null,null,null,null,null,null,null,null,null,null,null,null,null,"Hoja","FAC","Grupo","COD","Clas","Link","Lineas","Fila Grupo","Min","Max","FAC",null,null,"COD","Linea (Act: 13 Sep 2022)","Cel","Fila","E:Gp",null,null,"CIAS",{"$f":"\"DT!\"&$BI$1&$BJ3&\":\"&$BI$1&$BK3","v":"DT!Ap4:Ap20"},{"$f":"MINA(IF($BH3=$AX$3:$AX$80,$AU$3:$AU$80))","v":4},{"$f":"MAXA(IF($BH3=$AX$3:$AX$80,$AU$3:$AU$80))","v":20}]
[null,3,60,79.900000000000006,75,"Articulo A1","C","Sector Defensa",null,null,"Proyecto de Alto Impacto","IMP",24,200,"Seres Vivos",null,"Desarrollo Tecnológico o Experimental\n","Apropiacion","Estudios a Distancia ","Posgrado","Doc. Ocasional","Asistente Investigación","Económico","Competencias personales y desarrollo",31,null,null,null,null,null,null,null,null,null,null,null,null,1,{"$f":"COUNTIF($AN$4:$AN$75,AL4)","v":1},1,"CIAS","Fitoplasmas y Virus","COL0028687","B","https://scienti.minciencias.gov.co/gruplac/jsp/visualiza/visualizagr.jsp?nro=00000000008436",{"$f":"$AT$2&AV4&\":\"&$AT$2&AW4","v":"BB256:BB257"},{"$f":"ROW()","v":4},{"$f":"MINA(IF(AQ4=$BA$4:$BA$419,$BD$4:$BD$419))","v":256},{"$f":"MAXA(IF(AQ4=$BA$4:$BA$419,$BD$4:$BD$419))","v":257},{"$f":"AO4","v":"CIAS"},null,null,"COL0178619","Modelos de simulación",{"$f":"COUNTIF(BA$4:BA4,BA4)","v":1},{"$f":"ROW()","v":4},{"$f":"COUNTIF($AQ$3:$AQ$84,BA4)","v":1},null,null,"DER","DT!Ap21:Ap23",{"$f":"MINA(IF($BH4=$AX$3:$AX$80,$AU$3:$AU$80))","v":21},{"$f":"MAXA(IF($BH4=$AX$3:$AX$80,$AU$3:$AU$80))","v":23}]
[null,4,80,199.9,100,"Articulo A2","D",null,null,null,null,null,null,null,"Económico ",null,"No Aplica",null,"Ciencias Económicas ","Tecnólogia","Estudiante","Joven Investigador","Productividad","Ciencias de la educación",111,null,null,null,null,null,null,null,null,null,null,null,null,2,1,2,"CIAS","Grupo de investigación en Biodiversidad y ecología de abejas silvestres","COL0031959","B","https://scienti.minciencias.gov.co/gruplac/jsp/visualiza/visualizagr.jsp?nro=00000000001366","BB109:BB113",5,{"$f":"MINA(IF(AQ5=$BA$4:$BA$419,$BD$4:$BD$419))","v":109},{"$f":"MAXA(IF(AQ5=$BA$4:$BA$419,$BD$4:$BD$419))","v":113},"CIAS",null,null,"COL0178619","Bioinnovación y educación",{"$f":"COUNTIF(BA$4:BA5,BA5)","v":2},{"$f":"ROW()","v":5},1,null,null,"DIS","DT!Ap24:Ap30",{"$f":"MINA(IF($BH5=$AX$3:$AX$80,$AU$3:$AU$80))","v":24},{"$f":"MAXA(IF($BH5=$AX$3:$AX$80,$AU$3:$AU$80))","v":30}]
[null,5,200,1000,{"$f":"125*2","v":250},"Articulo B","Reconocido",null,null,null,null,null,null,null,"Social",null,null,null,"Educación y Humanidades","Especialización","OPS - Prestación Servicios","Estudiante","Social","Formación para docentes de educación pre-primaría",112,null,null,null,null,null,null,null,null,null,null,null,null,3,1,3,"CIAS","MATRIX","COL0039321","B","https://scienti.minciencias.gov.co/gruplac/jsp/visualiza/visualizagr.jsp?nro=00000000002208","BB278:BB282",6,{"$f":"MINA(IF(AQ6=$BA$4:$BA$419,$BD$4:$BD$419))","v":278},{"$f":"MAXA(IF(AQ6=$BA$4:$BA$419,$BD$4:$BD$419))","v":282},"CIAS",null,null,"COL0178619","Biología de poblaciones y evolutiva de plantas, animales y microorganismos",{"$f":"COUNTIF(BA$4:BA6,BA6)","v":3},{"$f":"ROW()","v":6},1,null,null,"ECO","DT!Ap31:Ap34",{"$f":"MINA(IF($BH6=$AX$3:$AX$80,$AU$3:$AU$80))","v":31},{"$f":"MAXA(IF($BH6=$AX$3:$AX$80,$AU$3:$AU$80))","v":34}]
[null,6,null,null,null,"Articulo C",null,null,null,null,null,null,null,null,"Otros",null,null,null,"Ingeniería ","Maestria","Externo a la UMNG","Técnico","Institucional","Formación para docentes sin asignatura de especialización",113,null,null,null,null,null,null,null,null,null,null,null,null,4,1,4,"CIAS","Control Biológico UMNG","COL0032278","A","https://scienti.minciencias.gov.co/gruplac/jsp/visualiza/visualizagr.jsp?nro=00000000001399","BB302:BB304",7,{"$f":"MINA(IF(AQ7=$BA$4:$BA$419,$BD$4:$BD$419))","v":302},{"$f":"MAXA(IF(AQ7=$BA$4:$BA$419,$BD$4:$BD$419))","v":304},"CIAS",null,null,"COL0178619","Ecofisiología vegetal, animal y microbiana",{"$f":"COUNTIF(BA$4:BA7,BA7)","v":4},{"$f":"ROW()","v":7},1,null,null,"EES","DT!Ap35:Ap36",{"$f":"MINA(IF($BH7=$AX$3:$AX$80,$AU$3:$AU$80))","v":35},{"$f":"MAXA(IF($BH7=$AX$3:$AX$80,$AU$3:$AU$80))","v":36}]
[null,7,null,null,null,"Libro Completo",null,null,null,null,null,null,null,null,null,null,null,null,"Medicina y Ciencias de la Salud","Doctorado",null,"Investigador Principal","Areas de Salud","Formación para docentes con asignatura de especialización",114,null,null,null,null,null,null,null,null,null,null,null,null,5,1,5,"CIAS","Grupo de Micología y Fitopatologia ","COL0013719","A1","https://scienti.minciencias.gov.co/gruplac/jsp/visualiza/visualizagr.jsp?nro=00000000001127","BB154:BB158",8,{"$f":"MINA(IF(AQ8=$BA$4:$BA$419,$BD$4:$BD$419))","v":154},{"$f":"MAXA(IF(AQ8=$BA$4:$BA$419,$BD$4:$BD$419))","v":158},"CIAS",null,null,"COL0178619","Servicios ecosistèmicos",{"$f":"COUNTIF(BA$4:BA8,BA8)","v":5},{"$f":"ROW()","v":8},1,null,null,"HUM","DT!Ap37:Ap40",{"$f":"MINA(IF($BH8=$AX$3:$AX$80,$AU$3:$AU$80))","v":37},{"$f":"MAXA(IF($BH8=$AX$3:$AX$80,$AU$3:$AU$80))","v":40}]
[null,8,null,null,null,"Cap. de Libro",null,null,null,null,null,null,null,null,null,null,null,null,"Relaciones Intenacionales, Estrategia y Seguridad","Pos doctorado",null,"Coinvestigador ","Innovacion ","Técnicas audiovisuales y producción para medios de comunicación",211,null,null,null,null,null,null,null,null,null,null,null,null,6,1,6,"CIAS","Fitopatologia molecular","COL0086179","C","https://scienti.minciencias.gov.co/gruplac/jsp/visualiza/visualizagr.jsp?nro=00000000007907","BB61:BB63",9,{"$f":"MINA(IF(AQ9=$BA$4:$BA$419,$BD$4:$BD$419))","v":61},{"$f":"MAXA(IF(AQ9=$BA$4:$BA$419,$BD$4:$BD$419))","v":63},"CIAS",null,null,"COL0178619","Variabilidad y Cambio climático",{"$f":"COUNTIF(BA$4:BA9,BA9)","v":6},{"$f":"ROW()","v":9},1,null,null,"ING","DT!Ap41:Ap60",{"$f":"MINA(IF($BH9=$AX$3:$AX$80,$AU$3:$AU$80))","v":41},{"$f":"MAXA(IF($BH9=$AX$3:$AX$80,$AU$3:$AU$80))","v":60}]
[null,9,null,null,null,"Patentes",null,null,null,null,null,null,null,null,null,null,null,null,null,null,null,"Asistente Investigación","Científico ","Diseño industrial, de modas e interiores",212,null,null,null,null,null,null,null,null,null,null,null,null,7,1,7,"CIAS","Estadística, Control y Optimización","COL0136423","A","https://scienti.minciencias.gov.co/gruplac/jsp/visualiza/visualizagr.jsp?nro=00000000013845","BB70:BB74",10,{"$f":"MINA(IF(AQ10=$BA$4:$BA$419,$BD$4:$BD$419))","v":70},{"$f":"MAXA(IF(AQ10=$BA$4:$BA$419,$BD$4:$BD$419))","v":74},"CIAS",null,null,"COL0110329","Didáctica de las matemáticas universitarias",{"$f":"COUNTIF(BA$4:BA10,BA10)","v":1},{"$f":"ROW()","v":10},1,null,null,"MED","DT!Ap61:Ap80",{"$f":"MINA(IF($BH10=$AX$3:$AX$80,$AU$3:$AU$80))","v":61},{"$f":"MAXA(IF($BH10=$AX$3:$AX$80,$AU$3:$AU$80))","v":80}]
[null,10,null,null,null,"Software",null,null,"Caracteres",null,null,null,null,null,null,null,null,null,null,null,null,"Joven Investigador","Tecnológico","Bellas artes",213,null,null,null,null,null,null,null,null,null,null,null,null,8,1,8,"CIAS","Grupo de Ecotoxicología, Evolución, Medio ambiente y conservación (E = mc2)","COL0038084","C","https://scienti.minciencias.gov.co/gruplac/jsp/visualiza/visualizagr.jsp?nro=00000000002068","BB101:BB105",11,{"$f":"MINA(IF(AQ11=$BA$4:$BA$419,$BD$4:$BD$419))","v":101},{"$f":"MAXA(IF(AQ11=$BA$4:$BA$419,$BD$4:$BD$419))","v":105},"CIAS",null,null,"COL0110329","Diseño curricular y evaluación en matemáticas universitarias",{"$f":"COUNTIF(BA$4:BA11,BA11)","v":2},{"$f":"ROW()","v":11},1,null,null,"x","DT!Ap4:Ap80",{"$f":"MIN(BJ3:BJ10)","v":4},{"$f":"MAX(BK3:BK10)","v":80}]
[null,11,null,null,null,"Prototipo",null,null,999,null,null,null,null,null,null,null,null,null,null,null,null,"Asis. Graduado MG","Académico","Artesanías",214,null,null,null,null,null,null,null,null,null,null,null,null,9,1,9,"CIAS","Grupo de Investigación en Hidrobiología Aplicada (HIDROBIA)","COL0048492","C","https://scienti.minciencias.gov.co/gruplac/jsp/visualiza/visualizagr.jsp?nro=00000000005664","BB215:BB217",12,{"$f":"MINA(IF(AQ12=$BA$4:$BA$419,$BD$4:$BD$419))","v":215},{"$f":"MAXA(IF(AQ12=$BA$4:$BA$419,$BD$4:$BD$419))","v":217},"CIAS",null,null,"COL0110329","Herramientas virtuales y enseñanza de las matemáticas universitarias",{"$f":"COUNTIF(BA$4:BA12,BA12)","v":3},{"$f":"ROW()","v":12},1]
[null,12,null,null,null,"Empresa",null,null,null,null,null,null,null,null,null,null,null,null,null,null,null,"Asis. Graduado Doc","Otros","Música y artes escénicas",215,null,null,null,null,null,null,null,null,null,null,null,null,10,1,10,"CIAS","Agrobiología de especies vegetales promisorias de clima frío","COL0077814","NR","https://scienti.minciencias.gov.co/gruplac/jsp/visualiza/visualizagr.jsp?nro=00000000006560","BB334:BB334",13,{"$f":"MINA(IF(AQ13=$BA$4:$BA$419,$BD$4:$BD$419))","v":334},{"$f":"MAXA(IF(AQ13=$BA$4:$BA$419,$BD$4:$BD$419))","v":334},"CIAS",null,null,"COL0016999","Elementos de concreto y de mampostería",{"$f":"COUNTIF(BA$4:BA13,BA13)","v":1},{"$f":"ROW()","v":13},1]
[null,13,null,null,null,"OVA",null,null,null,null,null,null,null,null,null,null,null,null,null,null,null,"Estudiante",null,"Religión y Teología",221,null,null,null,null,null,null,null,null,null,null,null,null,11,1,11,"CIAS","Grupo Integrado de Investigaciones en Química Bioorgánica (InQuiBio)","COL0077707","A1","https://scienti.minciencias.gov.co/gruplac/jsp/visualiza/visualizagr.jsp?nro=00000000008358","BB89:BB97",14,{"$f":"MINA(IF(AQ14=$BA$4:$BA$419,$BD$4:$BD$419))","v":89},{"$f":"MAXA(IF(AQ14=$BA$4:$BA$419,$BD$4:$BD$419))","v":97},"CIAS",null,null,"COL0016999","Instrumentación estructural y sensórica",{"$f":"COUNTIF(BA$4:BA14,BA14)","v":2},{"$f":"ROW()","v":14},1]
[null,14,null,null,null,"AVA",null,null,"Clave",0,"Productos resultados de actividades de Apropiación Social del Conocimiento y Divulgación Pública de la Cienci",117,null,152,null,null,null,"Produtos",null,null,null,"Técnico",null,"Historia y arqueología",222,null,null,null,null,null,null,null,null,null,null,null,null,12,1,12,"CIAS","Grupo de investigación en química ambiental y tecnologías limpias - QUATELI","COL0110436","C","https://scienti.minciencias.gov.co/gruplac/jsp/visualiza/visualizagr.jsp?nro=00000000011141","BB244:BB247",15,{"$f":"MINA(IF(AQ15=$BA$4:$BA$419,$BD$4:$BD$419))","v":244},{"$f":"MAXA(IF(AQ15=$BA$4:$BA$419,$BD$4:$BD$419))","v":247},"CIAS",null,null,"COL0016999","Materiales alternativos para construcción",{"$f":"COUNTIF(BA$4:BA15,BA15)","v":3},{"$f":"ROW()","v":15},1]
[null,15,null,null,null,"Dir. Doctorado","A","Si","Vicein1234",null,null,null,null,null,null,null,null,"Artículo Sometido",null,null,null,"Tutor ",null,"Filosofía y ética",223,null,null,null,null,null,null,null,null,null,null,null,null,13,1,13,"CIAS","ECMU (Evaluacion en Competencias y Matemáticas Universitarias)","COL0110329","C","https://scienti.minciencias.gov.co/gruplac/jsp/visualiza/visualizagr.jsp?nro=00000000011130","BB10:BB12",16,{"$f":"MINA(IF(AQ16=$BA$4:$BA$419,$BD$4:$BD$419))","v":10},{"$f":"MAXA(IF(AQ16=$BA$4:$BA$419,$BD$4:$BD$419))","v":12},"CIAS",null,null,"COL0016999","Modelación Matemática",{"$f":"COUNTIF(BA$4:BA16,BA16)","v":4},{"$f":"ROW()","v":16},1]
[null,16,null,null,null,"Dir. Maestria","A1","Si",null,1,"Procesos de apropiación social del conocimiento para el fortalecimiento o solución de asuntos de interés social con Calidad ",82,null,null,null,null,null,"Cartilla",null,null,null,"Doc. Acompañante",null,"Adquisición del lenguaje",231,null,null,null,null,null,null,null,null,null,null,null,null,14,1,14,"CIAS","Grupo de Docencia e Investigación en Física","COL0138796","NR","https://scienti.minciencias.gov.co/gruplac/jsp/visualiza/visualizagr.jsp?nro=00000000014082","BB314:BB318",17,{"$f":"MINA(IF(AQ17=$BA$4:$BA$419,$BD$4:$BD$419))","v":314},{"$f":"MAXA(IF(AQ17=$BA$4:$BA$419,$BD$4:$BD$419))","v":318},"CIAS",null,null,"COL0016999","Vulnerabilidad Sísmica",{"$f":"COUNTIF(BA$4:BA17,BA17)","v":5},{"$f":"ROW()","v":17},1]
[null,17,null,null,null,"Dir. Trab. Grado","B","Si",null,2,"Procesos de apropiación social del conocimiento para la generación de insumos de política pública y normatividad con Calidad ",82,null,null,null,null,null,"Ponencia",null,null,null,"Estudiante",null,"Literatura y lingüística",232,null,null,null,null,null,null,null,null,null,null,null,null,15,1,71,"CIAS","DIVERSITAS","COL0178619","C","https://scienti.minciencias.gov.co/gruplac/jsp/visualiza/visualizagr.jsp?nro=00000000018063","BB4:BB9",18,{"$f":"MINA(IF(AQ18=$BA$4:$BA$419,$BD$4:$BD$419))","v":4},{"$f":"MAXA(IF(AQ18=$BA$4:$BA$419,$BD$4:$BD$419))","v":9},"CIAS",null,null,"COL0068762","Ingeniería Sostenible",{"$f":"COUNTIF(BA$4:BA18,BA18)","v":1},{"$f":"ROW()","v":18},1]
[null,18,null,null,null,"Dir. PIC","C","Si",null,3,"Procesos de Apropiación social del conocimiento para el fortalecimiento de cadenas productivas con Calidad ",85,null,null,null,null,null,"Apropiacion Social",null,null,null,"Innovador Principal",null,"Economía",311,null,null,null,null,null,null,null,null,null,null,null,null,16,1,72,"CIAS","Nanofab","COL0179618","C","https://scienti.minciencias.gov.co/gruplac/jsp/visualiza/visualizagr.jsp?nro=00000000018163","BB28:BB33",19,{"$f":"MINA(IF(AQ19=$BA$4:$BA$419,$BD$4:$BD$419))","v":28},{"$f":"MAXA(IF(AQ19=$BA$4:$BA$419,$BD$4:$BD$419))","v":33},"CIAS",null,null,"COL0068762","Inteligencia artificial y procesamiento de señales",{"$f":"COUNTIF(BA$4:BA19,BA19)","v":2},{"$f":"ROW()","v":19},1]
[null,19,null,null,null,"Cond. Doctorado","D","Si",null,4,"Procesos de apropiación social del conocimiento resultado del trabajo conjunto entre un Centro de Ciencia y un grupo de investigación con Calidad ",86,null,null,null,null,null,"Innovación en procedimientos",null,null,null,"Coinnovador",null,"Ciencias políticas y educación cívica",312,null,null,null,null,null,null,null,null,null,null,null,null,58,1,55,"CIAS","ICAAO: Inteligencia Computacional, Aprendizaje Automático y Optimización","COL0169362","C","https://scienti.minciencias.gov.co/gruplac/jsp/visualiza/visualizagr.jsp?nro=00000000017140","BB285:BB288",20,{"$f":"MINA(IF(AQ20=$BA$4:$BA$419,$BD$4:$BD$419))","v":285},{"$f":"MAXA(IF(AQ20=$BA$4:$BA$419,$BD$4:$BD$419))","v":288},{"$f":"AO20","v":"CIAS"},null,null,"COL0068762","Tecnologías de la información y las comunicaciones (TIC)",{"$f":"COUNTIF(BA$4:BA20,BA20)","v":3},{"$f":"ROW()","v":20},1]
[null,20,null,null,null,"Cond. Maestria","N","No",null,5,"Eventos científicos con componente de apropiación con Calidad ",87,null,null,null,null,null,null,null,null,null,"Asistente",null,"Psicología",313,null,null,null,null,null,null,null,null,null,null,null,null,17,1,15,"DER","Grupo de derecho público ","COL0028918","B","https://scienti.minciencias.gov.co/gruplac/jsp/visualiza/visualizagr.jsp?nro=00000000001079","BB165:BB169",21,{"$f":"MINA(IF(AQ21=$BA$4:$BA$419,$BD$4:$BD$419))","v":165},{"$f":"MAXA(IF(AQ21=$BA$4:$BA$419,$BD$4:$BD$419))","v":169},"DER",null,null,"COL0143731","Electrónica y Telecomunicaciones en Salud",{"$f":"COUNTIF(BA$4:BA21,BA21)","v":1},{"$f":"ROW()","v":21},1]
[null,21,null,null,null,"Jov. Investigador","NR","No",null,6,"Participaciones en redes de conocimiento con Calidad ",87,null,null,null,null,null,null,null,null,null,"Emprendedor Principal ",null,"Sociología y estudios culturales",314,null,null,null,null,null,null,null,null,null,null,null,null,18,1,16,"DER","Grupo de Derecho Privado","COL0128047","C","https://scienti.minciencias.gov.co/gruplac/jsp/visualiza/visualizagr.jsp?nro=00000000012964","BB24:BB25",22,{"$f":"MINA(IF(AQ22=$BA$4:$BA$419,$BD$4:$BD$419))","v":24},{"$f":"MAXA(IF(AQ22=$BA$4:$BA$419,$BD$4:$BD$419))","v":25},"DER",null,null,"COL0143731","Espectro Radioeléctrico",{"$f":"COUNTIF(BA$4:BA22,BA22)","v":2},{"$f":"ROW()","v":22},1]
[null,22,null,null,null,"Ponencia Inter.",null,null,null,7,"Talleres de Creación con Calidad ",88,null,null,null,"ODS","Descripcion ODS",null,null,null,null,"Coemprendedor",null,"Periodismo y reportajes",321,null,null,null,null,null,null,null,null,null,null,null,null,19,1,17,"DER","Red de estudios sociojurídicos comparados y políticas públicas","COL0142449","B","https://scienti.minciencias.gov.co/gruplac/jsp/visualiza/visualizagr.jsp?nro=00000000014449","BB176:BB181",23,{"$f":"MINA(IF(AQ23=$BA$4:$BA$419,$BD$4:$BD$419))","v":176},{"$f":"MAXA(IF(AQ23=$BA$4:$BA$419,$BD$4:$BD$419))","v":181},"DER",null,null,"COL0143731","Sistemas virtuales de comunicación",{"$f":"COUNTIF(BA$4:BA23,BA23)","v":3},{"$f":"ROW()","v":23},1]
[null,23,null,null,null,"Ponencia Nac.",null,null,null,8,"Eventos artísticos, de arquitectura o de diseño con componentes de apropiación con Calidad ",88,null,null,null,1,"Fin de la pobreza",null,null,null,null,"Asistente",null,"Bibliotecología, información y archivología",322,null,null,null,null,null,null,null,null,null,null,null,null,20,1,18,"DIS","PROPPIO: Procesos organizacionales, programaticos y políticos para la promoción del desarrollo","COL0062704","NR","https://scienti.minciencias.gov.co/gruplac/jsp/visualiza/visualizagr.jsp?nro=00000000006477","BB330:BB333",24,{"$f":"MINA(IF(AQ24=$BA$4:$BA$419,$BD$4:$BD$419))","v":330},{"$f":"MAXA(IF(AQ24=$BA$4:$BA$419,$BD$4:$BD$419))","v":333},"DIS",null,null,"COL0128047","Derecho de la responsabilidad y de seguros",{"$f":"COUNTIF(BA$4:BA24,BA24)","v":1},{"$f":"ROW()","v":24},1]
[null,24,null,null,null,"Ponencia Insti.",null,null,null,9,"Documentos de trabajo (working papers) con Calidad ",88,null,null,null,2,"Hambre Cero ",null,null,null,null,null,null,"Contabilidad e impuestos",411,null,null,null,null,null,null,null,null,null,null,null,null,21,1,19,"DIS","INCONDIS","COL0127649","C","https://scienti.minciencias.gov.co/gruplac/jsp/visualiza/visualizagr.jsp?nro=00000000012918","BB134:BB134",25,{"$f":"MINA(IF(AQ25=$BA$4:$BA$419,$BD$4:$BD$419))","v":134},{"$f":"MAXA(IF(AQ25=$BA$4:$BA$419,$BD$4:$BD$419))","v":134},"DIS",null,null,"COL0128047","Derecho económico y de los negocios.",{"$f":"COUNTIF(BA$4:BA25,BA25)","v":2},{"$f":"ROW()","v":25},1]
[null,25,null,null,null,"Mat. Divulgativo",null,null,null,10,"Nuevas secuencias genéticas con Calidad ",89,null,null,null,3,"Salud y bienestar","Manual ",null,null,null,null,null,"Gestión financiera, administración bancaria y seguros",412,null,null,null,null,null,null,null,null,null,null,null,null,22,1,20,"DIS","\"PYDES\" Pedagogía y didáctica en la educación superior","COL0018448","C","https://scienti.minciencias.gov.co/gruplac/jsp/visualiza/visualizagr.jsp?nro=00000000000929","BB241:BB243",26,{"$f":"MINA(IF(AQ26=$BA$4:$BA$419,$BD$4:$BD$419))","v":241},{"$f":"MAXA(IF(AQ26=$BA$4:$BA$419,$BD$4:$BD$419))","v":243},"DIS",null,null,"COL0050294","Economía política del conflicto",{"$f":"COUNTIF(BA$4:BA26,BA26)","v":1},{"$f":"ROW()","v":26},1]
[null,26,null,null,null,"Org. Evento Inter.",null,null,null,11,"Ediciones de revista o libro de divulgación científica con Calidad ",89,null,null,null,4,"Educación de calidad",null,null,null,null,null,null,"Gestión y administración",413,null,null,null,null,null,null,null,null,null,null,null,null,23,1,21,"DIS","Medios, Mediaciones y Procesos en Educación a Distancia","COL0067504","C","https://scienti.minciencias.gov.co/gruplac/jsp/visualiza/visualizagr.jsp?nro=00000000004308","BB54:BB59",27,{"$f":"MINA(IF(AQ27=$BA$4:$BA$419,$BD$4:$BD$419))","v":54},{"$f":"MAXA(IF(AQ27=$BA$4:$BA$419,$BD$4:$BD$419))","v":59},"DIS",null,null,"COL0050294","Economía, Gestión y Medio Ambiente",{"$f":"COUNTIF(BA$4:BA27,BA27)","v":2},{"$f":"ROW()","v":27},1]
[null,27,null,null,null,"Org. Evento Nac.",null,null,null,12,"Informes finales de investigación con Calidad ",89,null,null,null,5,"Igualdad de genero",null,null,null,null,null,null,"Mercadotecnia y publicidad",414,null,null,null,null,null,null,null,null,null,null,null,null,24,1,22,"DIS","PIREO \"Procesos de Integración, Regionalización y Estructuras Organizacionales\"","COL0066229","B","https://scienti.minciencias.gov.co/gruplac/jsp/visualiza/visualizagr.jsp?nro=00000000004242","BB289:BB291",28,{"$f":"MINA(IF(AQ28=$BA$4:$BA$419,$BD$4:$BD$419))","v":289},{"$f":"MAXA(IF(AQ28=$BA$4:$BA$419,$BD$4:$BD$419))","v":291},"DIS",null,null,"COL0179618","Biochips",{"$f":"COUNTIF(BA$4:BA28,BA28)","v":1},{"$f":"ROW()","v":28},1]
[null,28,null,null,null,"Org. Evento Isnti.",null,null,null,13,"Informes técnicos con Calidad ",89,null,null,null,6,"Agua limpia y saneamiento",null,null,null,null,null,null,"Secretariado y trabajo de oficina",415,null,null,null,null,null,null,null,null,null,null,null,null,25,1,23,"DIS","Modelos de simulación ICDIST","COL0069296","C","https://scienti.minciencias.gov.co/gruplac/jsp/visualiza/visualizagr.jsp?nro=00000000004423","BB60:BB60",29,{"$f":"MINA(IF(AQ29=$BA$4:$BA$419,$BD$4:$BD$419))","v":60},{"$f":"MAXA(IF(AQ29=$BA$4:$BA$419,$BD$4:$BD$419))","v":60},"DIS",null,null,"COL0179618","Diseño y fabricación de sistemas para producción de nanomateriales",{"$f":"COUNTIF(BA$4:BA29,BA29)","v":2},{"$f":"ROW()","v":29},1]
[null,29,null,null,null,"Premios Inter.",null,null,null,14,"Consultorías científico",90,null,null,null,7,"Energía asequible y no contaminante",null,null,null,null,null,null,"Ventas al por mayor y al por menor",416,null,null,null,null,null,null,null,null,null,null,null,null,26,1,24,"DIS","INAMPE","COL0142331","C","https://scienti.minciencias.gov.co/gruplac/jsp/visualiza/visualizagr.jsp?nro=00000000014438","BB125:BB127",30,{"$f":"MINA(IF(AQ30=$BA$4:$BA$419,$BD$4:$BD$419))","v":125},{"$f":"MAXA(IF(AQ30=$BA$4:$BA$419,$BD$4:$BD$419))","v":127},"DIS",null,null,"COL0179618","Holografía digital",{"$f":"COUNTIF(BA$4:BA30,BA30)","v":3},{"$f":"ROW()","v":30},1]
[null,30,null,null,null,"Premios Nac.",null,null,null,15,"Consultorías en arte, arquitectura y diseño con Calidad ",90,null,null,null,8,"Trabajo decente y crecimiento económico",null,null,null,null,null,null,"Competencias laborales",417,null,null,null,null,null,null,null,null,null,null,null,null,27,1,25,"ECO","Grupo de Estudios en Ciencias Económicas - CIE","COL0050294","B","https://scienti.minciencias.gov.co/gruplac/jsp/visualiza/visualizagr.jsp?nro=00000000003322","BB26:BB27",31,{"$f":"MINA(IF(AQ31=$BA$4:$BA$419,$BD$4:$BD$419))","v":26},{"$f":"MAXA(IF(AQ31=$BA$4:$BA$419,$BD$4:$BD$419))","v":27},"ECO",null,null,"COL0179618","Nanofotónica, sensórica y nanotecnología",{"$f":"COUNTIF(BA$4:BA31,BA31)","v":4},{"$f":"ROW()","v":31},1]
[null,31,null,null,null,"Proyecto Coop. Nac.",null,null,null,16,"Publicaciones editoriales no especializadas con Calidad ",93,null,null,null,9,"Industria, innovación e infraestructura",null,null,null,null,null,null,"Derecho",421,null,null,null,null,null,null,null,null,null,null,null,null,28,1,26,"ECO","Grupo de estudios sobre desigualdades sociales","COL0027367","C","https://scienti.minciencias.gov.co/gruplac/jsp/visualiza/visualizagr.jsp?nro=00000000000855","BB98:BB100",32,{"$f":"MINA(IF(AQ32=$BA$4:$BA$419,$BD$4:$BD$419))","v":98},{"$f":"MAXA(IF(AQ32=$BA$4:$BA$419,$BD$4:$BD$419))","v":100},"ECO",null,null,"COL0179618","Termo-electrónica",{"$f":"COUNTIF(BA$4:BA32,BA32)","v":5},{"$f":"ROW()","v":32},1]
[null,32,null,null,null,"Proyecto Coop. Inter.",null,null,null,17,"Producciones de contenido digital con Calidad ",93,null,null,null,10,"Reducción de las desigualdades",null,null,null,null,null,null,"Biología",511,null,null,null,null,null,null,null,null,null,null,null,null,29,1,27,"ECO","Grupo de estudios contemporáneos en contabilidad, gestión y organizaciones - GECCGO","COL0028767","A","https://scienti.minciencias.gov.co/gruplac/jsp/visualiza/visualizagr.jsp?nro=00000000001069","BB262:BB264",33,{"$f":"MINA(IF(AQ33=$BA$4:$BA$419,$BD$4:$BD$419))","v":262},{"$f":"MAXA(IF(AQ33=$BA$4:$BA$419,$BD$4:$BD$419))","v":264},"ECO",null,null,"COL0179618","Tomografia óptica coherente",{"$f":"COUNTIF(BA$4:BA33,BA33)","v":6},{"$f":"ROW()","v":33},1]
[null,33,null,null,null,"Informe final Proy.",null,null,null,18,"Producción de estrategias y contenidos Transmedia con Calidad ",93,null,null,null,11,"Ciudades y comunidades sostenibles",null,null,null,null,null,null,"Bioquímica",512,null,null,null,null,null,null,null,null,null,null,null,null,30,1,28,"ECO","GECS (Grupo de Estudios en Educación, Contabilidad y Sociedad)","COL0117722","B","https://scienti.minciencias.gov.co/gruplac/jsp/visualiza/visualizagr.jsp?nro=00000000011887","BB248:BB250",34,{"$f":"MINA(IF(AQ34=$BA$4:$BA$419,$BD$4:$BD$419))","v":248},{"$f":"MAXA(IF(AQ34=$BA$4:$BA$419,$BD$4:$BD$419))","v":250},"ECO",null,null,"COL0116636","Desarrollo de software y hardware embarcable",{"$f":"COUNTIF(BA$4:BA34,BA34)","v":1},{"$f":"ROW()","v":34},1]
[null,34,null,null,null,"Informe estudiante",null,null,null,19,"Desarrollos Web con Calidad ",93,null,null,null,12,"Producción y consumo responsables",null,null,null,null,null,null,"Ciencias del medio ambiente",521,null,null,null,null,null,null,null,null,null,null,null,null,31,1,29,"EES","Estudios Internacionales y Políticos","COL0066768","B","https://scienti.minciencias.gov.co/gruplac/jsp/visualiza/visualizagr.jsp?nro=00000000004270","BB170:BB175",35,{"$f":"MINA(IF(AQ35=$BA$4:$BA$419,$BD$4:$BD$419))","v":170},{"$f":"MAXA(IF(AQ35=$BA$4:$BA$419,$BD$4:$BD$419))","v":175},"EES",null,null,"COL0116636","Procesamiento digital de señales e imágenes",{"$f":"COUNTIF(BA$4:BA35,BA35)","v":2},{"$f":"ROW()","v":35},1]
[null,35,null,null,null,"Cartilla",null,null,null,20,"Libros de Formación ubicados en el cuartil 2 (Q2)",94,null,null,null,13,"Acción por el clima",null,null,null,null,null,null,"Medio ambiente natural y vida silvestre",522,null,null,null,null,null,null,null,null,null,null,null,null,32,{"$f":"COUNTIF($AN$4:$AN$75,AL36)","v":1},30,"EES","Sociedad, Estrategia y Seguridad","COL0066669","C","https://scienti.minciencias.gov.co/gruplac/jsp/visualiza/visualizagr.jsp?nro=00000000004263","BB204:BB208",36,{"$f":"MINA(IF(AQ36=$BA$4:$BA$419,$BD$4:$BD$419))","v":204},{"$f":"MAXA(IF(AQ36=$BA$4:$BA$419,$BD$4:$BD$419))","v":208},"EES",null,null,"COL0116636","Producción sostenible",{"$f":"COUNTIF(BA$4:BA36,BA36)","v":3},{"$f":"ROW()","v":36},1]
[null,36,null,null,null,null,null,null,null,21,"Boletines divulgativos de resultado de investigación con Calidad ",94,null,null,null,14,"Vida submarina",null,null,null,null,null,null,"Química",531,null,null,null,null,null,null,null,null,null,null,null,null,33,1,31,"HUM","LIDERAZGO","COL0015722","A1","https://scienti.minciencias.gov.co/gruplac/jsp/visualiza/visualizagr.jsp?nro=00000000000744","BB42:BB43",37,{"$f":"MINA(IF(AQ37=$BA$4:$BA$419,$BD$4:$BD$419))","v":42},{"$f":"MAXA(IF(AQ37=$BA$4:$BA$419,$BD$4:$BD$419))","v":43},"HUM",null,null,"COL0116636","Robótica móvil",{"$f":"COUNTIF(BA$4:BA37,BA37)","v":4},{"$f":"ROW()","v":37},1]
[null,37,null,null,null,null,null,null,null,22,"Libros de Divulgación de investigación y/o Compilación de Divulgación con Calidad ",94,null,null,null,15,"Vida de ecosistemas terrestres",null,null,null,null,null,null,"Ciencias de la tierra",532,null,null,null,null,null,null,null,null,null,null,null,null,34,1,32,"HUM","HUMANITAS","COL0101099","A","https://scienti.minciencias.gov.co/gruplac/jsp/visualiza/visualizagr.jsp?nro=00000000010165","BB198:BB201",38,{"$f":"MINA(IF(AQ38=$BA$4:$BA$419,$BD$4:$BD$419))","v":198},{"$f":"MAXA(IF(AQ38=$BA$4:$BA$419,$BD$4:$BD$419))","v":201},"HUM",null,null,"COL0116636","Sistemas de interacción humano-máquina con actuación convencional y no convencional",{"$f":"COUNTIF(BA$4:BA38,BA38)","v":5},{"$f":"ROW()","v":38},1]
[null,null,null,null,null,null,null,null,null,23,"Generaciones de Contenido con Calidad ",0,null,null,null,16,"Paz, justicia e instituciones sólidas",null,null,null,null,null,null,"Física",533,null,null,null,null,null,null,null,null,null,null,null,null,35,1,33,"HUM","Cultura y Desarrollo Humano","COL0002896","A","https://scienti.minciencias.gov.co/gruplac/jsp/visualiza/visualizagr.jsp?nro=00000000000740","BB237:BB240",39,{"$f":"MINA(IF(AQ39=$BA$4:$BA$419,$BD$4:$BD$419))","v":237},{"$f":"MAXA(IF(AQ39=$BA$4:$BA$419,$BD$4:$BD$419))","v":240},"HUM",null,null,"COL0194866","Bioprocesos",{"$f":"COUNTIF(BA$4:BA39,BA39)","v":1},{"$f":"ROW()","v":39},1]
[null,null,null,null,null,null,null,null,null,24,"Manuales y Guías Especializadas con Calidad ",95,null,null,null,17,"Alianzas para lograr los objetivos",null,null,null,null,null,null,"Matemáticas",541,null,null,null,null,null,null,null,null,null,null,null,null,36,1,34,"HUM","BioethicsGroup","COL0031824","A","https://scienti.minciencias.gov.co/gruplac/jsp/visualiza/visualizagr.jsp?nro=00000000001353","BB258:BB261",40,{"$f":"MINA(IF(AQ40=$BA$4:$BA$419,$BD$4:$BD$419))","v":258},{"$f":"MAXA(IF(AQ40=$BA$4:$BA$419,$BD$4:$BD$419))","v":261},"HUM",null,null,"COL0194866","Ingeniería de procesos, modelación y optimización de instalaciones para la recuperación de recursos del agua",{"$f":"COUNTIF(BA$4:BA40,BA40)","v":2},{"$f":"ROW()","v":40},1]
[null,null,null,null,null,null,null,null,null,null,null,null,null,null,null,null,null,null,null,null,null,null,null,"Estadística",542,null,null,null,null,null,null,null,null,null,null,null,null,37,1,35,"ING","Grupo de Investigación en Multimedia -GIM-","COL0044859","A","https://scienti.minciencias.gov.co/gruplac/jsp/visualiza/visualizagr.jsp?nro=00000000002706","BB75:BB79",41,{"$f":"MINA(IF(AQ41=$BA$4:$BA$419,$BD$4:$BD$419))","v":75},{"$f":"MAXA(IF(AQ41=$BA$4:$BA$419,$BD$4:$BD$419))","v":79},"ING",null,null,"COL0194866","Química del agua, microcontaminantes emergentes y prioritarios",{"$f":"COUNTIF(BA$4:BA41,BA41)","v":3},{"$f":"ROW()","v":41},1]
[null,null,null,null,null,null,null,null,null,null,"https://minciencias.gov.co/sites/default/files/upload/convocatoria/anexo_1_-_documento_conceptual_2021.pdf",null,null,null,null,null,null,null,null,null,null,null,null,"Uso de computadores",611,null,null,null,null,null,null,null,null,null,null,null,null,38,1,36,"ING","GEOTECNIA","COL0005439","A","https://scienti.minciencias.gov.co/gruplac/jsp/visualiza/visualizagr.jsp?nro=00000000000739","BB184:BB188",42,{"$f":"MINA(IF(AQ42=$BA$4:$BA$419,$BD$4:$BD$419))","v":184},{"$f":"MAXA(IF(AQ42=$BA$4:$BA$419,$BD$4:$BD$419))","v":188},"ING",null,null,"COL0015722","Bioética, biopolítica y biojurídica",{"$f":"COUNTIF(BA$4:BA42,BA42)","v":1},{"$f":"ROW()","v":42},1]
[null,null,null,null,null,null,null,null,null,null,null,null,null,null,null,null,null,null,null,null,null,null,null,"Diseño y administración de redes y bases de datos",612,null,null,null,null,null,null,null,null,null,null,null,null,39,1,37,"ING","TIGUM: Grupo de Investigacion en Telemedicina Universidad Militar","COL0052181","A","https://scienti.minciencias.gov.co/gruplac/jsp/visualiza/visualizagr.jsp?nro=00000000003508","BB83:BB88",43,{"$f":"MINA(IF(AQ43=$BA$4:$BA$419,$BD$4:$BD$419))","v":83},{"$f":"MAXA(IF(AQ43=$BA$4:$BA$419,$BD$4:$BD$419))","v":88},"ING",null,null,"COL0015722","Educación y tecnologías",{"$f":"COUNTIF(BA$4:BA43,BA43)","v":2},{"$f":"ROW()","v":43},1]
[null,null,null,null,null,null,null,null,null,null,null,null,null,null,null,null,null,null,null,null,null,null,null,"Desarrollo y análisis de software y aplicaciones",613,null,null,null,null,null,null,null,null,null,null,null,null,40,1,38,"ING","VOLTA - Grupo de Materiales, Corrosión, Degradación y Protección (GMCDP) ","COL0065804","A1","https://scienti.minciencias.gov.co/gruplac/jsp/visualiza/visualizagr.jsp?nro=00000000004193","BB114:BB116",44,{"$f":"MINA(IF(AQ44=$BA$4:$BA$419,$BD$4:$BD$419))","v":114},{"$f":"MAXA(IF(AQ44=$BA$4:$BA$419,$BD$4:$BD$419))","v":116},"ING",null,null,"COL0129689","Cirugía Ortognática y Distracción Osteogénica",{"$f":"COUNTIF(BA$4:BA44,BA44)","v":1},{"$f":"ROW()","v":44},1]
[null,null,null,null,null,null,null,null,null,null,null,null,null,null,null,null,null,null,null,null,null,null,null,"Ingeniería y procesos químicos",711,null,null,null,null,null,null,null,null,null,null,null,null,41,1,39,"ING","PRODUCCION, INNOVACION Y TECNOLOGIA","COL0049999","B","https://scienti.minciencias.gov.co/gruplac/jsp/visualiza/visualizagr.jsp?nro=00000000003290","BB64:BB69",45,{"$f":"MINA(IF(AQ45=$BA$4:$BA$419,$BD$4:$BD$419))","v":64},{"$f":"MAXA(IF(AQ45=$BA$4:$BA$419,$BD$4:$BD$419))","v":69},"ING",null,null,"COL0129689","Implantología y Cirugía Reconstructiva",{"$f":"COUNTIF(BA$4:BA45,BA45)","v":2},{"$f":"ROW()","v":45},1]
[null,null,null,null,null,null,null,null,null,null,null,null,null,null,null,null,null,null,null,null,null,null,null,"Tecnología de protección del medio ambiente",712,null,null,null,null,null,null,null,null,null,null,null,null,42,1,40,"ING","GIDAM","COL0116636","B","https://scienti.minciencias.gov.co/gruplac/jsp/visualiza/visualizagr.jsp?nro=00000000011773","BB34:BB38",46,{"$f":"MINA(IF(AQ46=$BA$4:$BA$419,$BD$4:$BD$419))","v":34},{"$f":"MAXA(IF(AQ46=$BA$4:$BA$419,$BD$4:$BD$419))","v":38},"ING",null,null,"COL0129689","Infecciones, Patología y Cirugía Dentoalveolar",{"$f":"COUNTIF(BA$4:BA46,BA46)","v":3},{"$f":"ROW()","v":46},1]
[null,null,"Elección de grupo de investigaccion",null,null,null,{"$f":"73-COUNTIF(H49:H121,0)","v":0},null,null,null,null,null,null,null,null,null,null,null,null,null,null,null,null,"Electricidad y energía",713,null,null,null,null,null,null,null,null,null,null,null,null,43,1,41,"ING","DAVINCI","COL0036025","A1","https://scienti.minciencias.gov.co/gruplac/jsp/visualiza/visualizagr.jsp?nro=00000000001843","BB117:BB120",47,{"$f":"MINA(IF(AQ47=$BA$4:$BA$419,$BD$4:$BD$419))","v":117},{"$f":"MAXA(IF(AQ47=$BA$4:$BA$419,$BD$4:$BD$419))","v":120},"ING",null,null,"COL0125134","Ayudas Auditivas Implantables",{"$f":"COUNTIF(BA$4:BA47,BA47)","v":1},{"$f":"ROW()","v":47},1]
[null,"NN","Grupo","Hoja","Auxi1",null,{"$f":"Datos_Generales!C19","v":0},"ID",null,null,null,null,null,null,null,null,null,null,null,null,null,null,null,"Electrónica y automatización",714,null,null,null,null,null,null,null,null,null,null,null,null,44,1,42,"ING","Estructuras y sísmica","COL0016999","A1","https://scienti.minciencias.gov.co/gruplac/jsp/visualiza/visualizagr.jsp?nro=00000000000737","BB13:BB17",48,{"$f":"MINA(IF(AQ48=$BA$4:$BA$419,$BD$4:$BD$419))","v":13},{"$f":"MAXA(IF(AQ48=$BA$4:$BA$419,$BD$4:$BD$419))","v":17},"ING",null,null,"COL0125134","Base de cráneo",{"$f":"COUNTIF(BA$4:BA48,BA48)","v":2},{"$f":"ROW()","v":48},1]
[null,{"$f":"IF(E49=1,SUM($E$49:E49),0)","v":0},"\"PYDES\" Pedagogía y didáctica en la educación superior",20,{"$f":"IF(IFERROR(SEARCH(GP,C49,1),0)>0,1,0)","v":0},null,{"$f":"IFERROR(VLOOKUP(ROW()-48,$B$48:$E$121,2,0),\"\")","v":""},{"$f":"IFERROR(VLOOKUP(ROW()-48,$B$48:$E$121,3,0),0)","v":0},null,null,null,null,null,null,null,null,null,null,null,null,null,null,null,"Mecánica y profesiones afines a la metalistería",715,null,null,null,null,null,null,null,null,null,null,null,null,45,1,43,"ING","INGENIERÍA, GEOMÁTICA Y EDUCACIÓN (IGE)","COL0047566","B","https://scienti.minciencias.gov.co/gruplac/jsp/visualiza/visualizagr.jsp?nro=00000000003044","BB265:BB271",49,{"$f":"MINA(IF(AQ49=$BA$4:$BA$419,$BD$4:$BD$419))","v":265},{"$f":"MAXA(IF(AQ49=$BA$4:$BA$419,$BD$4:$BD$419))","v":271},"ING",null,null,"COL0125134","Cáncer Laríngeo",{"$f":"COUNTIF(BA$4:BA49,BA49)","v":3},{"$f":"ROW()","v":49},1]
[null,0,"ACCEDER",44,0,null,"",0,null,null,null,null,null,null,null,null,null,null,null,null,null,null,null,"Vehículos, barcos y aeronaves motorizadas",716,null,null,null,null,null,null,null,null,null,null,null,null,46,1,44,"ING","ACCEDER","COL0036749","C","https://scienti.minciencias.gov.co/gruplac/jsp/visualiza/visualizagr.jsp?nro=00000000012996","BB223:BB224",50,{"$f":"MINA(IF(AQ50=$BA$4:$BA$419,$BD$4:$BD$419))","v":223},{"$f":"MAXA(IF(AQ50=$BA$4:$BA$419,$BD$4:$BD$419))","v":224},"ING",null,null,"COL0125134","Enfermedad de Meniere",{"$f":"COUNTIF(BA$4:BA50,BA50)","v":4},{"$f":"ROW()","v":50},1]
[null,0,"Agrobiología de especies vegetales promisorias de clima frío",10,0,null,"",0,null,null,null,null,null,null,null,null,null,null,null,null,null,null,null,"Procesamiento de alimentos",721,null,null,null,null,null,null,null,null,null,null,null,null,47,1,45,"ING","Agua y Energía - AyE","COL0026486","A","https://scienti.minciencias.gov.co/gruplac/jsp/visualiza/visualizagr.jsp?nro=00000000000767","BB159:BB164",51,{"$f":"MINA(IF(AQ51=$BA$4:$BA$419,$BD$4:$BD$419))","v":159},{"$f":"MAXA(IF(AQ51=$BA$4:$BA$419,$BD$4:$BD$419))","v":164},"ING",null,null,"COL0125134","Oído Crónico",{"$f":"COUNTIF(BA$4:BA51,BA51)","v":5},{"$f":"ROW()","v":51},1]
[null,0,"BioethicsGroup",34,0,null,"",0,null,null,null,null,null,null,null,null,null,null,null,null,null,null,null,"Materiales (vidrio, papel, plástico y madera)",722,null,null,null,null,null,null,null,null,null,null,null,null,48,1,46,"ING","GISSIC: Grupo de Investigacion en Seguridad y Sistemas de Comunicaciones","COL0052163","A","https://scienti.minciencias.gov.co/gruplac/jsp/visualiza/visualizagr.jsp?nro=00000000003506","BB232:BB236",52,{"$f":"MINA(IF(AQ52=$BA$4:$BA$419,$BD$4:$BD$419))","v":232},{"$f":"MAXA(IF(AQ52=$BA$4:$BA$419,$BD$4:$BD$419))","v":236},"ING",null,null,"COL0125134","Rinosinusitis Crónica",{"$f":"COUNTIF(BA$4:BA52,BA52)","v":6},{"$f":"ROW()","v":52},1]
[null,0,"BioGenEtica & BioDerecho",67,0,null,"",0,null,null,null,null,null,null,null,null,null,null,null,null,null,null,null,"Producción textiles (ropa, calzado y artículos de cuero)",723,null,null,null,null,null,null,null,null,null,null,null,null,49,1,47,"ING","GAV","COL0068762","A","https://scienti.minciencias.gov.co/gruplac/jsp/visualiza/visualizagr.jsp?nro=00000000004391","BB18:BB20",53,{"$f":"MINA(IF(AQ53=$BA$4:$BA$419,$BD$4:$BD$419))","v":18},{"$f":"MAXA(IF(AQ53=$BA$4:$BA$419,$BD$4:$BD$419))","v":20},"ING",null,null,"COL0125134","Trauma de guerra en Otorrinolaringología",{"$f":"COUNTIF(BA$4:BA53,BA53)","v":7},{"$f":"ROW()","v":53},1]
[null,0,"BONE",53,0,null,"",0,null,null,null,null,null,null,null,null,null,null,null,null,null,null,null,"Minería y extracción",724,null,null,null,null,null,null,null,null,null,null,null,null,50,1,48,"ING","Energia alternativa, Centro Multidisciplinario de Investigación","COL0117052","C","https://scienti.minciencias.gov.co/gruplac/jsp/visualiza/visualizagr.jsp?nro=00000000011817","BB189:BB193",54,{"$f":"MINA(IF(AQ54=$BA$4:$BA$419,$BD$4:$BD$419))","v":189},{"$f":"MAXA(IF(AQ54=$BA$4:$BA$419,$BD$4:$BD$419))","v":193},"ING",null,null,"COL0067504","Gestión Tecnológica",{"$f":"COUNTIF(BA$4:BA54,BA54)","v":1},{"$f":"ROW()","v":54},1]
[null,0,"CATCH",52,0,null,"",0,null,null,null,null,null,null,null,null,null,null,null,null,null,null,null,"Arquitectura y urbanismo",731,null,null,null,null,null,null,null,null,null,null,null,null,51,1,49,"ING","GI-iTEC - Grupo de Investigación e innovación Tecnológica en Electrónica y Comunicaciones","COL0143731","C","https://scienti.minciencias.gov.co/gruplac/jsp/visualiza/visualizagr.jsp?nro=00000000014576","BB21:BB23",55,{"$f":"MINA(IF(AQ55=$BA$4:$BA$419,$BD$4:$BD$419))","v":21},{"$f":"MAXA(IF(AQ55=$BA$4:$BA$419,$BD$4:$BD$419))","v":23},"ING",null,null,"COL0067504","Gestión del conocimiento",{"$f":"COUNTIF(BA$4:BA55,BA55)","v":2},{"$f":"ROW()","v":55},1]
[null,0,"Células Stem Adultas",59,0,null,"",0,null,null,null,null,null,null,null,null,null,null,null,null,null,null,null,"Construcción e ingeniería civil",732,null,null,null,null,null,null,null,null,null,null,null,null,52,1,50,"ING","LA TRAMOYA","COL0126777","NR","https://scienti.minciencias.gov.co/gruplac/jsp/visualiza/visualizagr.jsp?nro=00000000012813","BB319:BB324",56,{"$f":"MINA(IF(AQ56=$BA$4:$BA$419,$BD$4:$BD$419))","v":319},{"$f":"MAXA(IF(AQ56=$BA$4:$BA$419,$BD$4:$BD$419))","v":324},"ING",null,null,"COL0067504","Los Estilos de enseñanza y Aprendizaje",{"$f":"COUNTIF(BA$4:BA56,BA56)","v":3},{"$f":"ROW()","v":56},1]
[null,0,"Cultura y Desarrollo Humano",33,0,null,"",0,null,null,null,null,null,null,null,null,null,null,null,null,null,null,null,"Producción agrícola y ganadera",811,null,null,null,null,null,null,null,null,null,null,null,null,53,1,51,"ING","GREST","COL0151789","A","https://scienti.minciencias.gov.co/gruplac/jsp/visualiza/visualizagr.jsp?nro=00000000015386","BB272:BB277",57,{"$f":"MINA(IF(AQ57=$BA$4:$BA$419,$BD$4:$BD$419))","v":272},{"$f":"MAXA(IF(AQ57=$BA$4:$BA$419,$BD$4:$BD$419))","v":277},"ING",null,null,"COL0067504","Mercadeo Cuántico",{"$f":"COUNTIF(BA$4:BA57,BA57)","v":4},{"$f":"ROW()","v":57},1]
[null,0,"DAVINCI",41,0,null,"",0,null,null,null,null,null,null,null,null,null,null,null,null,null,null,null,"Horticultura",812,null,null,null,null,null,null,null,null,null,null,null,null,74,1,74,"ING","PROCESOS, OPERACIONES Y LOGISTICA (PROPYLOG)","COL0196753","C","https://scienti.minciencias.gov.co/gruplac/jsp/visualiza/visualizagr.jsp?nro=00000000019879","BB251:BB255",58,{"$f":"MINA(IF(AQ58=$BA$4:$BA$419,$BD$4:$BD$419))","v":251},{"$f":"MAXA(IF(AQ58=$BA$4:$BA$419,$BD$4:$BD$419))","v":255},"ING",null,null,"COL0067504","Mineria Web",{"$f":"COUNTIF(BA$4:BA58,BA58)","v":5},{"$f":"ROW()","v":58},1]
[null,0,"Desarrollo e integración de estrategias alternativas para la protección de cultivos de importancia económica, con énfasis en control biológico.",4,0,null,"",0,null,null,null,null,null,null,null,null,null,null,null,null,null,null,null,"Silvicultura",821,null,null,null,null,null,null,null,null,null,null,null,null,75,1,75,"ING","Sistemas de Infraestructura de Ingeniería Civil","COL0196799","C","https://scienti.minciencias.gov.co/gruplac/jsp/visualiza/visualizagr.jsp?nro=00000000019883","BB298:BB301",59,{"$f":"MINA(IF(AQ59=$BA$4:$BA$419,$BD$4:$BD$419))","v":298},{"$f":"MAXA(IF(AQ59=$BA$4:$BA$419,$BD$4:$BD$419))","v":301},"ING",null,null,"COL0067504","Salud Pública, Bioética e Ingeniería",{"$f":"COUNTIF(BA$4:BA59,BA59)","v":6},{"$f":"ROW()","v":59},1]
[null,0,"DIVERSITAS",71,0,null,"",0,null,null,null,null,null,null,null,null,null,null,null,null,null,null,null,"Pesca",831,null,null,null,null,null,null,null,null,null,null,null,null,54,1,65,"ING","Ingeniería de Procesos y Tecnologías Sostenibles","COL0194866","C","https://scienti.minciencias.gov.co/gruplac/jsp/visualiza/visualizagr.jsp?nro=00000000019690","BB39:BB41",60,{"$f":"MINA(IF(AQ60=$BA$4:$BA$419,$BD$4:$BD$419))","v":39},{"$f":"MAXA(IF(AQ60=$BA$4:$BA$419,$BD$4:$BD$419))","v":41},"ING",null,null,"COL0069296","Modelos de simulación",{"$f":"COUNTIF(BA$4:BA60,BA60)","v":1},{"$f":"ROW()","v":60},1]
[null,0,"ECMU (Evaluacion en Competencias y Matemáticas Universitarias)",13,0,null,"",0,null,null,null,null,null,null,null,null,null,null,null,null,null,null,null,"Veterinaria",841,null,null,null,null,null,null,null,null,null,null,null,null,55,1,52,"MED","CATCH","COL0049659","NR","https://scienti.minciencias.gov.co/gruplac/jsp/visualiza/visualizagr.jsp?nro=00000000003253","BB305:BB307",61,{"$f":"MINA(IF(AQ61=$BA$4:$BA$419,$BD$4:$BD$419))","v":305},{"$f":"MAXA(IF(AQ61=$BA$4:$BA$419,$BD$4:$BD$419))","v":307},{"$f":"AO61","v":"MED"},null,null,"COL0086179","Búsqueda de marcadores genéticos y estudio de genes ligados a la resistencia a Fusarium en clavel.",{"$f":"COUNTIF(BA$4:BA61,BA61)","v":1},{"$f":"ROW()","v":61},1]
[null,0,"EDUMECIS",66,0,null,"",0,null,null,null,null,null,null,null,null,null,null,null,null,null,null,null,"Odontología",911,null,null,null,null,null,null,null,null,null,null,null,null,56,1,53,"MED","BONE","COL0047762","NR","https://scienti.minciencias.gov.co/gruplac/jsp/visualiza/visualizagr.jsp?nro=00000000003064","BB328:BB329",62,{"$f":"MINA(IF(AQ62=$BA$4:$BA$419,$BD$4:$BD$419))","v":328},{"$f":"MAXA(IF(AQ62=$BA$4:$BA$419,$BD$4:$BD$419))","v":329},"MED",null,null,"COL0086179","Producción de nuevas variedades de clavel resistentes a parasitos vasculares.",{"$f":"COUNTIF(BA$4:BA62,BA62)","v":2},{"$f":"ROW()","v":62},1]
[null,0,"Energia alternativa, Centro Multidisciplinario de Investigación",48,0,null,"",0,null,null,null,null,null,null,null,null,null,null,null,null,null,null,null,"Medicina",912,null,null,null,null,null,null,null,null,null,null,null,null,57,1,54,"MED","Grupo de Psoriasis e Inmunodermatologia","COL0126015","C","https://scienti.minciencias.gov.co/gruplac/jsp/visualiza/visualizagr.jsp?nro=00000000012737","BB182:BB183",63,{"$f":"MINA(IF(AQ63=$BA$4:$BA$419,$BD$4:$BD$419))","v":182},{"$f":"MAXA(IF(AQ63=$BA$4:$BA$419,$BD$4:$BD$419))","v":183},"MED",null,null,"COL0086179","Taxonomia y filogenia molecular: desarrollo de intrumentos de analsis",{"$f":"COUNTIF(BA$4:BA63,BA63)","v":3},{"$f":"ROW()","v":63},1]
[null,0,"Epidemiología molecular de enfermedades endocrinas",64,0,null,"",0,null,null,null,null,null,null,null,null,null,null,null,null,null,null,null,"Enfermería y partería",913,null,null,null,null,null,null,null,null,null,null,null,null,59,1,56,"MED","Salud y Comportamiento","COL0033239","NR","https://scienti.minciencias.gov.co/gruplac/jsp/visualiza/visualizagr.jsp?nro=00000000001536","BB325:BB327",64,{"$f":"MINA(IF(AQ64=$BA$4:$BA$419,$BD$4:$BD$419))","v":325},{"$f":"MAXA(IF(AQ64=$BA$4:$BA$419,$BD$4:$BD$419))","v":327},"MED",null,null,"COL0049999","Calidad y Gestión en la Educación",{"$f":"COUNTIF(BA$4:BA64,BA64)","v":1},{"$f":"ROW()","v":64},1]
[null,0,"Epidemiología y Salud Colectiva ",70,0,null,"",0,null,null,null,null,null,null,null,null,null,null,null,null,null,null,null,"Tecnología de diagnóstico y tratamiento médico",914,null,null,null,null,null,null,null,null,null,null,null,null,60,1,57,"MED","GRUPO NEUROCIENCIAS HMC","COL0138698","C","https://scienti.minciencias.gov.co/gruplac/jsp/visualiza/visualizagr.jsp?nro=00000000014072","BB135:BB153",65,{"$f":"MINA(IF(AQ65=$BA$4:$BA$419,$BD$4:$BD$419))","v":135},{"$f":"MAXA(IF(AQ65=$BA$4:$BA$419,$BD$4:$BD$419))","v":153},"MED",null,null,"COL0049999","Gestión y Proyectos",{"$f":"COUNTIF(BA$4:BA65,BA65)","v":2},{"$f":"ROW()","v":65},1]
[null,0,"Estadística, Control y Optimización",7,0,null,"",0,null,null,null,null,null,null,null,null,null,null,null,null,null,null,null,"Terapia y rehabilitación",915,null,null,null,null,null,null,null,null,null,null,null,null,61,1,58,"MED","Grupo de Investigacion en Dermatologia HMC","COL0116439","C","https://scienti.minciencias.gov.co/gruplac/jsp/visualiza/visualizagr.jsp?nro=00000000011753","BB121:BB124",66,{"$f":"MINA(IF(AQ66=$BA$4:$BA$419,$BD$4:$BD$419))","v":121},{"$f":"MAXA(IF(AQ66=$BA$4:$BA$419,$BD$4:$BD$419))","v":124},"MED",null,null,"COL0049999","Innovación",{"$f":"COUNTIF(BA$4:BA66,BA66)","v":3},{"$f":"ROW()","v":66},1]
[null,0,"Estructuras y sísmica",42,0,null,"",0,null,null,null,null,null,null,null,null,null,null,null,null,null,null,null,"Farmacia",916,null,null,null,null,null,null,null,null,null,null,null,null,62,1,59,"MED","ORTOPEDIA Y TRAUMATOLOGIA HMC UMNG","COL0134044","C","https://scienti.minciencias.gov.co/gruplac/jsp/visualiza/visualizagr.jsp?nro=00000000013608","BB225:BB231",67,{"$f":"MINA(IF(AQ67=$BA$4:$BA$419,$BD$4:$BD$419))","v":225},{"$f":"MAXA(IF(AQ67=$BA$4:$BA$419,$BD$4:$BD$419))","v":231},"MED",null,null,"COL0049999","Productividad",{"$f":"COUNTIF(BA$4:BA67,BA67)","v":4},{"$f":"ROW()","v":67},1]
[null,0,"Estudios Internacionales y Políticos",29,0,null,"",0,null,null,null,null,null,null,null,null,null,null,null,null,null,null,null,"Medicina y terapia tradicional y complementaria",917,null,null,null,null,null,null,null,null,null,null,null,null,63,{"$f":"COUNTIF($AN$4:$AN$75,AL68)","v":1},60,"MED","Grupo de Salud Oral y Cirugia Maxilofacial","COL0129689","C","https://scienti.minciencias.gov.co/gruplac/jsp/visualiza/visualizagr.jsp?nro=00000000013172","BB44:BB46",68,{"$f":"MINA(IF(AQ68=$BA$4:$BA$419,$BD$4:$BD$419))","v":44},{"$f":"MAXA(IF(AQ68=$BA$4:$BA$419,$BD$4:$BD$419))","v":46},"MED",null,null,"COL0049999","Sostenibilidad y Medio Ambiente",{"$f":"COUNTIF(BA$4:BA68,BA68)","v":5},{"$f":"ROW()","v":68},{"$f":"COUNTIF($AQ$3:$AQ$84,BA68)","v":1}]
[null,0,"Fitopatologia molecular",6,0,null,"",0,null,null,null,null,null,null,null,null,null,null,null,null,null,null,null,"Asistencia a adultos mayores y discapacitados",921,null,null,null,null,null,null,null,null,null,null,null,null,64,1,61,"MED","Kokhlias.","COL0125134","C","https://scienti.minciencias.gov.co/gruplac/jsp/visualiza/visualizagr.jsp?nro=00000000012649","BB47:BB53",69,{"$f":"MINA(IF(AQ69=$BA$4:$BA$419,$BD$4:$BD$419))","v":47},{"$f":"MAXA(IF(AQ69=$BA$4:$BA$419,$BD$4:$BD$419))","v":53},"MED",null,null,"COL0049999","Tecnología",{"$f":"COUNTIF(BA$4:BA69,BA69)","v":6},{"$f":"ROW()","v":69},1]
[null,0,"Fitoplasmas y Virus",1,0,null,"",0,null,null,null,null,null,null,null,null,null,null,null,null,null,null,null,"Asistencia a la infancia y servicios para jóvenes",922,null,null,null,null,null,null,null,null,null,null,null,null,65,1,62,"MED","Grupo de Rehabilitacion HOMIC-UMNG","COL0120281","C","https://scienti.minciencias.gov.co/gruplac/jsp/visualiza/visualizagr.jsp?nro=00000000012152","BB128:BB133",70,{"$f":"MINA(IF(AQ70=$BA$4:$BA$419,$BD$4:$BD$419))","v":128},{"$f":"MAXA(IF(AQ70=$BA$4:$BA$419,$BD$4:$BD$419))","v":133},"MED",null,null,"COL0136423","Control óptimo estocástico",{"$f":"COUNTIF(BA$4:BA70,BA70)","v":1},{"$f":"ROW()","v":70},1]
[null,0,"GAFRED",68,0,null,"",0,null,null,null,null,null,null,null,null,null,null,null,null,null,null,null,"Trabajo social y orientación",923,null,null,null,null,null,null,null,null,null,null,null,null,66,1,63,"MED","Grupo de Investigacion en Urologia HMC","COL0116538","C","https://scienti.minciencias.gov.co/gruplac/jsp/visualiza/visualizagr.jsp?nro=00000000011763","BB292:BB297",71,{"$f":"MINA(IF(AQ71=$BA$4:$BA$419,$BD$4:$BD$419))","v":292},{"$f":"MAXA(IF(AQ71=$BA$4:$BA$419,$BD$4:$BD$419))","v":297},"MED",null,null,"COL0136423","Estadística Multivariada paramétrica y no paramétrica.",{"$f":"COUNTIF(BA$4:BA71,BA71)","v":2},{"$f":"ROW()","v":71},1]
[null,0,"GAV",47,0,null,"",0,null,null,null,null,null,null,null,null,null,null,null,null,null,null,null,"Servicios domésticos",1011,null,null,null,null,null,null,null,null,null,null,null,null,67,1,64,"MED","Epidemiología molecular de enfermedades endocrinas","COL0045848","C","https://scienti.minciencias.gov.co/gruplac/jsp/visualiza/visualizagr.jsp?nro=00000000002874","BB106:BB108",72,{"$f":"MINA(IF(AQ72=$BA$4:$BA$419,$BD$4:$BD$419))","v":106},{"$f":"MAXA(IF(AQ72=$BA$4:$BA$419,$BD$4:$BD$419))","v":108},"MED",null,null,"COL0136423","Métodos estadísticos basados en grafos",{"$f":"COUNTIF(BA$4:BA72,BA72)","v":3},{"$f":"ROW()","v":72},1]
[null,0,"GECS (Grupo de Investigación en Contabilidad y Sociedad)",28,0,null,"",0,null,null,null,null,null,null,null,null,null,null,null,null,null,null,null,"Peluquería y tratamientos de belleza",1012,null,null,null,null,null,null,null,null,null,null,null,null,68,1,66,"MED","EDUMECIS","COL0152463","C","https://scienti.minciencias.gov.co/gruplac/jsp/visualiza/visualizagr.jsp?nro=00000000015421","BB194:BB197",73,{"$f":"MINA(IF(AQ73=$BA$4:$BA$419,$BD$4:$BD$419))","v":194},{"$f":"MAXA(IF(AQ73=$BA$4:$BA$419,$BD$4:$BD$419))","v":197},"MED",null,null,"COL0136423","Optimizacion Semidefinida",{"$f":"COUNTIF(BA$4:BA73,BA73)","v":4},{"$f":"ROW()","v":73},1]
[null,0,"GEOTECNIA",36,0,null,"",0,null,null,null,null,null,null,null,null,null,null,null,null,null,null,null,"Hotelería, restaurantes y servicios de banquetes",1013,null,null,null,null,null,null,null,null,null,null,null,null,69,0,67,"MED","BioGenEtica & BioDerecho","COL0096032","NR","https://scienti.minciencias.gov.co/gruplac/jsp/visualiza/visualizagr.jsp?nro=00000000009651","BB311:BB313",74,{"$f":"MINA(IF(AQ74=$BA$4:$BA$419,$BD$4:$BD$419))","v":311},{"$f":"MAXA(IF(AQ74=$BA$4:$BA$419,$BD$4:$BD$419))","v":313},"MED",null,null,"COL0136423","Optimización Numérica. Máquinas de Vectores de Soportes.",{"$f":"COUNTIF(BA$4:BA74,BA74)","v":5},{"$f":"ROW()","v":74},1]
[null,0,"GIDAM",40,0,null,"",0,null,null,null,null,null,null,null,null,null,null,null,null,null,null,null,"Deportes",1014,null,null,null,null,null,null,null,null,null,null,null,null,70,0,68,"MED","GAFRED","COL0149359","NR","https://scienti.minciencias.gov.co/gruplac/jsp/visualiza/visualizagr.jsp?nro=00000000015141","BB308:BB310",75,{"$f":"MINA(IF(AQ75=$BA$4:$BA$419,$BD$4:$BD$419))","v":308},{"$f":"MAXA(IF(AQ75=$BA$4:$BA$419,$BD$4:$BD$419))","v":310},"MED",null,null,"COL0044859","Interacción Humano Computador",{"$f":"COUNTIF(BA$4:BA75,BA75)","v":1},{"$f":"ROW()","v":75},1]
[null,0,"GI-iTEC - Grupo de Investigación e innovación Tecnológica en Electrónica y Comunicaciones",49,0,null,"",0,null,null,null,null,null,null,null,null,null,null,null,null,null,null,null,"Viajes, turismo y actividades recreativas",1015,null,null,null,null,null,null,null,null,null,null,null,null,71,1,69,"MED","Grupo de inmunología Clínica Aplicada (GICA)","COL0152472","A1","https://scienti.minciencias.gov.co/gruplac/jsp/visualiza/visualizagr.jsp?nro=00000000015414","BB283:BB284",76,{"$f":"MINA(IF(AQ76=$BA$4:$BA$419,$BD$4:$BD$419))","v":283},{"$f":"MAXA(IF(AQ76=$BA$4:$BA$419,$BD$4:$BD$419))","v":284},"MED",null,null,"COL0044859","Multimedia Educativa",{"$f":"COUNTIF(BA$4:BA76,BA76)","v":2},{"$f":"ROW()","v":76},1]
[null,0,"GISSIC: Grupo de Investigacion en Seguridad y Sistemas de Comunicaciones",46,0,null,"",0,null,null,null,null,null,null,null,null,null,null,null,null,null,null,null,"Saneamiento de la comunidad",1021,null,null,null,null,null,null,null,null,null,null,null,null,76,0,76,"MED","Grupo de Investigación en Cirugía pediátrica y especialidades CIPEMIL","COL0194721","C","https://scienti.minciencias.gov.co/gruplac/jsp/visualiza/visualizagr.jsp?nro=00000000019676",{"$f":"$AT$2&AV77&\":\"&$AT$2&AW77","v":"BB209:BB214"},77,{"$f":"MINA(IF(AQ77=$BA$4:$BA$419,$BD$4:$BD$419))","v":209},{"$f":"MAXA(IF(AQ77=$BA$4:$BA$419,$BD$4:$BD$419))","v":214},{"$f":"AO77","v":"MED"},null,null,"COL0044859","Procesamiento digital de imágenes y Visión por computador",{"$f":"COUNTIF(BA$4:BA77,BA77)","v":3},{"$f":"ROW()","v":77},1]
[null,0,"GREST",51,0,null,"",0,null,null,null,null,null,null,null,null,null,null,null,null,null,null,null,"Salud y protección laboral",1022,null,null,null,null,null,null,null,null,null,null,null,null,77,0,77,"MED","Grupo de Investigación en Enfermedades Infecciosas Hospital Militar Central ","COL0175225","A1","https://scienti.minciencias.gov.co/gruplac/jsp/visualiza/visualizagr.jsp?nro=00000000017724",{"$f":"$AT$2&AV78&\":\"&$AT$2&AW78","v":"BB80:BB82"},78,{"$f":"MINA(IF(AQ78=$BA$4:$BA$419,$BD$4:$BD$419))","v":80},{"$f":"MAXA(IF(AQ78=$BA$4:$BA$419,$BD$4:$BD$419))","v":82},{"$f":"AO78","v":"MED"},null,null,"COL0044859","Sistemas Multimedia",{"$f":"COUNTIF(BA$4:BA78,BA78)","v":4},{"$f":"ROW()","v":78},1]
[null,0,"Grupo de Derecho Privado",16,0,null,"",0,null,null,null,null,null,null,null,null,null,null,null,null,null,null,null,"Educación militar y de defensa",1031,null,null,null,null,null,null,null,null,null,null,null,null,72,1,70,"MED","Epidemiología y Salud Colectiva ","COL0152319","C","https://scienti.minciencias.gov.co/gruplac/jsp/visualiza/visualizagr.jsp?nro=00000000015438","BB218:BB222",79,{"$f":"MINA(IF(AQ79=$BA$4:$BA$419,$BD$4:$BD$419))","v":218},{"$f":"MAXA(IF(AQ79=$BA$4:$BA$419,$BD$4:$BD$419))","v":222},"MED",null,null,"COL0044859","Visualización y Computación Gráfica",{"$f":"COUNTIF(BA$4:BA79,BA79)","v":5},{"$f":"ROW()","v":79},1]
[null,0,"Grupo de derecho público ",15,0,null,"",0,null,null,null,null,null,null,null,null,null,null,null,null,null,null,null,"Protección de las personas y de la propiedad",1032,null,null,null,null,null,null,null,null,null,null,null,null,73,0,73,"MED","Grupo de investigaciones sobre agentes radiológicos, biológicos y químicos","COL0191078","C","https://scienti.minciencias.gov.co/gruplac/jsp/visualiza/visualizagr.jsp?nro=00000000019309","BB202:BB203",80,{"$f":"MINA(IF(AQ80=$BA$4:$BA$419,$BD$4:$BD$419))","v":202},{"$f":"MAXA(IF(AQ80=$BA$4:$BA$419,$BD$4:$BD$419))","v":203},"MED",null,null,"COL0175225","Efermedades Tropicales",{"$f":"COUNTIF(BA$4:BA80,BA80)","v":1},{"$f":"ROW()","v":80},1]
[null,0,"Grupo de Docencia e Investigación en Física",14,{"$f":"IF(IFERROR(SEARCH(GP,C81,1),0)>0,1,0)","v":0},null,"",0,null,null,null,null,null,null,null,null,null,null,null,null,null,null,null,"Servicios de transporte",1041,null,null,null,null,null,null,null,null,null,null,null,null,null,null,null,null,null,null,null,null,null,null,null,null,null,null,null,"COL0175225","Enfermedades de Transmisión Sexual",{"$f":"COUNTIF(BA$4:BA81,BA81)","v":2},{"$f":"ROW()","v":81},1]
[null,0,"Grupo de Ecotoxicología, Evolución, Medio ambiente y conservación (E = mc2)",8,0,null,"",0,null,null,null,null,null,null,null,null,null,null,null,null,null,null,null,null,null,null,null,null,null,null,null,null,null,null,null,null,null,null,null,null,null,null,null,null,null,null,null,null,null,null,null,null,"COL0175225","Infecciones Asociadas al Cuidado de la Salud",{"$f":"COUNTIF(BA$4:BA82,BA82)","v":3},{"$f":"ROW()","v":82},1]
[null,0,"Grupo de estudios contemporáneos en contabilidad, gestión y organizaciones - GECCGO",27,0,null,"",0,null,null,null,null,null,null,null,null,null,null,null,null,null,null,null,null,null,null,null,null,null,null,null,null,null,null,null,null,null,null,null,null,null,null,null,null,null,null,null,null,null,null,null,null,"COL0052181","Big Data Analytics",{"$f":"COUNTIF(BA$4:BA83,BA83)","v":1},{"$f":"ROW()","v":83},1]
[null,0,"Grupo de Estudios en Ciencias Económicas - CIE",25,0,null,"",0,null,null,null,null,null,null,null,null,null,null,null,null,null,null,null,null,null,null,null,null,null,null,null,null,null,null,null,null,null,null,null,null,null,null,null,null,null,null,null,null,null,null,null,null,"COL0052181","Biomecánica e Ingeniería de Rehabilitación",{"$f":"COUNTIF(BA$4:BA84,BA84)","v":2},{"$f":"ROW()","v":84},1]
[null,0,"Grupo de Estudios Macroeconómicos",26,0,null,"",0,null,null,null,null,null,null,null,null,null,null,null,null,null,null,null,null,null,null,null,null,null,null,null,null,null,null,null,null,null,null,null,null,"Ingeniería de Procesos y Tecnologías Sostenibles","COL0194866",null,null,null,null,null,null,null,null,null,null,"COL0052181","Educación, Gestión y Ecosistemas",{"$f":"COUNTIF(BA$4:BA85,BA85)","v":3},{"$f":"ROW()","v":85},1]
[null,0,"Grupo de inmunología Clínica Aplicada (GICA)",69,0,null,"",0,null,null,null,null,null,null,null,null,null,null,null,null,null,null,null,null,null,null,null,null,null,null,null,null,null,null,null,null,null,null,null,null,null,null,null,null,null,null,null,null,null,null,null,null,"COL0052181","Procesamiento de señales, datos, imagen y video",{"$f":"COUNTIF(BA$4:BA86,BA86)","v":4},{"$f":"ROW()","v":86},1]
[null,0,"Grupo de investigación en Biodiversidad y ecología de abejas silvestres",2,0,null,"",0,null,null,null,null,null,null,null,null,null,null,null,null,null,null,null,null,null,null,null,null,null,null,null,null,null,null,null,null,null,null,null,null,null,null,null,null,null,null,null,null,null,null,null,null,"COL0052181","Tele-cardiología y prevención",{"$f":"COUNTIF(BA$4:BA87,BA87)","v":5},{"$f":"ROW()","v":87},1]
[null,0,"Grupo de Investigacion en Dermatologia HMC",58,0,null,"",0,null,null,null,null,null,null,null,null,null,null,null,null,null,null,null,null,null,null,null,null,null,null,null,null,null,null,null,null,null,null,null,null,null,null,null,null,null,null,null,null,null,null,null,null,"COL0052181","Telemetría (IoT-Routing)",{"$f":"COUNTIF(BA$4:BA88,BA88)","v":6},{"$f":"ROW()","v":88},1]
[null,0,"Grupo de Investigación en Hidrobiología Aplicada (HIDROBIA)",9,0,null,"",0,null,null,null,null,null,null,null,null,null,null,null,null,null,null,null,null,null,null,null,null,null,null,null,null,null,null,null,null,null,null,null,null,null,null,null,null,null,null,null,null,null,null,null,null,"COL0077707","(Eco)fisiología vegetal",{"$f":"COUNTIF(BA$4:BA89,BA89)","v":1},{"$f":"ROW()","v":89},1]
[null,0,"Grupo de Investigación en Multimedia -GIM-",35,0,null,"",0,null,null,null,null,null,null,null,null,null,null,null,null,null,null,null,null,null,null,null,null,null,null,null,null,null,null,null,null,null,null,null,null,null,null,null,null,null,null,null,null,null,null,null,null,"COL0077707","Bioprospección de Comunidades Vegetales",{"$f":"COUNTIF(BA$4:BA90,BA90)","v":2},{"$f":"ROW()","v":90},1]
[null,0,"Grupo de investigación en química ambiental y tecnologías limpias - QUATELI",12,0,null,"",0,null,null,null,null,null,null,null,null,null,null,null,null,null,null,null,null,null,null,null,null,null,null,null,null,null,null,null,null,null,null,null,null,null,null,null,null,null,null,null,null,null,null,null,null,"COL0077707","Búsqueda Biodirigida y Síntesis de Sustancias Bioactivas",{"$f":"COUNTIF(BA$4:BA91,BA91)","v":3},{"$f":"ROW()","v":91},1]
[null,0,"Grupo de Investigacion en Urologia HMC",63,0,null,"",0,null,null,null,null,null,null,null,null,null,null,null,null,null,null,null,null,null,null,null,null,null,null,null,null,null,null,null,null,null,null,null,null,null,null,null,null,null,null,null,null,null,null,null,null,"COL0077707","Ecología Química y Redes Tróficas",{"$f":"COUNTIF(BA$4:BA92,BA92)","v":4},{"$f":"ROW()","v":92},1]
[null,0,"Grupo de investigaciones sobre agentes radiológicos, biológicos y químicos",73,0,null,"",0,null,null,null,null,null,null,null,null,null,null,null,null,null,null,null,null,null,null,null,null,null,null,null,null,null,null,null,null,null,null,null,null,null,null,null,null,null,null,null,null,null,null,null,null,"COL0077707","Fitoquímica Analítica",{"$f":"COUNTIF(BA$4:BA93,BA93)","v":5},{"$f":"ROW()","v":93},1]
[null,0,"Grupo de Micología y Fitopatologia ",5,0,null,"",0,null,null,null,null,null,null,null,null,null,null,null,null,null,null,null,null,null,null,null,null,null,null,null,null,null,null,null,null,null,null,null,null,null,null,null,null,null,null,null,null,null,null,null,null,"COL0077707","Metabolómica | Fisiología Molecular | Ecología Metabólica | Respuestas Metabólicas",{"$f":"COUNTIF(BA$4:BA94,BA94)","v":6},{"$f":"ROW()","v":94},1]
[null,0,"Grupo de Psoriasis e Inmunodermatologia",54,0,null,"",0,null,null,null,null,null,null,null,null,null,null,null,null,null,null,null,null,null,null,null,null,null,null,null,null,null,null,null,null,null,null,null,null,null,null,null,null,null,null,null,null,null,null,null,null,"COL0077707","Modelado Molecular, Bio- y Quimio-informática",{"$f":"COUNTIF(BA$4:BA95,BA95)","v":7},{"$f":"ROW()","v":95},1]
[null,0,"Grupo de Rehabilitacion HOMIC-UMNG",62,0,null,"",0,null,null,null,null,null,null,null,null,null,null,null,null,null,null,null,null,null,null,null,null,null,null,null,null,null,null,null,null,null,null,null,null,null,null,null,null,null,null,null,null,null,null,null,null,"COL0077707","Química Ambiental",{"$f":"COUNTIF(BA$4:BA96,BA96)","v":8},{"$f":"ROW()","v":96},1]
[null,0,"Grupo de Salud Oral y Cirugia Maxilofacial",60,0,null,"",0,null,null,null,null,null,null,null,null,null,null,null,null,null,null,null,null,null,null,null,null,null,null,null,null,null,null,null,null,null,null,null,null,null,null,null,null,null,null,null,null,null,null,null,null,"COL0077707","Química Bioorgánica y Bioquímica",{"$f":"COUNTIF(BA$4:BA97,BA97)","v":9},{"$f":"ROW()","v":97},1]
[null,0,"Grupo Integrado de Investigaciones en Química y Biología (InQuiBio)",11,0,null,"",0,null,null,null,null,null,null,null,null,null,null,null,null,null,null,null,null,null,null,null,null,null,null,null,null,null,null,null,null,null,null,null,null,null,null,null,null,null,null,null,null,null,null,null,null,"COL0027367","Estudios de migración y desigualdades poblacionales",{"$f":"COUNTIF(BA$4:BA98,BA98)","v":1},{"$f":"ROW()","v":98},1]
[null,0,"GRUPO NEUROCIENCIAS HMC",57,0,null,"",0,null,null,null,null,null,null,null,null,null,null,null,null,null,null,null,null,null,null,null,null,null,null,null,null,null,null,null,null,null,null,null,null,null,null,null,null,null,null,null,null,null,null,null,null,"COL0027367","Estudios en desarrollo social y sostenibilidad",{"$f":"COUNTIF(BA$4:BA99,BA99)","v":2},{"$f":"ROW()","v":99},1]
[null,0,"Grupo para el estudio de enfermedades respiratorias en nińos. Respira",55,0,null,"",0,null,null,null,null,null,null,null,null,null,null,null,null,null,null,null,null,null,null,null,null,null,null,null,null,null,null,null,null,null,null,null,null,null,null,null,null,null,null,null,null,null,null,null,null,"COL0027367","Estudios sobre desigualdades educativas",{"$f":"COUNTIF(BA$4:BA100,BA100)","v":3},{"$f":"ROW()","v":100},1]
[null,0,"HUMANITAS",32,0,null,"",0,null,null,null,null,null,null,null,null,null,null,null,null,null,null,null,null,null,null,null,null,null,null,null,null,null,null,null,null,null,null,null,null,null,null,null,null,null,null,null,null,null,null,null,null,"COL0038084","Acuaponía, recirculación e hidroponía",{"$f":"COUNTIF(BA$4:BA101,BA101)","v":1},{"$f":"ROW()","v":101},1]
[null,0,"INAMPE",24,0,null,"",0,null,null,null,null,null,null,null,null,null,null,null,null,null,null,null,null,null,null,null,null,null,null,null,null,null,null,null,null,null,null,null,null,null,null,null,null,null,null,null,null,null,null,null,null,"COL0038084","Biología evolutiva de animales",{"$f":"COUNTIF(BA$4:BA102,BA102)","v":2},{"$f":"ROW()","v":102},1]
[null,0,"INCONDIS",19,0,null,"",0,null,null,null,null,null,null,null,null,null,null,null,null,null,null,null,null,null,null,null,null,null,null,null,null,null,null,null,null,null,null,null,null,null,null,null,null,null,null,null,null,null,null,null,null,"COL0038084","Ecotoxicología",{"$f":"COUNTIF(BA$4:BA103,BA103)","v":3},{"$f":"ROW()","v":103},1]
[null,0,"INGENIERÍA, GEOMÁTICA Y EDUCACIÓN (IGE)",43,0,null,"",0,null,null,null,null,null,null,null,null,null,null,null,null,null,null,null,null,null,null,null,null,null,null,null,null,null,null,null,null,null,null,null,null,null,null,null,null,null,null,null,null,null,null,null,null,"COL0038084","Energías alternas y recursos ambientales",{"$f":"COUNTIF(BA$4:BA104,BA104)","v":4},{"$f":"ROW()","v":104},1]
[null,0,"Insight",65,0,null,"",0,null,null,null,null,null,null,null,null,null,null,null,null,null,null,null,null,null,null,null,null,null,null,null,null,null,null,null,null,null,null,null,null,null,null,null,null,null,null,null,null,null,null,null,null,"COL0038084","modelamiento de especies bajo escenario de calentamiento global",{"$f":"COUNTIF(BA$4:BA105,BA105)","v":5},{"$f":"ROW()","v":105},1]
[null,0,"Kokhlias.",61,0,null,"",0,null,null,null,null,null,null,null,null,null,null,null,null,null,null,null,null,null,null,null,null,null,null,null,null,null,null,null,null,null,null,null,null,null,null,null,null,null,null,null,null,null,null,null,null,"COL0045848","Epidemiología Clínica de Diabetes e Insulino resistencia",{"$f":"COUNTIF(BA$4:BA106,BA106)","v":1},{"$f":"ROW()","v":106},1]
[null,0,"LA TRAMOYA",50,0,null,"",0,null,null,null,null,null,null,null,null,null,null,null,null,null,null,null,null,null,null,null,null,null,null,null,null,null,null,null,null,null,null,null,null,null,null,null,null,null,null,null,null,null,null,null,null,"COL0045848","Genética de diabetes mellitus e insulino resistencia",{"$f":"COUNTIF(BA$4:BA107,BA107)","v":2},{"$f":"ROW()","v":107},1]
[null,0,"LIDERAZGO",31,0,null,"",0,null,null,null,null,null,null,null,null,null,null,null,null,null,null,null,null,null,null,null,null,null,null,null,null,null,null,null,null,null,null,null,null,null,null,null,null,null,null,null,null,null,null,null,null,"COL0045848","Prevención Cardiovascular",{"$f":"COUNTIF(BA$4:BA108,BA108)","v":3},{"$f":"ROW()","v":108},1]
[null,0,"MATRIX",3,0,null,"",0,null,null,null,null,null,null,null,null,null,null,null,null,null,null,null,null,null,null,null,null,null,null,null,null,null,null,null,null,null,null,null,null,null,null,null,null,null,null,null,null,null,null,null,null,"COL0031959","Análisis de redes de interacción planta-polinizador a partir de técnicas palinológicas",{"$f":"COUNTIF(BA$4:BA109,BA109)","v":1},{"$f":"ROW()","v":109},1]
[null,0,"Medios, Mediaciones y Procesos en Educación a Distancia",21,0,null,"",0,null,null,null,null,null,null,null,null,null,null,null,null,null,null,null,null,null,null,null,null,null,null,null,null,null,null,null,null,null,null,null,null,null,null,null,null,null,null,null,null,null,null,null,null,"COL0031959","Cría de especies del género Bombus para su utilización como polinizadores en cultivos de la sabana Cundi-boyacense.",{"$f":"COUNTIF(BA$4:BA110,BA110)","v":2},{"$f":"ROW()","v":110},1]
[null,0,"Modelos de simulación ICDIST",23,0,null,"",0,null,null,null,null,null,null,null,null,null,null,null,null,null,null,null,null,null,null,null,null,null,null,null,null,null,null,null,null,null,null,null,null,null,null,null,null,null,null,null,null,null,null,null,null,"COL0031959","Diversidad, biología y taxonomia de polinizadores colombianos",{"$f":"COUNTIF(BA$4:BA111,BA111)","v":3},{"$f":"ROW()","v":111},1]
[null,0,"Nanofab",72,0,null,"",0,null,null,null,null,null,null,null,null,null,null,null,null,null,null,null,null,null,null,null,null,null,null,null,null,null,null,null,null,null,null,null,null,null,null,null,null,null,null,null,null,null,null,null,null,"COL0031959","Ecología de la polinización: estudios del uso sostenible de especies de abejas silvestres como polinizadores de hortalizas y frutales",{"$f":"COUNTIF(BA$4:BA112,BA112)","v":4},{"$f":"ROW()","v":112},1]
[null,0,"PIREO \"Procesos de Integración, Regionalización y Estructuras Organizacionales\"",22,{"$f":"IF(IFERROR(SEARCH(GP,C113,1),0)>0,1,0)","v":0},null,"",0,null,null,null,null,null,null,null,null,null,null,null,null,null,null,null,null,null,null,null,null,null,null,null,null,null,null,null,null,null,null,null,null,null,null,null,null,null,null,null,null,null,null,null,null,"COL0031959","Modelos biológicos y ecológicos de insectos benéficos",{"$f":"COUNTIF(BA$4:BA113,BA113)","v":5},{"$f":"ROW()","v":113},1]
[null,0,"PRODUCCION, INNOVACION Y TECNOLOGIA",39,0,null,"",0,null,null,null,null,null,null,null,null,null,null,null,null,null,null,null,null,null,null,null,null,null,null,null,null,null,null,null,null,null,null,null,null,null,null,null,null,null,null,null,null,null,null,null,null,"COL0065804","Desarrollos mecatrónicos",{"$f":"COUNTIF(BA$4:BA114,BA114)","v":1},{"$f":"ROW()","v":114},1]
[null,0,"PROPPIO: Procesos organizacionales, programaticos y políticos para la promoción del desarrollo",18,0,null,"",0,null,null,null,null,null,null,null,null,null,null,null,null,null,null,null,null,null,null,null,null,null,null,null,null,null,null,null,null,null,null,null,null,null,null,null,null,null,null,null,null,null,null,null,null,"COL0065804","Energías Renovables",{"$f":"COUNTIF(BA$4:BA115,BA115)","v":2},{"$f":"ROW()","v":115},1]
[null,0,"Red de estudios sociojurídicos comparados y políticas públicas",17,0,null,"",0,null,null,null,null,null,null,null,null,null,null,null,null,null,null,null,null,null,null,null,null,null,null,null,null,null,null,null,null,null,null,null,null,null,null,null,null,null,null,null,null,null,null,null,null,"COL0065804","Materiales y Procesos de Manufactura",{"$f":"COUNTIF(BA$4:BA116,BA116)","v":3},{"$f":"ROW()","v":116},1]
[null,0,"Salud y Comportamiento",56,0,null,"",0,null,null,null,null,null,null,null,null,null,null,null,null,null,null,null,null,null,null,null,null,null,null,null,null,null,null,null,null,null,null,null,null,null,null,null,null,null,null,null,null,null,null,null,null,"COL0036025","Biomecatronica",{"$f":"COUNTIF(BA$4:BA117,BA117)","v":1},{"$f":"ROW()","v":117},1]
[null,0,"Sociedad, Estrategia y Seguridad",30,0,null,"",0,null,null,null,null,null,null,null,null,null,null,null,null,null,null,null,null,null,null,null,null,null,null,null,null,null,null,null,null,null,null,null,null,null,null,null,null,null,null,null,null,null,null,null,null,"COL0036025","Optimización y Control de sistemas dinámicos",{"$f":"COUNTIF(BA$4:BA118,BA118)","v":2},{"$f":"ROW()","v":118},1]
[null,0,"TIGUM: Grupo de Investigacion en Telemedicina Universidad Militar",37,0,null,"",0,null,null,null,null,null,null,null,null,null,null,null,null,null,null,null,null,null,null,null,null,null,null,null,null,null,null,null,null,null,null,null,null,null,null,null,null,null,null,null,null,null,null,null,null,"COL0036025","Robótica híbrida",{"$f":"COUNTIF(BA$4:BA119,BA119)","v":3},{"$f":"ROW()","v":119},1]
[null,0,"Agua y Energía - AyE",45,0,null,"",0,null,null,null,null,null,null,null,null,null,null,null,null,null,null,null,null,null,null,null,null,null,null,null,null,null,null,null,null,null,null,null,null,null,null,null,null,null,null,null,null,null,null,null,null,"COL0036025","Simulacion y Realidad Virtual",{"$f":"COUNTIF(BA$4:BA120,BA120)","v":4},{"$f":"ROW()","v":120},1]
[null,0,"VOLTA - GMCDP",38,0,null,"",0,null,null,null,null,null,null,null,null,null,null,null,null,null,null,null,null,null,null,null,null,null,null,null,null,null,null,null,null,null,null,null,null,null,null,null,null,null,null,null,null,null,null,null,null,"COL0116439","Cirugía Dermatologica",{"$f":"COUNTIF(BA$4:BA121,BA121)","v":1},{"$f":"ROW()","v":121},1]
[null,null,null,null,null,null,null,null,null,null,null,null,null,null,null,null,null,null,null,null,null,null,null,null,null,null,null,null,null,null,null,null,null,null,null,null,null,null,null,null,null,null,null,null,null,null,null,null,null,null,null,null,"COL0116439","Dermatologia Pediatrica",{"$f":"COUNTIF(BA$4:BA122,BA122)","v":2},{"$f":"ROW()","v":122},1]
[null,null,null,null,null,null,null,null,null,null,null,null,null,null,null,null,null,null,null,null,null,null,null,null,null,null,null,null,null,null,null,null,null,null,null,null,null,null,null,null,null,null,null,null,null,null,null,null,null,null,null,null,"COL0116439","Fotobiologia y Fototerapia",{"$f":"COUNTIF(BA$4:BA123,BA123)","v":3},{"$f":"ROW()","v":123},1]
[null,null,null,null,null,null,null,null,null,null,null,null,null,null,null,null,null,null,null,null,null,null,null,null,null,null,null,null,null,null,null,null,null,null,null,null,null,null,null,null,null,null,null,null,null,null,null,null,null,null,null,null,"COL0116439","Leishmaniasis",{"$f":"COUNTIF(BA$4:BA124,BA124)","v":4},{"$f":"ROW()","v":124},1]
[null,null,null,null,null,null,null,null,null,null,null,null,null,null,null,null,null,null,null,null,null,null,null,null,null,null,null,null,null,null,null,null,null,null,null,null,null,null,null,null,null,null,null,null,null,null,null,null,null,null,null,null,"COL0142331","Competitividad industrial",{"$f":"COUNTIF(BA$4:BA125,BA125)","v":1},{"$f":"ROW()","v":125},1]
[null,null,null,null,null,null,null,null,null,null,null,null,null,null,null,null,null,null,null,null,null,null,null,null,null,null,null,null,null,null,null,null,null,null,null,null,null,null,null,null,null,null,null,null,null,null,null,null,null,null,null,null,"COL0142331","Innovación y educación en Ingenierìa",{"$f":"COUNTIF(BA$4:BA126,BA126)","v":2},{"$f":"ROW()","v":126},1]
[null,null,null,null,null,null,null,null,null,null,null,null,null,null,null,null,null,null,null,null,null,null,null,null,null,null,null,null,null,null,null,null,null,null,null,null,null,null,null,null,null,null,null,null,null,null,null,null,null,null,null,null,"COL0142331","Productividad industrial",{"$f":"COUNTIF(BA$4:BA127,BA127)","v":3},{"$f":"ROW()","v":127},1]
[null,null,null,null,null,null,null,null,null,null,null,null,null,null,null,null,null,null,null,null,null,null,null,null,null,null,null,null,null,null,null,null,null,null,null,null,null,null,null,null,null,null,null,null,null,null,null,null,null,null,null,null,"COL0120281","Medicina Electrodiagnostica",{"$f":"COUNTIF(BA$4:BA128,BA128)","v":1},{"$f":"ROW()","v":128},1]
[null,null,null,null,null,null,null,null,null,null,null,null,null,null,null,null,null,null,null,null,null,null,null,null,null,null,null,null,null,null,null,null,null,null,null,null,null,null,null,null,null,null,null,null,null,null,null,null,null,null,null,null,"COL0120281","Rehabilitacion Neurologica",{"$f":"COUNTIF(BA$4:BA129,BA129)","v":2},{"$f":"ROW()","v":129},1]
[null,null,null,null,null,null,null,null,null,null,null,null,null,null,null,null,null,null,null,null,null,null,null,null,null,null,null,null,null,null,null,null,null,null,null,null,null,null,null,null,null,null,null,null,null,null,null,null,null,null,null,null,"COL0120281","Rehabilitacion cardio-pulmonar",{"$f":"COUNTIF(BA$4:BA130,BA130)","v":3},{"$f":"ROW()","v":130},1]
[null,null,null,null,null,null,null,null,null,null,null,null,null,null,null,null,null,null,null,null,null,null,null,null,null,null,null,null,null,null,null,null,null,null,null,null,null,null,null,null,null,null,null,null,null,null,null,null,null,null,null,null,"COL0120281","Rehabilitacion musculo esqueletica",{"$f":"COUNTIF(BA$4:BA131,BA131)","v":4},{"$f":"ROW()","v":131},1]
[null,null,null,null,null,null,null,null,null,null,null,null,null,null,null,null,null,null,null,null,null,null,null,null,null,null,null,null,null,null,null,null,null,null,null,null,null,null,null,null,null,null,null,null,null,null,null,null,null,null,null,null,"COL0120281","Rehabilitación Infantil",{"$f":"COUNTIF(BA$4:BA132,BA132)","v":5},{"$f":"ROW()","v":132},{"$f":"COUNTIF($AQ$3:$AQ$84,BA132)","v":1}]
[null,null,null,null,null,null,null,null,null,null,null,null,null,null,null,null,null,null,null,null,null,null,null,null,null,null,null,null,null,null,null,null,null,null,null,null,null,null,null,null,null,null,null,null,null,null,null,null,null,null,null,null,"COL0120281","Robotica en Rehabilitación",{"$f":"COUNTIF(BA$4:BA133,BA133)","v":6},{"$f":"ROW()","v":133},1]
[null,null,null,null,null,null,null,null,null,null,null,null,null,null,null,null,null,null,null,null,null,null,null,null,null,null,null,null,null,null,null,null,null,null,null,null,null,null,null,null,null,null,null,null,null,null,null,null,null,null,null,null,"COL0127649","Lìnea en Contabilidad Integral",{"$f":"COUNTIF(BA$4:BA134,BA134)","v":1},{"$f":"ROW()","v":134},1]
[null,null,null,null,null,null,null,null,null,null,null,null,null,null,null,null,null,null,null,null,null,null,null,null,null,null,null,null,null,null,null,null,null,null,null,null,null,null,null,null,null,null,null,null,null,null,null,null,null,null,null,null,"COL0138698","BIOETICA",{"$f":"COUNTIF(BA$4:BA135,BA135)","v":1},{"$f":"ROW()","v":135},1]
[null,null,null,null,null,null,null,null,null,null,null,null,null,null,null,null,null,null,null,null,null,null,null,null,null,null,null,null,null,null,null,null,null,null,null,null,null,null,null,null,null,null,null,null,null,null,null,null,null,null,null,null,"COL0138698","CEREBROVASCULAR",{"$f":"COUNTIF(BA$4:BA136,BA136)","v":2},{"$f":"ROW()","v":136},1]
[null,null,null,null,null,null,null,null,null,null,null,null,null,null,null,null,null,null,null,null,null,null,null,null,null,null,null,null,null,null,null,null,null,null,null,null,null,null,null,null,null,null,null,null,null,null,null,null,null,null,null,null,"COL0138698","DEMENCIAS",{"$f":"COUNTIF(BA$4:BA137,BA137)","v":3},{"$f":"ROW()","v":137},1]
[null,null,null,null,null,null,null,null,null,null,null,null,null,null,null,null,null,null,null,null,null,null,null,null,null,null,null,null,null,null,null,null,null,null,null,null,null,null,null,null,null,null,null,null,null,null,null,null,null,null,null,null,"COL0138698","DISTONIAS",{"$f":"COUNTIF(BA$4:BA138,BA138)","v":4},{"$f":"ROW()","v":138},1]
[null,null,null,null,null,null,null,null,null,null,null,null,null,null,null,null,null,null,null,null,null,null,null,null,null,null,null,null,null,null,null,null,null,null,null,null,null,null,null,null,null,null,null,null,null,null,null,null,null,null,null,null,"COL0138698","ENFERMEDADES HUERFANAS",{"$f":"COUNTIF(BA$4:BA139,BA139)","v":5},{"$f":"ROW()","v":139},1]
[null,null,null,null,null,null,null,null,null,null,null,null,null,null,null,null,null,null,null,null,null,null,null,null,null,null,null,null,null,null,null,null,null,null,null,null,null,null,null,null,null,null,null,null,null,null,null,null,null,null,null,null,"COL0138698","EPILEPSIA",{"$f":"COUNTIF(BA$4:BA140,BA140)","v":6},{"$f":"ROW()","v":140},1]
[null,null,null,null,null,null,null,null,null,null,null,null,null,null,null,null,null,null,null,null,null,null,null,null,null,null,null,null,null,null,null,null,null,null,null,null,null,null,null,null,null,null,null,null,null,null,null,null,null,null,null,null,"COL0138698","ESCLEROSIS MULTIPLE",{"$f":"COUNTIF(BA$4:BA141,BA141)","v":7},{"$f":"ROW()","v":141},1]
[null,null,null,null,null,null,null,null,null,null,null,null,null,null,null,null,null,null,null,null,null,null,null,null,null,null,null,null,null,null,null,null,null,null,null,null,null,null,null,null,null,null,null,null,null,null,null,null,null,null,null,null,"COL0138698","MOVIMIENTOS ANORMALES",{"$f":"COUNTIF(BA$4:BA142,BA142)","v":8},{"$f":"ROW()","v":142},1]
[null,null,null,null,null,null,null,null,null,null,null,null,null,null,null,null,null,null,null,null,null,null,null,null,null,null,null,null,null,null,null,null,null,null,null,null,null,null,null,null,null,null,null,null,null,null,null,null,null,null,null,null,"COL0138698","NEUROCIRUGÍA DE COLUMNA",{"$f":"COUNTIF(BA$4:BA143,BA143)","v":9},{"$f":"ROW()","v":143},1]
[null,null,null,null,null,null,null,null,null,null,null,null,null,null,null,null,null,null,null,null,null,null,null,null,null,null,null,null,null,null,null,null,null,null,null,null,null,null,null,null,null,null,null,null,null,null,null,null,null,null,null,null,"COL0138698","NEUROCIRUGÍA FUNCIONAL",{"$f":"COUNTIF(BA$4:BA144,BA144)","v":10},{"$f":"ROW()","v":144},1]
[null,null,null,null,null,null,null,null,null,null,null,null,null,null,null,null,null,null,null,null,null,null,null,null,null,null,null,null,null,null,null,null,null,null,null,null,null,null,null,null,null,null,null,null,null,null,null,null,null,null,null,null,"COL0138698","NEUROINFECCIONES",{"$f":"COUNTIF(BA$4:BA145,BA145)","v":11},{"$f":"ROW()","v":145},1]
[null,null,null,null,null,null,null,null,null,null,null,null,null,null,null,null,null,null,null,null,null,null,null,null,null,null,null,null,null,null,null,null,null,null,null,null,null,null,null,null,null,null,null,null,null,null,null,null,null,null,null,null,"COL0138698","NEUROMUSCULAR",{"$f":"COUNTIF(BA$4:BA146,BA146)","v":12},{"$f":"ROW()","v":146},1]
[null,null,null,null,null,null,null,null,null,null,null,null,null,null,null,null,null,null,null,null,null,null,null,null,null,null,null,null,null,null,null,null,null,null,null,null,null,null,null,null,null,null,null,null,null,null,null,null,null,null,null,null,"COL0138698","NEUROONCOLOGIA",{"$f":"COUNTIF(BA$4:BA147,BA147)","v":13},{"$f":"ROW()","v":147},1]
[null,null,null,null,null,null,null,null,null,null,null,null,null,null,null,null,null,null,null,null,null,null,null,null,null,null,null,null,null,null,null,null,null,null,null,null,null,null,null,null,null,null,null,null,null,null,null,null,null,null,null,null,"COL0138698","PARALISIS CEREBRAL",{"$f":"COUNTIF(BA$4:BA148,BA148)","v":14},{"$f":"ROW()","v":148},1]
[null,null,null,null,null,null,null,null,null,null,null,null,null,null,null,null,null,null,null,null,null,null,null,null,null,null,null,null,null,null,null,null,null,null,null,null,null,null,null,null,null,null,null,null,null,null,null,null,null,null,null,null,"COL0138698","RETARDO MENTAL",{"$f":"COUNTIF(BA$4:BA149,BA149)","v":15},{"$f":"ROW()","v":149},1]
[null,null,null,null,null,null,null,null,null,null,null,null,null,null,null,null,null,null,null,null,null,null,null,null,null,null,null,null,null,null,null,null,null,null,null,null,null,null,null,null,null,null,null,null,null,null,null,null,null,null,null,null,"COL0138698","SALUD MENTAL",{"$f":"COUNTIF(BA$4:BA150,BA150)","v":16},{"$f":"ROW()","v":150},1]
[null,null,null,null,null,null,null,null,null,null,null,null,null,null,null,null,null,null,null,null,null,null,null,null,null,null,null,null,null,null,null,null,null,null,null,null,null,null,null,null,null,null,null,null,null,null,null,null,null,null,null,null,"COL0138698","SUEÑO",{"$f":"COUNTIF(BA$4:BA151,BA151)","v":17},{"$f":"ROW()","v":151},1]
[null,null,null,null,null,null,null,null,null,null,null,null,null,null,null,null,null,null,null,null,null,null,null,null,null,null,null,null,null,null,null,null,null,null,null,null,null,null,null,null,null,null,null,null,null,null,null,null,null,null,null,null,"COL0138698","TRASTORNOS DEL NEURODESARROLLO",{"$f":"COUNTIF(BA$4:BA152,BA152)","v":18},{"$f":"ROW()","v":152},1]
[null,null,null,null,null,null,null,null,null,null,null,null,null,null,null,null,null,null,null,null,null,null,null,null,null,null,null,null,null,null,null,null,null,null,null,null,null,null,null,null,null,null,null,null,null,null,null,null,null,null,null,null,"COL0138698","TRAUMA DE CRÁNEO Y COLUMNA",{"$f":"COUNTIF(BA$4:BA153,BA153)","v":19},{"$f":"ROW()","v":153},1]
[null,null,null,null,null,null,null,null,null,null,null,null,null,null,null,null,null,null,null,null,null,null,null,null,null,null,null,null,null,null,null,null,null,null,null,null,null,null,null,null,null,null,null,null,null,null,null,null,null,null,null,null,"COL0013719","Biología y Epidemiología de hongos patógenos humanos.",{"$f":"COUNTIF(BA$4:BA154,BA154)","v":1},{"$f":"ROW()","v":154},1]
[null,null,null,null,null,null,null,null,null,null,null,null,null,null,null,null,null,null,null,null,null,null,null,null,null,null,null,null,null,null,null,null,null,null,null,null,null,null,null,null,null,null,null,null,null,null,null,null,null,null,null,null,"COL0013719","Diversidad, Ecología y Bioprospección",{"$f":"COUNTIF(BA$4:BA155,BA155)","v":2},{"$f":"ROW()","v":155},1]
[null,null,null,null,null,null,null,null,null,null,null,null,null,null,null,null,null,null,null,null,null,null,null,null,null,null,null,null,null,null,null,null,null,null,null,null,null,null,null,null,null,null,null,null,null,null,null,null,null,null,null,null,"COL0013719","Fitopatología",{"$f":"COUNTIF(BA$4:BA156,BA156)","v":3},{"$f":"ROW()","v":156},1]
[null,null,null,null,null,null,null,null,null,null,null,null,null,null,null,null,null,null,null,null,null,null,null,null,null,null,null,null,null,null,null,null,null,null,null,null,null,null,null,null,null,null,null,null,null,null,null,null,null,null,null,null,"COL0013719","Genómica y bioinformática",{"$f":"COUNTIF(BA$4:BA157,BA157)","v":4},{"$f":"ROW()","v":157},1]
[null,null,null,null,null,null,null,null,null,null,null,null,null,null,null,null,null,null,null,null,null,null,null,null,null,null,null,null,null,null,null,null,null,null,null,null,null,null,null,null,null,null,null,null,null,null,null,null,null,null,null,null,"COL0013719","Susceptibilidad a Antifungícos",{"$f":"COUNTIF(BA$4:BA158,BA158)","v":5},{"$f":"ROW()","v":158},1]
[null,null,null,null,null,null,null,null,null,null,null,null,null,null,null,null,null,null,null,null,null,null,null,null,null,null,null,null,null,null,null,null,null,null,null,null,null,null,null,null,null,null,null,null,null,null,null,null,null,null,null,null,"COL0026486","Bioprocesos",{"$f":"COUNTIF(BA$4:BA159,BA159)","v":1},{"$f":"ROW()","v":159},1]
[null,null,null,null,null,null,null,null,null,null,null,null,null,null,null,null,null,null,null,null,null,null,null,null,null,null,null,null,null,null,null,null,null,null,null,null,null,null,null,null,null,null,null,null,null,null,null,null,null,null,null,null,"COL0026486","Biorrefinerias para tratamiento de agua",{"$f":"COUNTIF(BA$4:BA160,BA160)","v":2},{"$f":"ROW()","v":160},1]
[null,null,null,null,null,null,null,null,null,null,null,null,null,null,null,null,null,null,null,null,null,null,null,null,null,null,null,null,null,null,null,null,null,null,null,null,null,null,null,null,null,null,null,null,null,null,null,null,null,null,null,null,"COL0026486","Ciudades Sostenibles",{"$f":"COUNTIF(BA$4:BA161,BA161)","v":3},{"$f":"ROW()","v":161},1]
[null,null,null,null,null,null,null,null,null,null,null,null,null,null,null,null,null,null,null,null,null,null,null,null,null,null,null,null,null,null,null,null,null,null,null,null,null,null,null,null,null,null,null,null,null,null,null,null,null,null,null,null,"COL0026486","Eficiencia Energética en el Tratamiento de Agua",{"$f":"COUNTIF(BA$4:BA162,BA162)","v":4},{"$f":"ROW()","v":162},1]
[null,null,null,null,null,null,null,null,null,null,null,null,null,null,null,null,null,null,null,null,null,null,null,null,null,null,null,null,null,null,null,null,null,null,null,null,null,null,null,null,null,null,null,null,null,null,null,null,null,null,null,null,"COL0026486","Energías renovables y asequibles",{"$f":"COUNTIF(BA$4:BA163,BA163)","v":5},{"$f":"ROW()","v":163},1]
[null,null,null,null,null,null,null,null,null,null,null,null,null,null,null,null,null,null,null,null,null,null,null,null,null,null,null,null,null,null,null,null,null,null,null,null,null,null,null,null,null,null,null,null,null,null,null,null,null,null,null,null,"COL0026486","Procesos físico-químicos y de oxidación avanzada",{"$f":"COUNTIF(BA$4:BA164,BA164)","v":6},{"$f":"ROW()","v":164},1]
[null,null,null,null,null,null,null,null,null,null,null,null,null,null,null,null,null,null,null,null,null,null,null,null,null,null,null,null,null,null,null,null,null,null,null,null,null,null,null,null,null,null,null,null,null,null,null,null,null,null,null,null,"COL0028918","Constitución, Derecho Público y Estado",{"$f":"COUNTIF(BA$4:BA165,BA165)","v":1},{"$f":"ROW()","v":165},1]
[null,null,null,null,null,null,null,null,null,null,null,null,null,null,null,null,null,null,null,null,null,null,null,null,null,null,null,null,null,null,null,null,null,null,null,null,null,null,null,null,null,null,null,null,null,null,null,null,null,null,null,null,"COL0028918","Derecho Historia y Filosofía",{"$f":"COUNTIF(BA$4:BA166,BA166)","v":2},{"$f":"ROW()","v":166},1]
[null,null,null,null,null,null,null,null,null,null,null,null,null,null,null,null,null,null,null,null,null,null,null,null,null,null,null,null,null,null,null,null,null,null,null,null,null,null,null,null,null,null,null,null,null,null,null,null,null,null,null,null,"COL0028918","Derecho Internacional, Derechos Humanos, Derecho Internacional Humanitario",{"$f":"COUNTIF(BA$4:BA167,BA167)","v":3},{"$f":"ROW()","v":167},1]
[null,null,null,null,null,null,null,null,null,null,null,null,null,null,null,null,null,null,null,null,null,null,null,null,null,null,null,null,null,null,null,null,null,null,null,null,null,null,null,null,null,null,null,null,null,null,null,null,null,null,null,null,"COL0028918","Derecho Penal y Justicia Militar",{"$f":"COUNTIF(BA$4:BA168,BA168)","v":4},{"$f":"ROW()","v":168},1]
[null,null,null,null,null,null,null,null,null,null,null,null,null,null,null,null,null,null,null,null,null,null,null,null,null,null,null,null,null,null,null,null,null,null,null,null,null,null,null,null,null,null,null,null,null,null,null,null,null,null,null,null,"COL0028918","Derecho, Educación y Sociedad",{"$f":"COUNTIF(BA$4:BA169,BA169)","v":5},{"$f":"ROW()","v":169},1]
[null,null,null,null,null,null,null,null,null,null,null,null,null,null,null,null,null,null,null,null,null,null,null,null,null,null,null,null,null,null,null,null,null,null,null,null,null,null,null,null,null,null,null,null,null,null,null,null,null,null,null,null,"COL0066768","DERECHO DE LAS RELACIONES INTERNACIONALES",{"$f":"COUNTIF(BA$4:BA170,BA170)","v":1},{"$f":"ROW()","v":170},1]
[null,null,null,null,null,null,null,null,null,null,null,null,null,null,null,null,null,null,null,null,null,null,null,null,null,null,null,null,null,null,null,null,null,null,null,null,null,null,null,null,null,null,null,null,null,null,null,null,null,null,null,null,"COL0066768","ECONOMIA Y NEGOCIOS INTERNACIONALES",{"$f":"COUNTIF(BA$4:BA171,BA171)","v":2},{"$f":"ROW()","v":171},1]
[null,null,null,null,null,null,null,null,null,null,null,null,null,null,null,null,null,null,null,null,null,null,null,null,null,null,null,null,null,null,null,null,null,null,null,null,null,null,null,null,null,null,null,null,null,null,null,null,null,null,null,null,"COL0066768","ESTUDIOS POLÍTICOS",{"$f":"COUNTIF(BA$4:BA172,BA172)","v":3},{"$f":"ROW()","v":172},1]
[null,null,null,null,null,null,null,null,null,null,null,null,null,null,null,null,null,null,null,null,null,null,null,null,null,null,null,null,null,null,null,null,null,null,null,null,null,null,null,null,null,null,null,null,null,null,null,null,null,null,null,null,"COL0066768","ESTUDIOS REGIONALES",{"$f":"COUNTIF(BA$4:BA173,BA173)","v":4},{"$f":"ROW()","v":173},1]
[null,null,null,null,null,null,null,null,null,null,null,null,null,null,null,null,null,null,null,null,null,null,null,null,null,null,null,null,null,null,null,null,null,null,null,null,null,null,null,null,null,null,null,null,null,null,null,null,null,null,null,null,"COL0066768","HISTORIA INTERNACIONAL",{"$f":"COUNTIF(BA$4:BA174,BA174)","v":5},{"$f":"ROW()","v":174},1]
[null,null,null,null,null,null,null,null,null,null,null,null,null,null,null,null,null,null,null,null,null,null,null,null,null,null,null,null,null,null,null,null,null,null,null,null,null,null,null,null,null,null,null,null,null,null,null,null,null,null,null,null,"COL0066768","RELACIONES INTERNACIONALES",{"$f":"COUNTIF(BA$4:BA175,BA175)","v":6},{"$f":"ROW()","v":175},1]
[null,null,null,null,null,null,null,null,null,null,null,null,null,null,null,null,null,null,null,null,null,null,null,null,null,null,null,null,null,null,null,null,null,null,null,null,null,null,null,null,null,null,null,null,null,null,null,null,null,null,null,null,"COL0142449","CULTURA CONSTITUCIONAL, PAZ Y JUSTICIA TRANSICIONAL",{"$f":"COUNTIF(BA$4:BA176,BA176)","v":1},{"$f":"ROW()","v":176},1]
[null,null,null,null,null,null,null,null,null,null,null,null,null,null,null,null,null,null,null,null,null,null,null,null,null,null,null,null,null,null,null,null,null,null,null,null,null,null,null,null,null,null,null,null,null,null,null,null,null,null,null,null,"COL0142449","BIOÉTICA, DERECHOS HUMANOS Y EDUCACIÓN",{"$f":"COUNTIF(BA$4:BA177,BA177)","v":2},{"$f":"ROW()","v":177},1]
[null,null,null,null,null,null,null,null,null,null,null,null,null,null,null,null,null,null,null,null,null,null,null,null,null,null,null,null,null,null,null,null,null,null,null,null,null,null,null,null,null,null,null,null,null,null,null,null,null,null,null,null,"COL0142449","POLÍTICA CRIMINAL, DERECHO PENAL Y CRIMINOLOGÍA",{"$f":"COUNTIF(BA$4:BA178,BA178)","v":3},{"$f":"ROW()","v":178},1]
[null,null,null,null,null,null,null,null,null,null,null,null,null,null,null,null,null,null,null,null,null,null,null,null,null,null,null,null,null,null,null,null,null,null,null,null,null,null,null,null,null,null,null,null,null,null,null,null,null,null,null,null,"COL0142449","POLÍTICAS PÚBLICAS, DERECHO ADMINISTRATIVO Y DESARROLLO",{"$f":"COUNTIF(BA$4:BA179,BA179)","v":4},{"$f":"ROW()","v":179},1]
[null,null,null,null,null,null,null,null,null,null,null,null,null,null,null,null,null,null,null,null,null,null,null,null,null,null,null,null,null,null,null,null,null,null,null,null,null,null,null,null,null,null,null,null,null,null,null,null,null,null,null,null,"COL0142449","PROPIEDAD INTELECTUAL Y TRANSFERENCIA TECNOLÓGICA",{"$f":"COUNTIF(BA$4:BA180,BA180)","v":5},{"$f":"ROW()","v":180},1]
[null,null,null,null,null,null,null,null,null,null,null,null,null,null,null,null,null,null,null,null,null,null,null,null,null,null,null,null,null,null,null,null,null,null,null,null,null,null,null,null,null,null,null,null,null,null,null,null,null,null,null,null,"COL0142449","SOCIOLOGÍA JURÍDICA, DERECHO PÚBLICO Y TEORÍA JURÍDICA",{"$f":"COUNTIF(BA$4:BA181,BA181)","v":6},{"$f":"ROW()","v":181},1]
[null,null,null,null,null,null,null,null,null,null,null,null,null,null,null,null,null,null,null,null,null,null,null,null,null,null,null,null,null,null,null,null,null,null,null,null,null,null,null,null,null,null,null,null,null,null,null,null,null,null,null,null,"COL0126015","INMUNODERMATOLOGIA",{"$f":"COUNTIF(BA$4:BA182,BA182)","v":1},{"$f":"ROW()","v":182},1]
[null,null,null,null,null,null,null,null,null,null,null,null,null,null,null,null,null,null,null,null,null,null,null,null,null,null,null,null,null,null,null,null,null,null,null,null,null,null,null,null,null,null,null,null,null,null,null,null,null,null,null,null,"COL0126015","PSORIASIS",{"$f":"COUNTIF(BA$4:BA183,BA183)","v":2},{"$f":"ROW()","v":183},1]
[null,null,null,null,null,null,null,null,null,null,null,null,null,null,null,null,null,null,null,null,null,null,null,null,null,null,null,null,null,null,null,null,null,null,null,null,null,null,null,null,null,null,null,null,null,null,null,null,null,null,null,null,"COL0005439","MODELACIÓN NUMÉRICA",{"$f":"COUNTIF(BA$4:BA184,BA184)","v":1},{"$f":"ROW()","v":184},1]
[null,null,null,null,null,null,null,null,null,null,null,null,null,null,null,null,null,null,null,null,null,null,null,null,null,null,null,null,null,null,null,null,null,null,null,null,null,null,null,null,null,null,null,null,null,null,null,null,null,null,null,null,"COL0005439","ORDENACIÓN DEL TERRITORIO",{"$f":"COUNTIF(BA$4:BA185,BA185)","v":2},{"$f":"ROW()","v":185},1]
[null,null,null,null,null,null,null,null,null,null,null,null,null,null,null,null,null,null,null,null,null,null,null,null,null,null,null,null,null,null,null,null,null,null,null,null,null,null,null,null,null,null,null,null,null,null,null,null,null,null,null,null,"COL0005439","PAVIMENTOS",{"$f":"COUNTIF(BA$4:BA186,BA186)","v":3},{"$f":"ROW()","v":186},1]
[null,null,null,null,null,null,null,null,null,null,null,null,null,null,null,null,null,null,null,null,null,null,null,null,null,null,null,null,null,null,null,null,null,null,null,null,null,null,null,null,null,null,null,null,null,null,null,null,null,null,null,null,"COL0005439","SUELOS",{"$f":"COUNTIF(BA$4:BA187,BA187)","v":4},{"$f":"ROW()","v":187},1]
[null,null,null,null,null,null,null,null,null,null,null,null,null,null,null,null,null,null,null,null,null,null,null,null,null,null,null,null,null,null,null,null,null,null,null,null,null,null,null,null,null,null,null,null,null,null,null,null,null,null,null,null,"COL0005439","TRANSPORTES",{"$f":"COUNTIF(BA$4:BA188,BA188)","v":5},{"$f":"ROW()","v":188},1]
[null,null,null,null,null,null,null,null,null,null,null,null,null,null,null,null,null,null,null,null,null,null,null,null,null,null,null,null,null,null,null,null,null,null,null,null,null,null,null,null,null,null,null,null,null,null,null,null,null,null,null,null,"COL0117052","Ambiental",{"$f":"COUNTIF(BA$4:BA189,BA189)","v":1},{"$f":"ROW()","v":189},1]
[null,null,null,null,null,null,null,null,null,null,null,null,null,null,null,null,null,null,null,null,null,null,null,null,null,null,null,null,null,null,null,null,null,null,null,null,null,null,null,null,null,null,null,null,null,null,null,null,null,null,null,null,"COL0117052","Arte y Tecnología",{"$f":"COUNTIF(BA$4:BA190,BA190)","v":2},{"$f":"ROW()","v":190},1]
[null,null,null,null,null,null,null,null,null,null,null,null,null,null,null,null,null,null,null,null,null,null,null,null,null,null,null,null,null,null,null,null,null,null,null,null,null,null,null,null,null,null,null,null,null,null,null,null,null,null,null,null,"COL0117052","Energía",{"$f":"COUNTIF(BA$4:BA191,BA191)","v":3},{"$f":"ROW()","v":191},1]
[null,null,null,null,null,null,null,null,null,null,null,null,null,null,null,null,null,null,null,null,null,null,null,null,null,null,null,null,null,null,null,null,null,null,null,null,null,null,null,null,null,null,null,null,null,null,null,null,null,null,null,null,"COL0117052","Gestión e Innovación",{"$f":"COUNTIF(BA$4:BA192,BA192)","v":4},{"$f":"ROW()","v":192},1]
[null,null,null,null,null,null,null,null,null,null,null,null,null,null,null,null,null,null,null,null,null,null,null,null,null,null,null,null,null,null,null,null,null,null,null,null,null,null,null,null,null,null,null,null,null,null,null,null,null,null,null,null,"COL0117052","Materiales",{"$f":"COUNTIF(BA$4:BA193,BA193)","v":5},{"$f":"ROW()","v":193},1]
[null,null,null,null,null,null,null,null,null,null,null,null,null,null,null,null,null,null,null,null,null,null,null,null,null,null,null,null,null,null,null,null,null,null,null,null,null,null,null,null,null,null,null,null,null,null,null,null,null,null,null,null,"COL0152463","CURRÍCULO Y EVALUACIÓN",{"$f":"COUNTIF(BA$4:BA194,BA194)","v":1},{"$f":"ROW()","v":194},1]
[null,null,null,null,null,null,null,null,null,null,null,null,null,null,null,null,null,null,null,null,null,null,null,null,null,null,null,null,null,null,null,null,null,null,null,null,null,null,null,null,null,null,null,null,null,null,null,null,null,null,null,null,"COL0152463","DOCENCIA Y PEDAGOGÍA",{"$f":"COUNTIF(BA$4:BA195,BA195)","v":2},{"$f":"ROW()","v":195},1]
[null,null,null,null,null,null,null,null,null,null,null,null,null,null,null,null,null,null,null,null,null,null,null,null,null,null,null,null,null,null,null,null,null,null,null,null,null,null,null,null,null,null,null,null,null,null,null,null,null,null,null,null,"COL0152463","INVESTIGACIÓN CLINICA",{"$f":"COUNTIF(BA$4:BA196,BA196)","v":3},{"$f":"ROW()","v":196},{"$f":"COUNTIF($AQ$3:$AQ$84,BA196)","v":1}]
[null,null,null,null,null,null,null,null,null,null,null,null,null,null,null,null,null,null,null,null,null,null,null,null,null,null,null,null,null,null,null,null,null,null,null,null,null,null,null,null,null,null,null,null,null,null,null,null,null,null,null,null,"COL0152463","Proyección Social y contexto de formación en Salud Pública",{"$f":"COUNTIF(BA$4:BA197,BA197)","v":4},{"$f":"ROW()","v":197},1]
[null,null,null,null,null,null,null,null,null,null,null,null,null,null,null,null,null,null,null,null,null,null,null,null,null,null,null,null,null,null,null,null,null,null,null,null,null,null,null,null,null,null,null,null,null,null,null,null,null,null,null,null,"COL0101099","Educación y Sociedad",{"$f":"COUNTIF(BA$4:BA198,BA198)","v":1},{"$f":"ROW()","v":198},1]
[null,null,null,null,null,null,null,null,null,null,null,null,null,null,null,null,null,null,null,null,null,null,null,null,null,null,null,null,null,null,null,null,null,null,null,null,null,null,null,null,null,null,null,null,null,null,null,null,null,null,null,null,"COL0101099","FILOSOFIA POLITICA Y REPONSABILIDAD SOCIAL",{"$f":"COUNTIF(BA$4:BA199,BA199)","v":2},{"$f":"ROW()","v":199},1]
[null,null,null,null,null,null,null,null,null,null,null,null,null,null,null,null,null,null,null,null,null,null,null,null,null,null,null,null,null,null,null,null,null,null,null,null,null,null,null,null,null,null,null,null,null,null,null,null,null,null,null,null,"COL0101099","HUMANIDADES, CULTURA Y UNIVERSIDAD",{"$f":"COUNTIF(BA$4:BA200,BA200)","v":3},{"$f":"ROW()","v":200},1]
[null,null,null,null,null,null,null,null,null,null,null,null,null,null,null,null,null,null,null,null,null,null,null,null,null,null,null,null,null,null,null,null,null,null,null,null,null,null,null,null,null,null,null,null,null,null,null,null,null,null,null,null,"COL0101099","Liderazgo y gestión en educación.",{"$f":"COUNTIF(BA$4:BA201,BA201)","v":4},{"$f":"ROW()","v":201},1]
[null,null,null,null,null,null,null,null,null,null,null,null,null,null,null,null,null,null,null,null,null,null,null,null,null,null,null,null,null,null,null,null,null,null,null,null,null,null,null,null,null,null,null,null,null,null,null,null,null,null,null,null,"COL0191078","Enfermedades agudas y cronicas por exposición a agentes químicos y radiológicos",{"$f":"COUNTIF(BA$4:BA202,BA202)","v":1},{"$f":"ROW()","v":202},1]
[null,null,null,null,null,null,null,null,null,null,null,null,null,null,null,null,null,null,null,null,null,null,null,null,null,null,null,null,null,null,null,null,null,null,null,null,null,null,null,null,null,null,null,null,null,null,null,null,null,null,null,null,"COL0191078","TOXINOLOGÍA",{"$f":"COUNTIF(BA$4:BA203,BA203)","v":2},{"$f":"ROW()","v":203},1]
[null,null,null,null,null,null,null,null,null,null,null,null,null,null,null,null,null,null,null,null,null,null,null,null,null,null,null,null,null,null,null,null,null,null,null,null,null,null,null,null,null,null,null,null,null,null,null,null,null,null,null,null,"COL0066669","Estrategia y Seguridad",{"$f":"COUNTIF(BA$4:BA204,BA204)","v":1},{"$f":"ROW()","v":204},1]
[null,null,null,null,null,null,null,null,null,null,null,null,null,null,null,null,null,null,null,null,null,null,null,null,null,null,null,null,null,null,null,null,null,null,null,null,null,null,null,null,null,null,null,null,null,null,null,null,null,null,null,null,"COL0066669","Paz y Posconflicto",{"$f":"COUNTIF(BA$4:BA205,BA205)","v":2},{"$f":"ROW()","v":205},1]
[null,null,null,null,null,null,null,null,null,null,null,null,null,null,null,null,null,null,null,null,null,null,null,null,null,null,null,null,null,null,null,null,null,null,null,null,null,null,null,null,null,null,null,null,null,null,null,null,null,null,null,null,"COL0066669","Seguridad Física",{"$f":"COUNTIF(BA$4:BA206,BA206)","v":3},{"$f":"ROW()","v":206},1]
[null,null,null,null,null,null,null,null,null,null,null,null,null,null,null,null,null,null,null,null,null,null,null,null,null,null,null,null,null,null,null,null,null,null,null,null,null,null,null,null,null,null,null,null,null,null,null,null,null,null,null,null,"COL0066669","Seguridad de Personas",{"$f":"COUNTIF(BA$4:BA207,BA207)","v":4},{"$f":"ROW()","v":207},1]
[null,null,null,null,null,null,null,null,null,null,null,null,null,null,null,null,null,null,null,null,null,null,null,null,null,null,null,null,null,null,null,null,null,null,null,null,null,null,null,null,null,null,null,null,null,null,null,null,null,null,null,null,"COL0066669","Seguridad y Salud en el Trabajo",{"$f":"COUNTIF(BA$4:BA208,BA208)","v":5},{"$f":"ROW()","v":208},1]
[null,null,null,null,null,null,null,null,null,null,null,null,null,null,null,null,null,null,null,null,null,null,null,null,null,null,null,null,null,null,null,null,null,null,null,null,null,null,null,null,null,null,null,null,null,null,null,null,null,null,null,null,"COL0194721","Cirugía Abdominal, Tórax y Mínimamente Invasiva",{"$f":"COUNTIF(BA$4:BA209,BA209)","v":1},{"$f":"ROW()","v":209},1]
[null,null,null,null,null,null,null,null,null,null,null,null,null,null,null,null,null,null,null,null,null,null,null,null,null,null,null,null,null,null,null,null,null,null,null,null,null,null,null,null,null,null,null,null,null,null,null,null,null,null,null,null,"COL0194721","Cirugía Vascular",{"$f":"COUNTIF(BA$4:BA210,BA210)","v":2},{"$f":"ROW()","v":210},1]
[null,null,null,null,null,null,null,null,null,null,null,null,null,null,null,null,null,null,null,null,null,null,null,null,null,null,null,null,null,null,null,null,null,null,null,null,null,null,null,null,null,null,null,null,null,null,null,null,null,null,null,null,"COL0194721","Congénitas",{"$f":"COUNTIF(BA$4:BA211,BA211)","v":3},{"$f":"ROW()","v":211},1]
[null,null,null,null,null,null,null,null,null,null,null,null,null,null,null,null,null,null,null,null,null,null,null,null,null,null,null,null,null,null,null,null,null,null,null,null,null,null,null,null,null,null,null,null,null,null,null,null,null,null,null,null,"COL0194721","Educación",{"$f":"COUNTIF(BA$4:BA212,BA212)","v":4},{"$f":"ROW()","v":212},1]
[null,null,null,null,null,null,null,null,null,null,null,null,null,null,null,null,null,null,null,null,null,null,null,null,null,null,null,null,null,null,null,null,null,null,null,null,null,null,null,null,null,null,null,null,null,null,null,null,null,null,null,null,"COL0194721","Oncología",{"$f":"COUNTIF(BA$4:BA213,BA213)","v":5},{"$f":"ROW()","v":213},1]
[null,null,null,null,null,null,null,null,null,null,null,null,null,null,null,null,null,null,null,null,null,null,null,null,null,null,null,null,null,null,null,null,null,null,null,null,null,null,null,null,null,null,null,null,null,null,null,null,null,null,null,null,"COL0194721","Trauma",{"$f":"COUNTIF(BA$4:BA214,BA214)","v":6},{"$f":"ROW()","v":214},1]
[null,null,null,null,null,null,null,null,null,null,null,null,null,null,null,null,null,null,null,null,null,null,null,null,null,null,null,null,null,null,null,null,null,null,null,null,null,null,null,null,null,null,null,null,null,null,null,null,null,null,null,null,"COL0048492","Estudios moleculares, ecológicos, morfológicos, nutricionales, ontogénicos y de cultivo de organismos acuáticos.",{"$f":"COUNTIF(BA$4:BA215,BA215)","v":1},{"$f":"ROW()","v":215},1]
[null,null,null,null,null,null,null,null,null,null,null,null,null,null,null,null,null,null,null,null,null,null,null,null,null,null,null,null,null,null,null,null,null,null,null,null,null,null,null,null,null,null,null,null,null,null,null,null,null,null,null,null,"COL0048492","Estudios morfológicos, tróficos, ecológicos, bióticos y abióticos de humedales colombianos.",{"$f":"COUNTIF(BA$4:BA216,BA216)","v":2},{"$f":"ROW()","v":216},1]
[null,null,null,null,null,null,null,null,null,null,null,null,null,null,null,null,null,null,null,null,null,null,null,null,null,null,null,null,null,null,null,null,null,null,null,null,null,null,null,null,null,null,null,null,null,null,null,null,null,null,null,null,"COL0048492","Impacto antropogénico en ecosistemas acuáticos.",{"$f":"COUNTIF(BA$4:BA217,BA217)","v":3},{"$f":"ROW()","v":217},1]
[null,null,null,null,null,null,null,null,null,null,null,null,null,null,null,null,null,null,null,null,null,null,null,null,null,null,null,null,null,null,null,null,null,null,null,null,null,null,null,null,null,null,null,null,null,null,null,null,null,null,null,null,"COL0152319","Epidemiología Clínica",{"$f":"COUNTIF(BA$4:BA218,BA218)","v":1},{"$f":"ROW()","v":218},1]
[null,null,null,null,null,null,null,null,null,null,null,null,null,null,null,null,null,null,null,null,null,null,null,null,null,null,null,null,null,null,null,null,null,null,null,null,null,null,null,null,null,null,null,null,null,null,null,null,null,null,null,null,"COL0152319","Epidemiología General.",{"$f":"COUNTIF(BA$4:BA219,BA219)","v":2},{"$f":"ROW()","v":219},1]
[null,null,null,null,null,null,null,null,null,null,null,null,null,null,null,null,null,null,null,null,null,null,null,null,null,null,null,null,null,null,null,null,null,null,null,null,null,null,null,null,null,null,null,null,null,null,null,null,null,null,null,null,"COL0152319","Formación del Recurso Humano en Salud en Epidemiología y Salud Colectiva",{"$f":"COUNTIF(BA$4:BA220,BA220)","v":3},{"$f":"ROW()","v":220},1]
[null,null,null,null,null,null,null,null,null,null,null,null,null,null,null,null,null,null,null,null,null,null,null,null,null,null,null,null,null,null,null,null,null,null,null,null,null,null,null,null,null,null,null,null,null,null,null,null,null,null,null,null,"COL0152319","Las Tecnologías de la Información y de la comunicación en Epidemiología y Salud Colectiva",{"$f":"COUNTIF(BA$4:BA221,BA221)","v":4},{"$f":"ROW()","v":221},1]
[null,null,null,null,null,null,null,null,null,null,null,null,null,null,null,null,null,null,null,null,null,null,null,null,null,null,null,null,null,null,null,null,null,null,null,null,null,null,null,null,null,null,null,null,null,null,null,null,null,null,null,null,"COL0152319","Medicina tradicional complementaria.",{"$f":"COUNTIF(BA$4:BA222,BA222)","v":5},{"$f":"ROW()","v":222},1]
[null,null,null,null,null,null,null,null,null,null,null,null,null,null,null,null,null,null,null,null,null,null,null,null,null,null,null,null,null,null,null,null,null,null,null,null,null,null,null,null,null,null,null,null,null,null,null,null,null,null,null,null,"COL0036749","Accesibilidad",{"$f":"COUNTIF(BA$4:BA223,BA223)","v":1},{"$f":"ROW()","v":223},1]
[null,null,null,null,null,null,null,null,null,null,null,null,null,null,null,null,null,null,null,null,null,null,null,null,null,null,null,null,null,null,null,null,null,null,null,null,null,null,null,null,null,null,null,null,null,null,null,null,null,null,null,null,"COL0036749","Multimedia Analítica",{"$f":"COUNTIF(BA$4:BA224,BA224)","v":2},{"$f":"ROW()","v":224},1]
[null,null,null,null,null,null,null,null,null,null,null,null,null,null,null,null,null,null,null,null,null,null,null,null,null,null,null,null,null,null,null,null,null,null,null,null,null,null,null,null,null,null,null,null,null,null,null,null,null,null,null,null,"COL0134044","ORTOPEDIA INFANTIL",{"$f":"COUNTIF(BA$4:BA225,BA225)","v":1},{"$f":"ROW()","v":225},1]
[null,null,null,null,null,null,null,null,null,null,null,null,null,null,null,null,null,null,null,null,null,null,null,null,null,null,null,null,null,null,null,null,null,null,null,null,null,null,null,null,null,null,null,null,null,null,null,null,null,null,null,null,"COL0134044","PATOLOGIA DE CADERA",{"$f":"COUNTIF(BA$4:BA226,BA226)","v":2},{"$f":"ROW()","v":226},1]
[null,null,null,null,null,null,null,null,null,null,null,null,null,null,null,null,null,null,null,null,null,null,null,null,null,null,null,null,null,null,null,null,null,null,null,null,null,null,null,null,null,null,null,null,null,null,null,null,null,null,null,null,"COL0134044","PATOLOGIA DE COLUMNA, PELVIS Y ACETABULO",{"$f":"COUNTIF(BA$4:BA227,BA227)","v":3},{"$f":"ROW()","v":227},1]
[null,null,null,null,null,null,null,null,null,null,null,null,null,null,null,null,null,null,null,null,null,null,null,null,null,null,null,null,null,null,null,null,null,null,null,null,null,null,null,null,null,null,null,null,null,null,null,null,null,null,null,null,"COL0134044","PATOLOGIA DE MANO Y MIEMBRO SUPERIOR",{"$f":"COUNTIF(BA$4:BA228,BA228)","v":4},{"$f":"ROW()","v":228},1]
[null,null,null,null,null,null,null,null,null,null,null,null,null,null,null,null,null,null,null,null,null,null,null,null,null,null,null,null,null,null,null,null,null,null,null,null,null,null,null,null,null,null,null,null,null,null,null,null,null,null,null,null,"COL0134044","PATOLOGIA DE PIE Y TOBILLO",{"$f":"COUNTIF(BA$4:BA229,BA229)","v":5},{"$f":"ROW()","v":229},1]
[null,null,null,null,null,null,null,null,null,null,null,null,null,null,null,null,null,null,null,null,null,null,null,null,null,null,null,null,null,null,null,null,null,null,null,null,null,null,null,null,null,null,null,null,null,null,null,null,null,null,null,null,"COL0134044","PATOLOGIA DE RODILLA",{"$f":"COUNTIF(BA$4:BA230,BA230)","v":6},{"$f":"ROW()","v":230},1]
[null,null,null,null,null,null,null,null,null,null,null,null,null,null,null,null,null,null,null,null,null,null,null,null,null,null,null,null,null,null,null,null,null,null,null,null,null,null,null,null,null,null,null,null,null,null,null,null,null,null,null,null,"COL0134044","TRAUMA Y FIJACION EXTERNA",{"$f":"COUNTIF(BA$4:BA231,BA231)","v":7},{"$f":"ROW()","v":231},1]
[null,null,null,null,null,null,null,null,null,null,null,null,null,null,null,null,null,null,null,null,null,null,null,null,null,null,null,null,null,null,null,null,null,null,null,null,null,null,null,null,null,null,null,null,null,null,null,null,null,null,null,null,"COL0052163","Internet de las Cosas",{"$f":"COUNTIF(BA$4:BA232,BA232)","v":1},{"$f":"ROW()","v":232},1]
[null,null,null,null,null,null,null,null,null,null,null,null,null,null,null,null,null,null,null,null,null,null,null,null,null,null,null,null,null,null,null,null,null,null,null,null,null,null,null,null,null,null,null,null,null,null,null,null,null,null,null,null,"COL0052163","Procesamiento de Señales",{"$f":"COUNTIF(BA$4:BA233,BA233)","v":2},{"$f":"ROW()","v":233},1]
[null,null,null,null,null,null,null,null,null,null,null,null,null,null,null,null,null,null,null,null,null,null,null,null,null,null,null,null,null,null,null,null,null,null,null,null,null,null,null,null,null,null,null,null,null,null,null,null,null,null,null,null,"COL0052163","Seguridad Informática",{"$f":"COUNTIF(BA$4:BA234,BA234)","v":3},{"$f":"ROW()","v":234},1]
[null,null,null,null,null,null,null,null,null,null,null,null,null,null,null,null,null,null,null,null,null,null,null,null,null,null,null,null,null,null,null,null,null,null,null,null,null,null,null,null,null,null,null,null,null,null,null,null,null,null,null,null,"COL0052163","Sistemas bioinspirados",{"$f":"COUNTIF(BA$4:BA235,BA235)","v":4},{"$f":"ROW()","v":235},1]
[null,null,null,null,null,null,null,null,null,null,null,null,null,null,null,null,null,null,null,null,null,null,null,null,null,null,null,null,null,null,null,null,null,null,null,null,null,null,null,null,null,null,null,null,null,null,null,null,null,null,null,null,"COL0052163","Sistemas de comunicaciones",{"$f":"COUNTIF(BA$4:BA236,BA236)","v":5},{"$f":"ROW()","v":236},1]
[null,null,null,null,null,null,null,null,null,null,null,null,null,null,null,null,null,null,null,null,null,null,null,null,null,null,null,null,null,null,null,null,null,null,null,null,null,null,null,null,null,null,null,null,null,null,null,null,null,null,null,null,"COL0002896","Bioética, Educación y Desarrollo Humano y Social Sostenible",{"$f":"COUNTIF(BA$4:BA237,BA237)","v":1},{"$f":"ROW()","v":237},1]
[null,null,null,null,null,null,null,null,null,null,null,null,null,null,null,null,null,null,null,null,null,null,null,null,null,null,null,null,null,null,null,null,null,null,null,null,null,null,null,null,null,null,null,null,null,null,null,null,null,null,null,null,"COL0002896","Educación y Sociedad",{"$f":"COUNTIF(BA$4:BA238,BA238)","v":2},{"$f":"ROW()","v":238},1]
[null,null,null,null,null,null,null,null,null,null,null,null,null,null,null,null,null,null,null,null,null,null,null,null,null,null,null,null,null,null,null,null,null,null,null,null,null,null,null,null,null,null,null,null,null,null,null,null,null,null,null,null,"COL0002896","Educación y cultura",{"$f":"COUNTIF(BA$4:BA239,BA239)","v":3},{"$f":"ROW()","v":239},1]
[null,null,null,null,null,null,null,null,null,null,null,null,null,null,null,null,null,null,null,null,null,null,null,null,null,null,null,null,null,null,null,null,null,null,null,null,null,null,null,null,null,null,null,null,null,null,null,null,null,null,null,null,"COL0002896","Línea Bioética Medica y Salud Publica",{"$f":"COUNTIF(BA$4:BA240,BA240)","v":4},{"$f":"ROW()","v":240},1]
[null,null,null,null,null,null,null,null,null,null,null,null,null,null,null,null,null,null,null,null,null,null,null,null,null,null,null,null,null,null,null,null,null,null,null,null,null,null,null,null,null,null,null,null,null,null,null,null,null,null,null,null,"COL0018448","Ambiente Virtuales de Aprendizaje",{"$f":"COUNTIF(BA$4:BA241,BA241)","v":1},{"$f":"ROW()","v":241},1]
[null,null,null,null,null,null,null,null,null,null,null,null,null,null,null,null,null,null,null,null,null,null,null,null,null,null,null,null,null,null,null,null,null,null,null,null,null,null,null,null,null,null,null,null,null,null,null,null,null,null,null,null,"COL0018448","Formación pedagógica y didáctica del docente",{"$f":"COUNTIF(BA$4:BA242,BA242)","v":2},{"$f":"ROW()","v":242},1]
[null,null,null,null,null,null,null,null,null,null,null,null,null,null,null,null,null,null,null,null,null,null,null,null,null,null,null,null,null,null,null,null,null,null,null,null,null,null,null,null,null,null,null,null,null,null,null,null,null,null,null,null,"COL0018448","Gestión del conocimiento y calidad de la educación superior",{"$f":"COUNTIF(BA$4:BA243,BA243)","v":3},{"$f":"ROW()","v":243},1]
[null,null,null,null,null,null,null,null,null,null,null,null,null,null,null,null,null,null,null,null,null,null,null,null,null,null,null,null,null,null,null,null,null,null,null,null,null,null,null,null,null,null,null,null,null,null,null,null,null,null,null,null,"COL0110436","Bioquímica",{"$f":"COUNTIF(BA$4:BA244,BA244)","v":1},{"$f":"ROW()","v":244},1]
[null,null,null,null,null,null,null,null,null,null,null,null,null,null,null,null,null,null,null,null,null,null,null,null,null,null,null,null,null,null,null,null,null,null,null,null,null,null,null,null,null,null,null,null,null,null,null,null,null,null,null,null,"COL0110436","Química Ambiental",{"$f":"COUNTIF(BA$4:BA245,BA245)","v":2},{"$f":"ROW()","v":245},1]
[null,null,null,null,null,null,null,null,null,null,null,null,null,null,null,null,null,null,null,null,null,null,null,null,null,null,null,null,null,null,null,null,null,null,null,null,null,null,null,null,null,null,null,null,null,null,null,null,null,null,null,null,"COL0110436","Química Inorgánica y Bioinorgánica",{"$f":"COUNTIF(BA$4:BA246,BA246)","v":3},{"$f":"ROW()","v":246},1]
[null,null,null,null,null,null,null,null,null,null,null,null,null,null,null,null,null,null,null,null,null,null,null,null,null,null,null,null,null,null,null,null,null,null,null,null,null,null,null,null,null,null,null,null,null,null,null,null,null,null,null,null,"COL0110436","Química de coordinación y catálisis ambiental.",{"$f":"COUNTIF(BA$4:BA247,BA247)","v":4},{"$f":"ROW()","v":247},1]
[null,null,null,null,null,null,null,null,null,null,null,null,null,null,null,null,null,null,null,null,null,null,null,null,null,null,null,null,null,null,null,null,null,null,null,null,null,null,null,null,null,null,null,null,null,null,null,null,null,null,null,null,"COL0117722","Estudios disciplinares en contabilidad auditoria, contabilidad de gestión y tributación.",{"$f":"COUNTIF(BA$4:BA248,BA248)","v":1},{"$f":"ROW()","v":248},1]
[null,null,null,null,null,null,null,null,null,null,null,null,null,null,null,null,null,null,null,null,null,null,null,null,null,null,null,null,null,null,null,null,null,null,null,null,null,null,null,null,null,null,null,null,null,null,null,null,null,null,null,null,"COL0117722","Estudios en educación en ciencias económicas",{"$f":"COUNTIF(BA$4:BA249,BA249)","v":2},{"$f":"ROW()","v":249},1]
[null,null,null,null,null,null,null,null,null,null,null,null,null,null,null,null,null,null,null,null,null,null,null,null,null,null,null,null,null,null,null,null,null,null,null,null,null,null,null,null,null,null,null,null,null,null,null,null,null,null,null,null,"COL0117722","Ética, transparencia y control social",{"$f":"COUNTIF(BA$4:BA250,BA250)","v":3},{"$f":"ROW()","v":250},1]
[null,null,null,null,null,null,null,null,null,null,null,null,null,null,null,null,null,null,null,null,null,null,null,null,null,null,null,null,null,null,null,null,null,null,null,null,null,null,null,null,null,null,null,null,null,null,null,null,null,null,null,null,"COL0196753","Gerencia de proyectos en Ingeniería",{"$f":"COUNTIF(BA$4:BA251,BA251)","v":1},{"$f":"ROW()","v":251},1]
[null,null,null,null,null,null,null,null,null,null,null,null,null,null,null,null,null,null,null,null,null,null,null,null,null,null,null,null,null,null,null,null,null,null,null,null,null,null,null,null,null,null,null,null,null,null,null,null,null,null,null,null,"COL0196753","Gestión de organizaciones y creación de valor",{"$f":"COUNTIF(BA$4:BA252,BA252)","v":2},{"$f":"ROW()","v":252},1]
[null,null,null,null,null,null,null,null,null,null,null,null,null,null,null,null,null,null,null,null,null,null,null,null,null,null,null,null,null,null,null,null,null,null,null,null,null,null,null,null,null,null,null,null,null,null,null,null,null,null,null,null,"COL0196753","Logística en empresas y cadena de suministro",{"$f":"COUNTIF(BA$4:BA253,BA253)","v":3},{"$f":"ROW()","v":253},1]
[null,null,null,null,null,null,null,null,null,null,null,null,null,null,null,null,null,null,null,null,null,null,null,null,null,null,null,null,null,null,null,null,null,null,null,null,null,null,null,null,null,null,null,null,null,null,null,null,null,null,null,null,"COL0196753","Procesos empresariales sustentables",{"$f":"COUNTIF(BA$4:BA254,BA254)","v":4},{"$f":"ROW()","v":254},1]
[null,null,null,null,null,null,null,null,null,null,null,null,null,null,null,null,null,null,null,null,null,null,null,null,null,null,null,null,null,null,null,null,null,null,null,null,null,null,null,null,null,null,null,null,null,null,null,null,null,null,null,null,"COL0196753","Producción y mejoramiento de procesos",{"$f":"COUNTIF(BA$4:BA255,BA255)","v":5},{"$f":"ROW()","v":255},1]
[null,null,null,null,null,null,null,null,null,null,null,null,null,null,null,null,null,null,null,null,null,null,null,null,null,null,null,null,null,null,null,null,null,null,null,null,null,null,null,null,null,null,null,null,null,null,null,null,null,null,null,null,"COL0028687","Fitoplasmas",{"$f":"COUNTIF(BA$4:BA256,BA256)","v":1},{"$f":"ROW()","v":256},1]
[null,null,null,null,null,null,null,null,null,null,null,null,null,null,null,null,null,null,null,null,null,null,null,null,null,null,null,null,null,null,null,null,null,null,null,null,null,null,null,null,null,null,null,null,null,null,null,null,null,null,null,null,"COL0028687","Virus",{"$f":"COUNTIF(BA$4:BA257,BA257)","v":2},{"$f":"ROW()","v":257},1]
[null,null,null,null,null,null,null,null,null,null,null,null,null,null,null,null,null,null,null,null,null,null,null,null,null,null,null,null,null,null,null,null,null,null,null,null,null,null,null,null,null,null,null,null,null,null,null,null,null,null,null,null,"COL0031824","Bioética Global y Complejidad",{"$f":"COUNTIF(BA$4:BA258,BA258)","v":1},{"$f":"ROW()","v":258},1]
[null,null,null,null,null,null,null,null,null,null,null,null,null,null,null,null,null,null,null,null,null,null,null,null,null,null,null,null,null,null,null,null,null,null,null,null,null,null,null,null,null,null,null,null,null,null,null,null,null,null,null,null,"COL0031824","Bioética Médica y salud pública",{"$f":"COUNTIF(BA$4:BA259,BA259)","v":2},{"$f":"ROW()","v":259},1]
[null,null,null,null,null,null,null,null,null,null,null,null,null,null,null,null,null,null,null,null,null,null,null,null,null,null,null,null,null,null,null,null,null,null,null,null,null,null,null,null,null,null,null,null,null,null,null,null,null,null,null,null,"COL0031824","Bioética, Biopolítica y Biojurídica",{"$f":"COUNTIF(BA$4:BA260,BA260)","v":3},{"$f":"ROW()","v":260},{"$f":"COUNTIF($AQ$3:$AQ$84,BA260)","v":1}]
[null,null,null,null,null,null,null,null,null,null,null,null,null,null,null,null,null,null,null,null,null,null,null,null,null,null,null,null,null,null,null,null,null,null,null,null,null,null,null,null,null,null,null,null,null,null,null,null,null,null,null,null,"COL0031824","Bioética, educación y cultura",{"$f":"COUNTIF(BA$4:BA261,BA261)","v":4},{"$f":"ROW()","v":261},1]
[null,null,null,null,null,null,null,null,null,null,null,null,null,null,null,null,null,null,null,null,null,null,null,null,null,null,null,null,null,null,null,null,null,null,null,null,null,null,null,null,null,null,null,null,null,null,null,null,null,null,null,null,"COL0028767","Estrategia y control de gestión",{"$f":"COUNTIF(BA$4:BA262,BA262)","v":1},{"$f":"ROW()","v":262},1]
[null,null,null,null,null,null,null,null,null,null,null,null,null,null,null,null,null,null,null,null,null,null,null,null,null,null,null,null,null,null,null,null,null,null,null,null,null,null,null,null,null,null,null,null,null,null,null,null,null,null,null,null,"COL0028767","Estudios Organizacionales (EO) y responsabilidad social (RS)",{"$f":"COUNTIF(BA$4:BA263,BA263)","v":2},{"$f":"ROW()","v":263},1]
[null,null,null,null,null,null,null,null,null,null,null,null,null,null,null,null,null,null,null,null,null,null,null,null,null,null,null,null,null,null,null,null,null,null,null,null,null,null,null,null,null,null,null,null,null,null,null,null,null,null,null,null,"COL0028767","Estudios en Ciencia, Tecnología, Innovación y Emprendimiento (desde la gestión, economía y política pública)",{"$f":"COUNTIF(BA$4:BA264,BA264)","v":3},{"$f":"ROW()","v":264},1]
[null,null,null,null,null,null,null,null,null,null,null,null,null,null,null,null,null,null,null,null,null,null,null,null,null,null,null,null,null,null,null,null,null,null,null,null,null,null,null,null,null,null,null,null,null,null,null,null,null,null,null,null,"COL0047566","EDUCACIÓN EN INGENIERÍA",{"$f":"COUNTIF(BA$4:BA265,BA265)","v":1},{"$f":"ROW()","v":265},1]
[null,null,null,null,null,null,null,null,null,null,null,null,null,null,null,null,null,null,null,null,null,null,null,null,null,null,null,null,null,null,null,null,null,null,null,null,null,null,null,null,null,null,null,null,null,null,null,null,null,null,null,null,"COL0047566","GEOMATICA",{"$f":"COUNTIF(BA$4:BA266,BA266)","v":2},{"$f":"ROW()","v":266},1]
[null,null,null,null,null,null,null,null,null,null,null,null,null,null,null,null,null,null,null,null,null,null,null,null,null,null,null,null,null,null,null,null,null,null,null,null,null,null,null,null,null,null,null,null,null,null,null,null,null,null,null,null,"COL0047566","GERENCIA DE PROYECTOS",{"$f":"COUNTIF(BA$4:BA267,BA267)","v":3},{"$f":"ROW()","v":267},1]
[null,null,null,null,null,null,null,null,null,null,null,null,null,null,null,null,null,null,null,null,null,null,null,null,null,null,null,null,null,null,null,null,null,null,null,null,null,null,null,null,null,null,null,null,null,null,null,null,null,null,null,null,"COL0047566","HIDROLOGÍA",{"$f":"COUNTIF(BA$4:BA268,BA268)","v":4},{"$f":"ROW()","v":268},1]
[null,null,null,null,null,null,null,null,null,null,null,null,null,null,null,null,null,null,null,null,null,null,null,null,null,null,null,null,null,null,null,null,null,null,null,null,null,null,null,null,null,null,null,null,null,null,null,null,null,null,null,null,"COL0047566","Micro y Nanoestructuras",{"$f":"COUNTIF(BA$4:BA269,BA269)","v":5},{"$f":"ROW()","v":269},1]
[null,null,null,null,null,null,null,null,null,null,null,null,null,null,null,null,null,null,null,null,null,null,null,null,null,null,null,null,null,null,null,null,null,null,null,null,null,null,null,null,null,null,null,null,null,null,null,null,null,null,null,null,"COL0047566","PROCESOS ESTOCÁSTICOS",{"$f":"COUNTIF(BA$4:BA270,BA270)","v":6},{"$f":"ROW()","v":270},1]
[null,null,null,null,null,null,null,null,null,null,null,null,null,null,null,null,null,null,null,null,null,null,null,null,null,null,null,null,null,null,null,null,null,null,null,null,null,null,null,null,null,null,null,null,null,null,null,null,null,null,null,null,"COL0047566","PRODUCTIVIDAD E IMPACTO AMBIENTAL EN PROYECTOS DE INGENIERIA CIVIL (CONSTRUCCIÓN SOSTENIBLE)",{"$f":"COUNTIF(BA$4:BA271,BA271)","v":7},{"$f":"ROW()","v":271},1]
[null,null,null,null,null,null,null,null,null,null,null,null,null,null,null,null,null,null,null,null,null,null,null,null,null,null,null,null,null,null,null,null,null,null,null,null,null,null,null,null,null,null,null,null,null,null,null,null,null,null,null,null,"COL0151789","Diseño de Producto",{"$f":"COUNTIF(BA$4:BA272,BA272)","v":1},{"$f":"ROW()","v":272},1]
[null,null,null,null,null,null,null,null,null,null,null,null,null,null,null,null,null,null,null,null,null,null,null,null,null,null,null,null,null,null,null,null,null,null,null,null,null,null,null,null,null,null,null,null,null,null,null,null,null,null,null,null,"COL0151789","Ergonomía y Tecnología Biomédica",{"$f":"COUNTIF(BA$4:BA273,BA273)","v":2},{"$f":"ROW()","v":273},1]
[null,null,null,null,null,null,null,null,null,null,null,null,null,null,null,null,null,null,null,null,null,null,null,null,null,null,null,null,null,null,null,null,null,null,null,null,null,null,null,null,null,null,null,null,null,null,null,null,null,null,null,null,"COL0151789","Gestión de Procesos de Planeación y de Construcción.",{"$f":"COUNTIF(BA$4:BA274,BA274)","v":3},{"$f":"ROW()","v":274},1]
[null,null,null,null,null,null,null,null,null,null,null,null,null,null,null,null,null,null,null,null,null,null,null,null,null,null,null,null,null,null,null,null,null,null,null,null,null,null,null,null,null,null,null,null,null,null,null,null,null,null,null,null,"COL0151789","Gestión de Procesos, Proyectos, Seguridad y Medio Ambiente",{"$f":"COUNTIF(BA$4:BA275,BA275)","v":4},{"$f":"ROW()","v":275},1]
[null,null,null,null,null,null,null,null,null,null,null,null,null,null,null,null,null,null,null,null,null,null,null,null,null,null,null,null,null,null,null,null,null,null,null,null,null,null,null,null,null,null,null,null,null,null,null,null,null,null,null,null,"COL0151789","Procesos y Contaminación Ambiental",{"$f":"COUNTIF(BA$4:BA276,BA276)","v":5},{"$f":"ROW()","v":276},1]
[null,null,null,null,null,null,null,null,null,null,null,null,null,null,null,null,null,null,null,null,null,null,null,null,null,null,null,null,null,null,null,null,null,null,null,null,null,null,null,null,null,null,null,null,null,null,null,null,null,null,null,null,"COL0151789","Sistemas Información e Interacción",{"$f":"COUNTIF(BA$4:BA277,BA277)","v":6},{"$f":"ROW()","v":277},1]
[null,null,null,null,null,null,null,null,null,null,null,null,null,null,null,null,null,null,null,null,null,null,null,null,null,null,null,null,null,null,null,null,null,null,null,null,null,null,null,null,null,null,null,null,null,null,null,null,null,null,null,null,"COL0039321","Analisis de Matrices",{"$f":"COUNTIF(BA$4:BA278,BA278)","v":1},{"$f":"ROW()","v":278},1]
[null,null,null,null,null,null,null,null,null,null,null,null,null,null,null,null,null,null,null,null,null,null,null,null,null,null,null,null,null,null,null,null,null,null,null,null,null,null,null,null,null,null,null,null,null,null,null,null,null,null,null,null,"COL0039321","Filosofía de la Ciencia: Filosofía de la Física",{"$f":"COUNTIF(BA$4:BA279,BA279)","v":2},{"$f":"ROW()","v":279},1]
[null,null,null,null,null,null,null,null,null,null,null,null,null,null,null,null,null,null,null,null,null,null,null,null,null,null,null,null,null,null,null,null,null,null,null,null,null,null,null,null,null,null,null,null,null,null,null,null,null,null,null,null,"COL0039321","LEYES DE CONSERVACION HIPERBOLICA",{"$f":"COUNTIF(BA$4:BA280,BA280)","v":3},{"$f":"ROW()","v":280},1]
[null,null,null,null,null,null,null,null,null,null,null,null,null,null,null,null,null,null,null,null,null,null,null,null,null,null,null,null,null,null,null,null,null,null,null,null,null,null,null,null,null,null,null,null,null,null,null,null,null,null,null,null,"COL0039321","Matematicas aplicadas",{"$f":"COUNTIF(BA$4:BA281,BA281)","v":4},{"$f":"ROW()","v":281},1]
[null,null,null,null,null,null,null,null,null,null,null,null,null,null,null,null,null,null,null,null,null,null,null,null,null,null,null,null,null,null,null,null,null,null,null,null,null,null,null,null,null,null,null,null,null,null,null,null,null,null,null,null,"COL0039321","Solución numérica de ecuaciones diferenciales parciales",{"$f":"COUNTIF(BA$4:BA282,BA282)","v":5},{"$f":"ROW()","v":282},1]
[null,null,null,null,null,null,null,null,null,null,null,null,null,null,null,null,null,null,null,null,null,null,null,null,null,null,null,null,null,null,null,null,null,null,null,null,null,null,null,null,null,null,null,null,null,null,null,null,null,null,null,null,"COL0152472","Autoinmunidad y Artritis Reumatoide",{"$f":"COUNTIF(BA$4:BA283,BA283)","v":1},{"$f":"ROW()","v":283},1]
[null,null,null,null,null,null,null,null,null,null,null,null,null,null,null,null,null,null,null,null,null,null,null,null,null,null,null,null,null,null,null,null,null,null,null,null,null,null,null,null,null,null,null,null,null,null,null,null,null,null,null,null,"COL0152472","Espondiloartritis Axial y Artritis Psoriásica",{"$f":"COUNTIF(BA$4:BA284,BA284)","v":2},{"$f":"ROW()","v":284},1]
[null,null,null,null,null,null,null,null,null,null,null,null,null,null,null,null,null,null,null,null,null,null,null,null,null,null,null,null,null,null,null,null,null,null,null,null,null,null,null,null,null,null,null,null,null,null,null,null,null,null,null,null,"COL0169362","Aprendizaje Automático",{"$f":"COUNTIF(BA$4:BA285,BA285)","v":1},{"$f":"ROW()","v":285},1]
[null,null,null,null,null,null,null,null,null,null,null,null,null,null,null,null,null,null,null,null,null,null,null,null,null,null,null,null,null,null,null,null,null,null,null,null,null,null,null,null,null,null,null,null,null,null,null,null,null,null,null,null,"COL0169362","Herramientas computacionales para el análisis de datos",{"$f":"COUNTIF(BA$4:BA286,BA286)","v":2},{"$f":"ROW()","v":286},1]
[null,null,null,null,null,null,null,null,null,null,null,null,null,null,null,null,null,null,null,null,null,null,null,null,null,null,null,null,null,null,null,null,null,null,null,null,null,null,null,null,null,null,null,null,null,null,null,null,null,null,null,null,"COL0169362","Inteligencia Computacional",{"$f":"COUNTIF(BA$4:BA287,BA287)","v":3},{"$f":"ROW()","v":287},1]
[null,null,null,null,null,null,null,null,null,null,null,null,null,null,null,null,null,null,null,null,null,null,null,null,null,null,null,null,null,null,null,null,null,null,null,null,null,null,null,null,null,null,null,null,null,null,null,null,null,null,null,null,"COL0169362","Optimización",{"$f":"COUNTIF(BA$4:BA288,BA288)","v":4},{"$f":"ROW()","v":288},1]
[null,null,null,null,null,null,null,null,null,null,null,null,null,null,null,null,null,null,null,null,null,null,null,null,null,null,null,null,null,null,null,null,null,null,null,null,null,null,null,null,null,null,null,null,null,null,null,null,null,null,null,null,"COL0066229","(EO) Estructuras Organizacionales",{"$f":"COUNTIF(BA$4:BA289,BA289)","v":1},{"$f":"ROW()","v":289},1]
[null,null,null,null,null,null,null,null,null,null,null,null,null,null,null,null,null,null,null,null,null,null,null,null,null,null,null,null,null,null,null,null,null,null,null,null,null,null,null,null,null,null,null,null,null,null,null,null,null,null,null,null,"COL0066229","(PI) Procesos de Integración",{"$f":"COUNTIF(BA$4:BA290,BA290)","v":2},{"$f":"ROW()","v":290},1]
[null,null,null,null,null,null,null,null,null,null,null,null,null,null,null,null,null,null,null,null,null,null,null,null,null,null,null,null,null,null,null,null,null,null,null,null,null,null,null,null,null,null,null,null,null,null,null,null,null,null,null,null,"COL0066229","(R) Regionalización",{"$f":"COUNTIF(BA$4:BA291,BA291)","v":3},{"$f":"ROW()","v":291},1]
[null,null,null,null,null,null,null,null,null,null,null,null,null,null,null,null,null,null,null,null,null,null,null,null,null,null,null,null,null,null,null,null,null,null,null,null,null,null,null,null,null,null,null,null,null,null,null,null,null,null,null,null,"COL0116538","Andrologia y Salud sexual",{"$f":"COUNTIF(BA$4:BA292,BA292)","v":1},{"$f":"ROW()","v":292},1]
[null,null,null,null,null,null,null,null,null,null,null,null,null,null,null,null,null,null,null,null,null,null,null,null,null,null,null,null,null,null,null,null,null,null,null,null,null,null,null,null,null,null,null,null,null,null,null,null,null,null,null,null,"COL0116538","Hiperplasia Prostatica",{"$f":"COUNTIF(BA$4:BA293,BA293)","v":2},{"$f":"ROW()","v":293},1]
[null,null,null,null,null,null,null,null,null,null,null,null,null,null,null,null,null,null,null,null,null,null,null,null,null,null,null,null,null,null,null,null,null,null,null,null,null,null,null,null,null,null,null,null,null,null,null,null,null,null,null,null,"COL0116538","Incontinencia Urinaria",{"$f":"COUNTIF(BA$4:BA294,BA294)","v":3},{"$f":"ROW()","v":294},1]
[null,null,null,null,null,null,null,null,null,null,null,null,null,null,null,null,null,null,null,null,null,null,null,null,null,null,null,null,null,null,null,null,null,null,null,null,null,null,null,null,null,null,null,null,null,null,null,null,null,null,null,null,"COL0116538","Litiasis y endourologia",{"$f":"COUNTIF(BA$4:BA295,BA295)","v":4},{"$f":"ROW()","v":295},1]
[null,null,null,null,null,null,null,null,null,null,null,null,null,null,null,null,null,null,null,null,null,null,null,null,null,null,null,null,null,null,null,null,null,null,null,null,null,null,null,null,null,null,null,null,null,null,null,null,null,null,null,null,"COL0116538","Oncologia Urologica",{"$f":"COUNTIF(BA$4:BA296,BA296)","v":5},{"$f":"ROW()","v":296},1]
[null,null,null,null,null,null,null,null,null,null,null,null,null,null,null,null,null,null,null,null,null,null,null,null,null,null,null,null,null,null,null,null,null,null,null,null,null,null,null,null,null,null,null,null,null,null,null,null,null,null,null,null,"COL0116538","Urologia Pediatrica",{"$f":"COUNTIF(BA$4:BA297,BA297)","v":6},{"$f":"ROW()","v":297},1]
[null,null,null,null,null,null,null,null,null,null,null,null,null,null,null,null,null,null,null,null,null,null,null,null,null,null,null,null,null,null,null,null,null,null,null,null,null,null,null,null,null,null,null,null,null,null,null,null,null,null,null,null,"COL0196799","Desarrollo y renovación de infraestructura",{"$f":"COUNTIF(BA$4:BA298,BA298)","v":1},{"$f":"ROW()","v":298},1]
[null,null,null,null,null,null,null,null,null,null,null,null,null,null,null,null,null,null,null,null,null,null,null,null,null,null,null,null,null,null,null,null,null,null,null,null,null,null,null,null,null,null,null,null,null,null,null,null,null,null,null,null,"COL0196799","Geomecánica computacional",{"$f":"COUNTIF(BA$4:BA299,BA299)","v":2},{"$f":"ROW()","v":299},1]
[null,null,null,null,null,null,null,null,null,null,null,null,null,null,null,null,null,null,null,null,null,null,null,null,null,null,null,null,null,null,null,null,null,null,null,null,null,null,null,null,null,null,null,null,null,null,null,null,null,null,null,null,"COL0196799","Ingeniería estructural",{"$f":"COUNTIF(BA$4:BA300,BA300)","v":3},{"$f":"ROW()","v":300},1]
[null,null,null,null,null,null,null,null,null,null,null,null,null,null,null,null,null,null,null,null,null,null,null,null,null,null,null,null,null,null,null,null,null,null,null,null,null,null,null,null,null,null,null,null,null,null,null,null,null,null,null,null,"COL0196799","Materiales simples y compuestos",{"$f":"COUNTIF(BA$4:BA301,BA301)","v":4},{"$f":"ROW()","v":301},1]
[null,null,null,null,null,null,null,null,null,null,null,null,null,null,null,null,null,null,null,null,null,null,null,null,null,null,null,null,null,null,null,null,null,null,null,null,null,null,null,null,null,null,null,null,null,null,null,null,null,null,null,null,"COL0032278","Biología y Ecología de plagas y enemigos naturales de cultivos de importancia económica",{"$f":"COUNTIF(BA$4:BA302,BA302)","v":1},{"$f":"ROW()","v":302},1]
[null,null,null,null,null,null,null,null,null,null,null,null,null,null,null,null,null,null,null,null,null,null,null,null,null,null,null,null,null,null,null,null,null,null,null,null,null,null,null,null,null,null,null,null,null,null,null,null,null,null,null,null,"COL0032278","Ecología Química y Redes Tróficas",{"$f":"COUNTIF(BA$4:BA303,BA303)","v":2},{"$f":"ROW()","v":303},1]
[null,null,null,null,null,null,null,null,null,null,null,null,null,null,null,null,null,null,null,null,null,null,null,null,null,null,null,null,null,null,null,null,null,null,null,null,null,null,null,null,null,null,null,null,null,null,null,null,null,null,null,null,"COL0032278","Generación de recomendaciones para el manejo integrado de plagas, mediante el diseño de modelos de simulación de agroecosistemas",{"$f":"COUNTIF(BA$4:BA304,BA304)","v":3},{"$f":"ROW()","v":304},1]
[null,null,null,null,null,null,null,null,null,null,null,null,null,null,null,null,null,null,null,null,null,null,null,null,null,null,null,null,null,null,null,null,null,null,null,null,null,null,null,null,null,null,null,null,null,null,null,null,null,null,null,null,"COL0049659","Actividad física, promoción de la salud y prevención de la enfermedad.",{"$f":"COUNTIF(BA$4:BA305,BA305)","v":1},{"$f":"ROW()","v":305},1]
[null,null,null,null,null,null,null,null,null,null,null,null,null,null,null,null,null,null,null,null,null,null,null,null,null,null,null,null,null,null,null,null,null,null,null,null,null,null,null,null,null,null,null,null,null,null,null,null,null,null,null,null,"COL0049659","Medios de comunicación, educación y salud",{"$f":"COUNTIF(BA$4:BA306,BA306)","v":2},{"$f":"ROW()","v":306},1]
[null,null,null,null,null,null,null,null,null,null,null,null,null,null,null,null,null,null,null,null,null,null,null,null,null,null,null,null,null,null,null,null,null,null,null,null,null,null,null,null,null,null,null,null,null,null,null,null,null,null,null,null,"COL0049659","Salud Pública y Nutrición, Prevención de la Enfermedad y Promoción de la Salud",{"$f":"COUNTIF(BA$4:BA307,BA307)","v":3},{"$f":"ROW()","v":307},1]
[null,null,null,null,null,null,null,null,null,null,null,null,null,null,null,null,null,null,null,null,null,null,null,null,null,null,null,null,null,null,null,null,null,null,null,null,null,null,null,null,null,null,null,null,null,null,null,null,null,null,null,null,"COL0149359","GESTION DE LA EDUCACION Y LA ACADEMIA",{"$f":"COUNTIF(BA$4:BA308,BA308)","v":1},{"$f":"ROW()","v":308},1]
[null,null,null,null,null,null,null,null,null,null,null,null,null,null,null,null,null,null,null,null,null,null,null,null,null,null,null,null,null,null,null,null,null,null,null,null,null,null,null,null,null,null,null,null,null,null,null,null,null,null,null,null,"COL0149359","GESTION DE LA SALUD PUBLICA",{"$f":"COUNTIF(BA$4:BA309,BA309)","v":2},{"$f":"ROW()","v":309},1]
[null,null,null,null,null,null,null,null,null,null,null,null,null,null,null,null,null,null,null,null,null,null,null,null,null,null,null,null,null,null,null,null,null,null,null,null,null,null,null,null,null,null,null,null,null,null,null,null,null,null,null,null,"COL0149359","GESTIÓN DE LA ÉTICA Y EL CONOCIMIENTO",{"$f":"COUNTIF(BA$4:BA310,BA310)","v":3},{"$f":"ROW()","v":310},1]
[null,null,null,null,null,null,null,null,null,null,null,null,null,null,null,null,null,null,null,null,null,null,null,null,null,null,null,null,null,null,null,null,null,null,null,null,null,null,null,null,null,null,null,null,null,null,null,null,null,null,null,null,"COL0096032","Bioetica, Bioderecho, Biomedicina y Biotecnologia",{"$f":"COUNTIF(BA$4:BA311,BA311)","v":1},{"$f":"ROW()","v":311},1]
[null,null,null,null,null,null,null,null,null,null,null,null,null,null,null,null,null,null,null,null,null,null,null,null,null,null,null,null,null,null,null,null,null,null,null,null,null,null,null,null,null,null,null,null,null,null,null,null,null,null,null,null,"COL0096032","Células Madre & Medicina Regenerativa",{"$f":"COUNTIF(BA$4:BA312,BA312)","v":2},{"$f":"ROW()","v":312},1]
[null,null,null,null,null,null,null,null,null,null,null,null,null,null,null,null,null,null,null,null,null,null,null,null,null,null,null,null,null,null,null,null,null,null,null,null,null,null,null,null,null,null,null,null,null,null,null,null,null,null,null,null,"COL0096032","Genética Humana",{"$f":"COUNTIF(BA$4:BA313,BA313)","v":3},{"$f":"ROW()","v":313},1]
[null,null,null,null,null,null,null,null,null,null,null,null,null,null,null,null,null,null,null,null,null,null,null,null,null,null,null,null,null,null,null,null,null,null,null,null,null,null,null,null,null,null,null,null,null,null,null,null,null,null,null,null,"COL0138796","Docencia y Didactica de la Física Universitaria",{"$f":"COUNTIF(BA$4:BA314,BA314)","v":1},{"$f":"ROW()","v":314},1]
[null,null,null,null,null,null,null,null,null,null,null,null,null,null,null,null,null,null,null,null,null,null,null,null,null,null,null,null,null,null,null,null,null,null,null,null,null,null,null,null,null,null,null,null,null,null,null,null,null,null,null,null,"COL0138796","Física Computacional",{"$f":"COUNTIF(BA$4:BA315,BA315)","v":2},{"$f":"ROW()","v":315},1]
[null,null,null,null,null,null,null,null,null,null,null,null,null,null,null,null,null,null,null,null,null,null,null,null,null,null,null,null,null,null,null,null,null,null,null,null,null,null,null,null,null,null,null,null,null,null,null,null,null,null,null,null,"COL0138796","Magnetismo y Aplicaciones",{"$f":"COUNTIF(BA$4:BA316,BA316)","v":3},{"$f":"ROW()","v":316},1]
[null,null,null,null,null,null,null,null,null,null,null,null,null,null,null,null,null,null,null,null,null,null,null,null,null,null,null,null,null,null,null,null,null,null,null,null,null,null,null,null,null,null,null,null,null,null,null,null,null,null,null,null,"COL0138796","Nanotecnología y Sensórica",{"$f":"COUNTIF(BA$4:BA317,BA317)","v":4},{"$f":"ROW()","v":317},1]
[null,null,null,null,null,null,null,null,null,null,null,null,null,null,null,null,null,null,null,null,null,null,null,null,null,null,null,null,null,null,null,null,null,null,null,null,null,null,null,null,null,null,null,null,null,null,null,null,null,null,null,null,"COL0138796","Uso de radiación ionizante para la producción de imágenes médicas",{"$f":"COUNTIF(BA$4:BA318,BA318)","v":5},{"$f":"ROW()","v":318},1]
[null,null,null,null,null,null,null,null,null,null,null,null,null,null,null,null,null,null,null,null,null,null,null,null,null,null,null,null,null,null,null,null,null,null,null,null,null,null,null,null,null,null,null,null,null,null,null,null,null,null,null,null,"COL0126777","Animación 2D y 3D",{"$f":"COUNTIF(BA$4:BA319,BA319)","v":1},{"$f":"ROW()","v":319},1]
[null,null,null,null,null,null,null,null,null,null,null,null,null,null,null,null,null,null,null,null,null,null,null,null,null,null,null,null,null,null,null,null,null,null,null,null,null,null,null,null,null,null,null,null,null,null,null,null,null,null,null,null,"COL0126777","Audio y video",{"$f":"COUNTIF(BA$4:BA320,BA320)","v":2},{"$f":"ROW()","v":320},1]
[null,null,null,null,null,null,null,null,null,null,null,null,null,null,null,null,null,null,null,null,null,null,null,null,null,null,null,null,null,null,null,null,null,null,null,null,null,null,null,null,null,null,null,null,null,null,null,null,null,null,null,null,"COL0126777","Desarrollo Multimedia",{"$f":"COUNTIF(BA$4:BA321,BA321)","v":3},{"$f":"ROW()","v":321},1]
[null,null,null,null,null,null,null,null,null,null,null,null,null,null,null,null,null,null,null,null,null,null,null,null,null,null,null,null,null,null,null,null,null,null,null,null,null,null,null,null,null,null,null,null,null,null,null,null,null,null,null,null,"COL0126777","Museografía y Museología",{"$f":"COUNTIF(BA$4:BA322,BA322)","v":4},{"$f":"ROW()","v":322},1]
[null,null,null,null,null,null,null,null,null,null,null,null,null,null,null,null,null,null,null,null,null,null,null,null,null,null,null,null,null,null,null,null,null,null,null,null,null,null,null,null,null,null,null,null,null,null,null,null,null,null,null,null,"COL0126777","Narrativas digitales",{"$f":"COUNTIF(BA$4:BA323,BA323)","v":5},{"$f":"ROW()","v":323},1]
[null,null,null,null,null,null,null,null,null,null,null,null,null,null,null,null,null,null,null,null,null,null,null,null,null,null,null,null,null,null,null,null,null,null,null,null,null,null,null,null,null,null,null,null,null,null,null,null,null,null,null,null,"COL0126777","Patrimonio",{"$f":"COUNTIF(BA$4:BA324,BA324)","v":6},{"$f":"ROW()","v":324},{"$f":"COUNTIF($AQ$3:$AQ$84,BA324)","v":1}]
[null,null,null,null,null,null,null,null,null,null,null,null,null,null,null,null,null,null,null,null,null,null,null,null,null,null,null,null,null,null,null,null,null,null,null,null,null,null,null,null,null,null,null,null,null,null,null,null,null,null,null,null,"COL0033239","Prevención de la enfermedad y promoción de la salud",{"$f":"COUNTIF(BA$4:BA325,BA325)","v":1},{"$f":"ROW()","v":325},1]
[null,null,null,null,null,null,null,null,null,null,null,null,null,null,null,null,null,null,null,null,null,null,null,null,null,null,null,null,null,null,null,null,null,null,null,null,null,null,null,null,null,null,null,null,null,null,null,null,null,null,null,null,"COL0033239","Salud Mental y Calidad de Vida",{"$f":"COUNTIF(BA$4:BA326,BA326)","v":2},{"$f":"ROW()","v":326},1]
[null,null,null,null,null,null,null,null,null,null,null,null,null,null,null,null,null,null,null,null,null,null,null,null,null,null,null,null,null,null,null,null,null,null,null,null,null,null,null,null,null,null,null,null,null,null,null,null,null,null,null,null,"COL0033239","Salud Sexual y Reproductiva",{"$f":"COUNTIF(BA$4:BA327,BA327)","v":3},{"$f":"ROW()","v":327},1]
[null,null,null,null,null,null,null,null,null,null,null,null,null,null,null,null,null,null,null,null,null,null,null,null,null,null,null,null,null,null,null,null,null,null,null,null,null,null,null,null,null,null,null,null,null,null,null,null,null,null,null,null,"COL0047762","Desarrollo de modelos de ingeniería de tejido humano",{"$f":"COUNTIF(BA$4:BA328,BA328)","v":1},{"$f":"ROW()","v":328},1]
[null,null,null,null,null,null,null,null,null,null,null,null,null,null,null,null,null,null,null,null,null,null,null,null,null,null,null,null,null,null,null,null,null,null,null,null,null,null,null,null,null,null,null,null,null,null,null,null,null,null,null,null,"COL0047762","Metabolismo Oseo - Bone Metabolism",{"$f":"COUNTIF(BA$4:BA329,BA329)","v":2},{"$f":"ROW()","v":329},1]
[null,null,null,null,null,null,null,null,null,null,null,null,null,null,null,null,null,null,null,null,null,null,null,null,null,null,null,null,null,null,null,null,null,null,null,null,null,null,null,null,null,null,null,null,null,null,null,null,null,null,null,null,"COL0062704","Procesos Organizacionales (Prospectiva de las Organizaciones), Programáticos y Políticos para la Promoción del Desarrollo.",{"$f":"COUNTIF(BA$4:BA330,BA330)","v":1},{"$f":"ROW()","v":330},1]
[null,null,null,null,null,null,null,null,null,null,null,null,null,null,null,null,null,null,null,null,null,null,null,null,null,null,null,null,null,null,null,null,null,null,null,null,null,null,null,null,null,null,null,null,null,null,null,null,null,null,null,null,"COL0062704","Prospectiva de las Organizaciones",{"$f":"COUNTIF(BA$4:BA331,BA331)","v":2},{"$f":"ROW()","v":331},1]
[null,null,null,null,null,null,null,null,null,null,null,null,null,null,null,null,null,null,null,null,null,null,null,null,null,null,null,null,null,null,null,null,null,null,null,null,null,null,null,null,null,null,null,null,null,null,null,null,null,null,null,null,"COL0062704","Responsabilidad Ambiental",{"$f":"COUNTIF(BA$4:BA332,BA332)","v":3},{"$f":"ROW()","v":332},1]
[null,null,null,null,null,null,null,null,null,null,null,null,null,null,null,null,null,null,null,null,null,null,null,null,null,null,null,null,null,null,null,null,null,null,null,null,null,null,null,null,null,null,null,null,null,null,null,null,null,null,null,null,"COL0062704","Responsabilidad Social Empresarial",{"$f":"COUNTIF(BA$4:BA333,BA333)","v":4},{"$f":"ROW()","v":333},1]
[null,null,null,null,null,null,null,null,null,null,null,null,null,null,null,null,null,null,null,null,null,null,null,null,null,null,null,null,null,null,null,null,null,null,null,null,null,null,null,null,null,null,null,null,null,null,null,null,null,null,null,null,"COL0077814","Producción Hortícola Limpia",{"$f":"COUNTIF(BA$4:BA334,BA334)","v":1},{"$f":"ROW()","v":334},1]

{"sheet":"Datos_Generales","index":1,"n_rows":72,"n_cols":19,"rows_kept":72,"cut":false,"hidden":false,"merged":[[14,3,14,4],[44,2,44,3],[44,4,44,7],[45,2,45,3],[15,3,15,4],[15,6,15,7],[18,2,19,5],[21,3,21,7],[23,6,23,7],[25,6,25,7],[35,4,35,6],[37,3,37,7],[2,1,3,7],[9,3,9,7],[10,4,10,7],[11,3,11,7],[13,3,13,4],[13,6,13,7]]}
[10,11,"2016-07-07"]
[]
[null,"PRESENTACIÓN DE PROYECTOS \nDE INICIACIÓN CIENTIFÍCA 2023 - 2"]
[]
[null,null,null,null,null,null,null,null,null,null,"No","Hoja ","Validacion","Pendientes"]
[null,null,"Datos digilenciados VICIEIN.",null,"Código :",null,"Radicado :",null,null,null,1,"Datos Generales","Datos Generales sin llenar. = > >",{"$f":"SUM(I8:I45)","v":7}]
[]
[null,"1.","INFORMACION GENERAL DEL PROYECTO:",null,null,"Vrs.03.23","Facultad  :",null,{"$f":"IF(H8=0,1,\"\")","v":1},null,2,"Resumen","Hay textos en resumen",{"$f":"IF(Resumen!K4>0,\"OK :\"&Resumen!K4&\" Lt:\"&Resumen!K5,\"Falta\")","v":"Falta"}]
[]
[null,null,"Título",null,null,null,null,null,{"$f":"IF(D10=0,1,\"\")","v":1}]
[null,"2.","Tutor del proyecto",null,null,null,null,null,null,null,3,"Descripcion","Hay Textos en Descripcion ",{"$f":"IF(Descripción!K5>0,\"OK :\"&Descripción!K5&\" Lt:\"&Descripción!K6,\"Falta\")","v":"Falta"}]
[null,null,"Nombre :",null,null,null,null,null,{"$f":"IF(E12=0,1,\"\")","v":1}]
[]
[null,null,"Dirección: ",null,null,"Tipo de Convocatoria:","Proyecto de Iniciación Cientifica PIC",null,{"$f":"IF(G14=0,1,\"\")","v":""},null,4,"Objevos ","Hay Objetivo General ",{"$f":"IF(Objetivos!K9>0,\"OK\",\"Falta\")","v":"Falta"}]
[null,null,"Teléfonos: ",null,null,null,"Fax: ",null,null,null,5,"Objevos ","Hay Objetivos Especificos ",{"$f":"IF(Objetivos!K11>0,\"OK\",\"Falta\")","v":"Falta"}]
[null,null,"Ciudad: ",null,null,"E-mail:",null,null,{"$f":"IF(G16=0,1,\"\")","v":1}]
[null,null,null,null,null,null,null,null,null,null,6,"Metodologia","Hay textos en Metodología.",{"$f":"IF(Metodología!K5>0,\"OK\",\"Falta\")","v":"Falta"}]
[null,"3.","Nombre del Grupo de Investigación:"]
[null,null,null,null,null,null,"Reconocido:",{"$f":"IFERROR(VLOOKUP($H$20,Dt!$G$16:$H$22,2,0),\"NA\")","v":"No"},{"$f":"IF(C19=0,1,\"\")","v":1},{"$f":"IFERROR(VLOOKUP($C$19,Dt!$AP$3:$AQ$82,2,0),0)","v":0},7,"Estado del Arte","Hay textos en estado del arte.",{"$f":"IF(Estado_del_Arte!K5>0,\"OK\",\"Falta\")","v":"Falta"}]
[null,null,null,null,null,null,"Clasificación: ",{"$f":"IFERROR(VLOOKUP($C$19,Dt!$AP$3:$AR$75,3,0),\"NR\")","v":"NR"},null,{"$f":"IFERROR(VLOOKUP($S$55,Dt!$BH$2:$BK$10,2,0),\"DT!Ap4:Ap78\")","v":"DT!Ap4:Ap78"}]
[]
[null,null,"Línea de investigación: ",null,null,null,null,null,{"$f":"IF(AND(E22=0,E23=0),1,\"\")","v":1},{"$f":"IFERROR(VLOOKUP(J19,Dt!$AQ$3:$AT$82,4,0),0)","v":0},null,{"$f":"IF(J23=0,D22,\" \")","v":" "}]
[null,null,null,null,null,null,null,null,null,{"$f":"COUNTIF($L$57:$L$68,D22)","v":12},8,"Cronograma","Hay actividades de Cronograma",{"$f":"IF(Cronograma!K10=0,\"Falta\",Cronograma!K10)","v":"Falta"}]
[null,null,"Programa o Departamento de la UMNG al cual pertenece el tutor:",null,null,null,null,null,{"$f":"IF(G24=0,1,\"\")","v":1},null,9,"Cronograma","Hay fechas que superen vigencias",{"$f":"IF(N23=\"Falta\",\"NA\",IF(Cronograma!L10>0,\"Ojo Tiene :\"&Cronograma!L10,\"OK\"))","v":"NA"}]
[]
[null,null,"Si es producto de un proyecto INV de UMNG, diligenciar el código:",null,null,null,null,null,null,null,10,"Productos",{"$f":"\"No. Producción en Categoría \"&PD!$C36&\" :\"","v":"No. Producción en Categoría GNC :"},{"$f":"PD!$H36","v":0}]
[null,null,null,null,null,null,null,null,null,null,11,"Productos",{"$f":"\"No. Producción en Categoría \"&PD!$C37&\" :\"","v":"No. Producción en Categoría FRH :"},{"$f":"PD!$H37","v":0}]
[null,null,null,null,null,null,null,null,null,null,12,"Productos",{"$f":"\"No. Producción en Categoría \"&PD!$C38&\" :\"","v":"No. Producción en Categoría SAC :"},{"$f":"PD!$H38","v":0}]
[null,null,null,null,null,null,null,null,null,null,13,"Productos",{"$f":"\"No. Producción en Categoría \"&PD!$C39&\" :\"","v":"No. Producción en Categoría GI :"},{"$f":"PD!$H39","v":0}]
[]
[null,null,null,null,null,null,null,null,null,null,14,"Productos","No. Productos sin llenar datos.",{"$f":"PD!L7","v":0}]
[]
[null,null,null,null,null,null,null,null,null,null,15,"Integrantes","Investigadores Principales",{"$f":"Integrantes!Q33","v":0}]
[null,4,"Productividad comprometida",null,null,null,null,null,null,"No aplica"]
[null,null,null,null,null,null,null,null,null,null,16,"Integrantes","No. Coinvestigadores :"]
[null,null,"Producto a generar:",null,null,null,null,{"$f":"IFERROR(\"Pág.: \"&VLOOKUP($D$38,Dt!K15:L40,2,0),\".\")","v":"."},null,{"$f":"IF(E36=\"Apropiacion Social\",\"DT_ProdASC\",\"J34\")","v":"J34"}]
[null,null,{"$f":"IF(LEN(E36)=18,\"Link :\"&Dt!K42,\"\")","v":""},null,null,null,null,null,null,null,20,"Integrantes","No. Tutor "]
[null,null,"Caso ASC",null,null,null,null,null,null,null,17,"Integrantes","No. Asistente Investigación"]
[null,null,null,null,"Productos Obligatorios:",null,null,null,null,null,18,"Integrantes","No. Joven Investigador"]
[null,null,null,null,"1,. Informe Final del Proyecto en el formato dispuesto para tal fin."]
[null,null,null,null,"2,. Carta anexa con conclusiones y experiencias del estudiante.",null,null,null,null,null,19,"Integrantes","No. Asistente Graduado"]
[null,null,null,null,null,null,null,null,null,null,21,"Integrantes","No. Tutores",{"$f":"Integrantes!O10","v":1}]
[null,5,"Detalles de ejecución de proyecto",null,null,null,null,null,null,null,22,"Presupuesto ","No. Doc. Acompañantes",{"$f":"Integrantes!O11","v":0}]
[null,null,null,null,null,null,null,null,null,null,22,"Presupuesto ","No. Estudiante",{"$f":"Integrantes!O12","v":0}]
[null,null,"Sede de Ejecución del Proyecto:",null,"Bogotá",null,null,null,{"$f":"IF(E45=0,1,\"\")","v":""}]
[null,null,"Duración del Proyecto (en meses):",null,5,null,"Presup. VICEIN : $",{"$f":"Presupuesto","v":0},null,null,18,"Impactos",{"$f":"\"Se Regitran:\"&Impactos!L6&\", con No Letras :\"","v":"Se Regitran:0, con No Letras :"},{"$f":"Impactos!L5","v":0}]
[null,null,null,null,null,null,null,null,null,null,19,"Grupos ","Hay registros sin diligenciar en Grupos",{"$f":"Grupo!L5","v":9}]
[null,null,null,null,null,null,"",null,null,null,20,"BiblioGrafica","Datos de referencia bibliografica",{"$f":"Biblografia!L4","v":0}]
[]
[]
[null,null,"Grupo","Dudas en el diligenciamiento : ",null,"Luis.chirivi@unimilitar.edu.co"]
[null,null,null,null,null,"Data.investigaciones@unimilitar.edu.co",null,null,null,null,null,"Presupuesto por parte de la Facultad:"]
[null,null,null,null,null,null,null,null,null,null,null,{"$f":"Presupuesto!H95","v":0}]
[]
[null,null,"Version : 15 Abr 2023",null,null,null,null,null,null,null,null,null,null,null,null,null,null,"Seleccionada -->>",{"$f":"IFERROR(VLOOKUP($H$8,R57:S65,2,0),\"N\")","v":"N"}]
[null,null,null,null,null,null,null,null,null,"Lineas","BB",{"$f":"IFERROR(VLOOKUP($J19,Dt!$AQ$3:$AW$75,6,0),\".\")","v":"."},{"$f":"IFERROR(VLOOKUP($J19,Dt!$AQ$3:$AW$75,7,0),\".\")","v":"."},{"$f":"IFERROR(M56-L56,0)","v":0}]
[null,null,"Anterior Version :  07 may 2021",null,null,null,null,null,null,{"$f":"J19","v":0},0,{"$f":"IFERROR(INDIRECT(\"dt!\"&$K$56&(L$56+$K57),1),0)","v":0},null,null,null,null,null,"Facultad","FAC"]
[null,null,null,null,null,null,null,null,null,{"$f":"J22","v":0},{"$f":"IF(K57<$N$56,K57+1,\"x\")","v":"x"},{"$f":"IFERROR(INDIRECT(\"dt!\"&$K$56&(L$56+$K58),1),0)","v":0},null,null,null,null,null,"Ciencias Básicas y Aplicadas","CIAS"]
[null,null,null,null,null,null,null,null,null,null,"x",{"$f":"IFERROR(INDIRECT(\"dt!\"&$K$56&(L$56+$K59),1),0)","v":0},null,null,null,null,null,"Derecho","DER"]
[null,null,null,null,null,null,null,null,null,null,"x",{"$f":"IFERROR(INDIRECT(\"dt!\"&$K$56&(L$56+$K60),1),0)","v":0},null,null,null,null,null,"Estudios a Distancia ","DIS"]
[null,null,null,null,null,null,null,null,null,null,"x",{"$f":"IFERROR(INDIRECT(\"dt!\"&$K$56&(L$56+$K61),1),0)","v":0},null,null,null,null,null,"Ciencias Económicas ","ECO"]
[null,null,null,null,null,null,null,null,null,null,"x",{"$f":"IFERROR(INDIRECT(\"dt!\"&$K$56&(L$56+$K62),1),0)","v":0},null,null,null,null,null,"Educación y Humanidades","HUM"]
[null,null,null,null,null,null,null,null,null,null,"x",{"$f":"IFERROR(INDIRECT(\"dt!\"&$K$56&(L$56+$K63),1),0)","v":0},null,null,null,null,null,"Ingeniería ","ING"]
[null,null,null,null,null,null,null,null,null,null,"x",{"$f":"IFERROR(INDIRECT(\"dt!\"&$K$56&(L$56+$K64),1),0)","v":0},null,null,null,null,null,"Medicina y Ciencias de la Salud","MED"]
[null,null,null,null,null,null,null,null,null,null,"x",{"$f":"IFERROR(INDIRECT(\"dt!\"&$K$56&(L$56+$K65),1),0)","v":0},null,null,null,null,null,"Relaciones Intenacionales, Estrategia y Seguridad","EES"]
[null,null,null,null,null,null,null,null,null,null,"x",{"$f":"IFERROR(INDIRECT(\"dt!\"&$K$56&(L$56+$K66),1),0)","v":0}]
[null,null,null,null,null,null,null,null,null,null,"x",{"$f":"IFERROR(INDIRECT(\"dt!\"&$K$56&(L$56+$K67),1),0)","v":0}]
[null,null,null,null,null,null,null,null,null,null,"x",{"$f":"IFERROR(INDIRECT(\"dt!\"&$K$56&(L$56+$K68),1),0)","v":0}]
[]
[]
[]
[null,null,null,null,null,"https://minciencias.gov.co/sites/default/files/upload/convocatoria/anexo_1_-_documento_conceptual_2021.pdf"]

{"sheet":"Resumen","index":2,"n_rows":18,"n_cols":12,"rows_kept":18,"cut":false,"hidden":false,"merged":[[14,2,14,7],[15,2,15,7],[16,2,16,7],[17,2,17,7],[3,1,4,7],[8,2,8,7],[9,2,9,7],[10,2,10,7],[11,2,11,7],[12,2,12,7],[13,2,13,7]]}
[]
[]
[]
[null,{"$f":"Datos_Generales!B3","v":"PRESENTACIÓN DE PROYECTOS \nDE INICIACIÓN CIENTIFÍCA 2023 - 2"},null,null,null,null,null,null,null,null,{"$f":"COUNTIF(C9:H80,\"<>\"&\"\")","v":0},"=> Numero de resgistros de resumenes diligenciados."]
[null,null,null,null,null,null,null,null,null,null,{"$f":"SUM(K9:K80)","v":0},"=> Numero de caracteres diligenciados"]
[null,null,null,null,null,null,null,null,null,null,"Tener en cuenta "]
[null,"6.","Resumen de Proyecto - Maximo 500 Caracteres.",null,null,null,null,null,null,null,"No debe tener mas de 999 caracteres por celda o de largo"]
[null,null,null,null,null,null,null,null,null,null,"Validación en número de caracteres"]
[null,1,null,null,null,null,null,null,null,null,{"$f":"LEN(C9)","v":0}]
[null,2,null,null,null,null,null,null,null,null,0]
[null,3,null,null,null,null,null,null,null,null,0]
[null,4,null,null,null,null,null,null,null,null,0]
[null,5,null,null,null,null,null,null,null,null,0]
[null,6,null,null,null,null,null,null,null,null,0]
[null,7,null,null,null,null,null,null,null,null,0]
[null,8,null,null,null,null,null,null,null,null,0]
[null,9,null,null,null,null,null,null,null,null,0]
[null,null,null,null,null,null,null,null,null,null,0]

{"sheet":"Descripción","index":3,"n_rows":25,"n_cols":12,"rows_kept":25,"cut":false,"hidden":false,"merged":[[13,2,13,7],[14,2,14,7],[22,2,22,7],[23,2,23,7],[24,2,24,7],[15,2,15,7],[16,2,16,7],[17,2,17,7],[18,2,18,7],[19,2,19,7],[20,2,20,7],[21,2,21,7],[3,1,4,7],[9,2,9,7],[10,2,10,7],[11,2,11,7],[12,2,12,7]]}
[]
[]
[]
[null,{"$f":"Resumen!B4","v":"PRESENTACIÓN DE PROYECTOS \nDE INICIACIÓN CIENTIFÍCA 2023 - 2"}]
[null,null,null,null,null,null,null,null,null,null,{"$f":"COUNTIF(C10:H81,\"<>\"&\"\")","v":0},"=> Numero de resgistros de descripción diligenciados."]
[null,null,null,null,null,null,null,null,null,null,{"$f":"SUM(K10:K81)","v":0},"=> Numero de caracteres diligenciados"]
[null,"7.","ESTRUCTURA DEL PROYECTO",null,null,null,null,null,null,null,"Tener en cuenta "]
[null,"a.","Descripción y Justificación del Proyecto ",null,null,null,null,null,null,null,"Tener en cuenta "]
[null,null,null,null,null,null,null,null,null,null,"No debe tener mas de 999 caracteres o de largo"]
[null,null,null,null,null,null,null,null,null,null,{"$f":"LEN(C10)","v":0}]
[null,null,null,null,null,null,null,null,null,null,0]
[null,null,null,null,null,null,null,null,null,null,0]
[null,null,null,null,null,null,null,null,null,null,0]
[null,null,null,null,null,null,null,null,null,null,0]
[null,null,null,null,null,null,null,null,null,null,0]
[null,null,null,null,null,null,null,null,null,null,0]
[null,null,null,null,null,null,null,null,null,null,0]
[null,null,null,null,null,null,null,null,null,null,0]
[null,null,null,null,null,null,null,null,null,null,0]
[null,null,null,null,null,null,null,null,null,null,0]
[null,null,null,null,null,null,null,null,null,null,0]
[null,null,null,null,null,null,null,null,null,null,0]
[null,null,null,null,null,null,null,null,null,null,0]
[null,null,null,null,null,null,null,null,null,null,0]
[null,null,null,null,null,null,null,null,null,null,0]

{"sheet":"Objetivos","index":4,"n_rows":28,"n_cols":11,"rows_kept":28,"cut":false,"hidden":false,"merged":[[27,2,27,7],[17,2,17,7],[18,2,18,7],[19,2,19,7],[20,2,20,7],[21,2,21,7],[22,2,22,7],[23,2,23,7],[15,2,15,7],[16,2,16,7],[24,2,24,7],[25,2,25,7],[26,2,26,7],[2,1,4,7],[8,2,8,7],[12,2,12,7],[13,2,13,7],[14,2,14,7]]}
[]
[]
[null,{"$f":"Resumen!B4","v":"PRESENTACIÓN DE PROYECTOS \nDE INICIACIÓN CIENTIFÍCA 2023 - 2"}]
[]
[]
[null,null,null,null,null,null,null,null,null,null,"Tener en cuenta "]
[null,"8.a","Información Objetivo -  General ",null,null,null,null,{"$f":"PD!J7","v":"PIC"},null,null,"Tener en cuenta "]
[null,null,null,null,null,null,null,null,null,null,"No debe tener mas de 999 caracteres o de largo"]
[null,">>",null,null,null,null,null,null,null,null,{"$f":"LEN(C9)","v":0}]
[]
[null,"8.b","Información Objetivos -  Especificos",null,null,null,null,null,null,null,{"$f":"SUM(K14:K43)","v":0}]
[]
[null,"No ","Detalle del Objetivo"]
[null,1,null,null,null,null,null,null,null,null,{"$f":"LEN(C14)","v":0}]
[null,2,null,null,null,null,null,null,null,null,0]
[null,3,null,null,null,null,null,null,null,null,0]
[null,4,null,null,null,null,null,null,null,null,0]
[null,5,null,null,null,null,null,null,null,null,0]
[null,6,null,null,null,null,null,null,null,null,0]
[null,7,null,null,null,null,null,null,null,null,0]
[null,8,null,null,null,null,null,null,null,null,0]
[null,9,null,null,null,null,null,null,null,null,0]
[null,10,null,null,null,null,null,null,null,null,0]
[null,11,null,null,null,null,null,null,null,null,0]
[null,12,null,null,null,null,null,null,null,null,0]
[null,13,null,null,null,null,null,null,null,null,0]
[null,14,null,null,null,null,null,null,null,null,0]
[null,15,null,null,null,null,null,null,null,null,0]

{"sheet":"Metodología","index":5,"n_rows":22,"n_cols":11,"rows_kept":22,"cut":false,"hidden":false,"merged":[[20,2,20,7],[21,2,21,7],[3,1,4,7],[9,2,9,7],[10,2,10,7],[11,2,11,7],[12,2,12,7],[13,2,13,7],[14,2,14,7],[15,2,15,7],[16,2,16,7],[17,2,17,7],[18,2,18,7],[19,2,19,7]]}
[]
[]
[]
[null,{"$f":"Datos_Generales!B3","v":"PRESENTACIÓN DE PROYECTOS \nDE INICIACIÓN CIENTIFÍCA 2023 - 2"}]
[null,null,null,null,null,null,null,null,null,null,{"$f":"SUM(K10:K133)","v":0}]
[]
[null,"9.","ESTRUCTURA DEL PROYECTO",null,null,null,null,null,null,null,"Tener en cuenta "]
[null,"a.","Metodología propuesta para alcanzar cada uno de los objetivos específicos propuestos",null,null,null,null,null,null,null,"No debe tener mas de 999 caracteres por celda o de largo"]
[null,null,null,null,null,null,null,null,null,null,"Validación en número de caracteres"]
[null,1,null,null,null,null,null,null,null,null,{"$f":"LEN(C10)","v":0}]
[null,{"$f":"B10+1","v":2},null,null,null,null,null,null,null,null,0]
[null,3,null,null,null,null,null,null,null,null,0]
[null,4,null,null,null,null,null,null,null,null,0]
[null,5,null,null,null,null,null,null,null,null,0]
[null,6,null,null,null,null,null,null,null,null,0]
[null,7,null,null,null,null,null,null,null,null,0]
[null,8,null,null,null,null,null,null,null,null,0]
[null,9,null,null,null,null,null,null,null,null,0]
[null,10,null,null,null,null,null,null,null,null,0]
[null,11,null,null,null,null,null,null,null,null,0]
[null,12,null,null,null,null,null,null,null,null,0]
[null,13]

{"sheet":"Estado_del_Arte","index":6,"n_rows":25,"n_cols":11,"rows_kept":25,"cut":false,"hidden":false,"merged":[[13,1,13,7],[14,1,14,7],[22,1,22,7],[23,1,23,7],[24,1,24,7],[15,1,15,7],[16,1,16,7],[17,1,17,7],[18,1,18,7],[19,1,19,7],[20,1,20,7],[21,1,21,7],[3,1,4,7],[9,1,9,7],[10,1,10,7],[11,1,11,7],[12,1,12,7]]}
[]
[]
[]
[null,{"$f":"Datos_Generales!B3","v":"PRESENTACIÓN DE PROYECTOS \nDE INICIACIÓN CIENTIFÍCA 2023 - 2"}]
[null,null,null,null,null,null,null,null,null,null,{"$f":"SUM(K10:K313)","v":0}]
[]
[null,"10.","ESTRUCTURA DEL PROYECTO",null,null,null,null,null,null,null,"Tener en cuenta "]
[null,"b.","Estado del arte de la investigación, innovacion o emprendimiento",null,null,null,null,null,null,null,"No debe tener mas de 999 caracteres por celda o de largo"]
[null,null,null,null,null,null,null,null,null,null,"Validación en número de caracteres"]
[null,null,null,null,null,null,null,null,null,null,{"$f":"LEN(B10)","v":0}]
[null,null,null,null,null,null,null,null,null,null,0]
[null,null,null,null,null,null,null,null,null,null,0]
[null,null,null,null,null,null,null,null,null,null,0]
[null,null,null,null,null,null,null,null,null,null,0]
[null,null,null,null,null,null,null,null,null,null,0]
[null,null,null,null,null,null,null,null,null,null,0]
[null,null,null,null,null,null,null,null,null,null,0]
[null,null,null,null,null,null,null,null,null,null,0]
[null,null,null,null,null,null,null,null,null,null,0]
[null,null,null,null,null,null,null,null,null,null,0]
[null,null,null,null,null,null,null,null,null,null,0]
[null,null,null,null,null,null,null,null,null,null,0]
[null,null,null,null,null,null,null,null,null,null,0]
[null,null,null,null,null,null,null,null,null,null,0]
[null,null,null,null,null,null,null,null,null,null,0]

{"sheet":"Marco_Teorico","index":7,"n_rows":25,"n_cols":11,"rows_kept":25,"cut":false,"hidden":true,"merged":[[13,1,13,7],[14,1,14,7],[22,1,22,7],[23,1,23,7],[24,1,24,7],[15,1,15,7],[16,1,16,7],[17,1,17,7],[18,1,18,7],[19,1,19,7],[20,1,20,7],[21,1,21,7],[3,1,4,5],[9,1,9,7],[10,1,10,7],[11,1,11,7],[12,1,12,7]]}
[]
[]
[]
[null,{"$f":"Datos_Generales!B3","v":"PRESENTACIÓN DE PROYECTOS \nDE INICIACIÓN CIENTIFÍCA 2023 - 2"},null,null,null,null,"Fecha de Emisión: 2014/07/31","IN-IV-F-14"]
[null,null,null,null,null,null,"Revision N°:\n1","Marco Teorico",null,null,{"$f":"SUM(K10:K313)","v":0}]
[]
[null,"9.","ESTRUCTURA DEL PROYECTO",null,null,null,null,null,null,null,"Tener en cuenta "]
[null,"c.","Marco Teorico",null,null,null,null,null,null,null,"No debe tener mas de 999 caracteres por celda o de largo"]
[null,null,null,null,null,null,null,null,null,null,"Validación en número de caracteres"]
[null,null,null,null,null,null,null,null,null,null,{"$f":"LEN(B10)","v":0}]
[null,null,null,null,null,null,null,null,null,null,0]
[null,null,null,null,null,null,null,null,null,null,0]
[null,null,null,null,null,null,null,null,null,null,0]
[null,null,null,null,null,null,null,null,null,null,0]
[null,null,null,null,null,null,null,null,null,null,0]
[null,null,null,null,null,null,null,null,null,null,0]
[null,null,null,null,null,null,null,null,null,null,0]
[null,null,null,null,null,null,null,null,null,null,0]
[null,null,null,null,null,null,null,null,null,null,0]
[null,null,null,null,null,null,null,null,null,null,0]
[null,null,null,null,null,null,null,null,null,null,0]
[null,null,null,null,null,null,null,null,null,null,0]
[null,null,null,null,null,null,null,null,null,null,0]
[null,null,null,null,null,null,null,null,null,null,0]
[null,null,null,null,null,null,null,null,null,null,0]

{"sheet":"Cronograma","index":8,"n_rows":24,"n_cols":12,"rows_kept":24,"cut":false,"hidden":false,"merged":[[14,2,14,5],[15,2,15,5],[23,2,23,5],[24,2,24,7],[16,2,16,5],[17,2,17,5],[18,2,18,5],[19,2,19,5],[20,2,20,5],[21,2,21,5],[22,2,22,5],[3,1,4,7],[10,2,10,5],[11,2,11,5],[12,2,12,5],[13,2,13,5]]}
[]
[]
[]
[null,{"$f":"Datos_Generales!B3","v":"PRESENTACIÓN DE PROYECTOS \nDE INICIACIÓN CIENTIFÍCA 2023 - 2"},null,null,null,null,null,null,null,null,"Se pasan de Vigencia :",{"$f":"COUNTIF(L12:L24,\">\"&meses)","v":0}]
[]
[]
[null,"T","Tiempo total maximo de ejecucion por convocatoria (Meses): ",null,null,null,{"$f":"IFERROR(VLOOKUP(Elec_Conv,Conv_Opc,3,0),\"\")","v":5},null,null,null,"Tener en cuenta "]
[null,null,null,null,null,null,null,null,null,null,"No debe tener mas de 999 caracteres por celda o de largo"]
[null,"11.","Cronograma de Actividades ",null,null,null,null,null,null,null,"Validación en número de caracteres"]
[null,null,null,null,null,null,null,null,null,null,{"$f":"COUNTIF(K12:K26,\">\"&0)","v":0},{"$f":"COUNTIF(L12:L24,\">\"&meses)","v":0}]
[null,"No","Descripción de la(s) actividad(es) asociada(s) a cada objetivo específico",null,null,null,"Mes de Inicio","Meses de Duracion",null,null,"Validación en número de caracteres","Validación en Número de meses"]
[null,1,null,null,null,null,null,null,null,null,{"$f":"LEN(C12)","v":0},{"$f":"G12+H12","v":0}]
[null,{"$f":"B12+1","v":2},null,null,null,null,null,null,null,null,0,0]
[null,3,null,null,null,null,null,null,null,null,0,0]
[null,4,null,null,null,null,null,null,null,null,0,0]
[null,5,null,null,null,null,null,null,null,null,0,0]
[null,6,null,null,null,null,null,null,null,null,0,0]
[null,7,null,null,null,null,null,null,null,null,0,0]
[null,8,null,null,null,null,null,null,null,null,0,0]
[null,9,null,null,null,null,null,null,null,null,0,0]
[null,10,null,null,null,null,null,null,null,null,0,0]
[null,11,null,null,null,null,null,null,null,null,0,0]
[null,12,null,null,null,null,null,null,null,null,0,0]
[null,"T",{"$f":"IF(L4>0,\"Nota : Tiene \"&L4&\" que sobrepasan la duración del proyecto\",\"\")","v":""},null,null,null,null,null,null,null,0,0]

{"sheet":"PD","index":9,"n_rows":49,"n_cols":26,"rows_kept":49,"cut":false,"hidden":true,"merged":[[27,8,27,9],[28,8,28,9],[29,8,29,9],[30,8,30,9],[17,8,17,9],[18,8,18,9],[19,8,19,9],[20,8,20,9],[21,8,21,9],[22,8,22,9],[23,8,23,9],[27,2,27,3],[28,2,28,3],[29,2,29,3],[16,2,16,3],[17,2,17,3],[18,2,18,3],[19,2,19,3],[20,2,20,3],[21,2,21,3],[22,2,22,3],[16,8,16,9],[23,2,23,3],[24,2,24,3],[25,2,25,3],[26,2,26,3],[24,8,24,9],[25,8,25,9],[26,8,26,9],[13,2,13,3],[13,8,13,9],[14,2,14,3],[14,8,14,9],[15,2,15,3],[15,8,15,9],[7,15,7,20],[8,8,8,9],[11,8,11,9],[12,8,12,9],[8,2,8,3],[9,2,9,3],[9,8,9,9],[10,2,10,3],[10,8,10,9],[11,2,11,3],[12,2,12,3],[3,1,4,5],[3,6,3,7],[3,8,3,9],[4,6,4,7],[4,8,4,9]]}
[]
[]
[]
[null,{"$f":"Datos_Generales!B3","v":"PRESENTACIÓN DE PROYECTOS \nDE INICIACIÓN CIENTIFÍCA 2023 - 2"},null,null,null,null,"Fecha de Emisión: 2014/07/31",null,"IN-IV-F-14"]
[null,null,null,null,null,null,"Revision N°:\n1",null,"Productividad",null,null,null,null,null,null,"INV","IMP","PIC","INO","PRO","EMP"]
[null,null,null,null,null,null,null,null,null,null,null,null,null,null,null,3,{"$f":"P6+1","v":4},5,6,7,8]
[null,"11.","Información de productividad comprometida del proyecto.",null,null,null,null,{"$f":"HLOOKUP(J7,P5:U7,2,0)","v":5},{"$f":"H31","v":0},{"$f":"IFERROR(Integrantes!I7,\"NA\")","v":"PIC"},null,{"$f":"SUM(K10:K30)","v":0}]
[null,null,null,null,null,null,null,{"$f":"Integrantes!S10","v":0},null,null,null,null,null,null,null,"Puntajes Asociados "]
[null,"No","Resultado/Producto esperado",null,"Descripción o detalles del producto esperado","Indicador","Cantidad","Total Puntos","Beneficiario de la optención del Prod.",null,null,null,null,"Abreviatura","IdClase","INV","IMP","PIC","INO","PRO","EMP","Clase ","Tipo de Productos","Indicadores","o"]
[null,1,null,null,null,{"$f":"IFERROR(VLOOKUP($C10,Tabla_prod,11,0),\" \")","v":" "},1,{"$f":"IFERROR(VLOOKUP($C10,Tabla_prod,$H$7,0)*G10,0)","v":0},null,null,{"$f":"IF(C10<>0,IF(AND(E10<>0,I10<>0),0,1),0)","v":0},{"$f":"IFERROR(VLOOKUP($C10,$N$9:$O$201,2,0),0)","v":0},null,"Articulo Q1","GNC",60,60,0,0,0,0,"Productos de Generación de Nuevo Conocimiento (GNC) ","En Cuartil 1 (Q1) de Scimago ","Sometido","o"]
[null,2,null,null,null," ",1,0,null,null,0,0,null,"Articulo Q2","GNC",50,50,0,0,0,0,"Productos de Generación de Nuevo Conocimiento (GNC) ","En Cuartil 2 (Q2) de Scimago ","Sometido","o"]
[null,3,null,null,null," ",1,0,null,null,0,0,null,"Articulo Q3","GNC",40,40,0,0,0,0,"Productos de Generación de Nuevo Conocimiento (GNC) ","En Cuartil 3 (Q3) de Scimago ","Sometido","o"]
[null,4,null,null,null," ",1,0,null,null,0,0,null,"Articulo Q4","GNC",30,30,0,0,0,0,"Productos de Generación de Nuevo Conocimiento (GNC) ","En Cuartil 4 (Q4) de Scimago ","Sometido","o"]
[null,5,null,null,null," ",1,0,null,null,0,0,null,"Articulo A1","GNC",20,20,20,0,0,0,"Productos de Generación de Nuevo Conocimiento (GNC) ","En A1  de  Publindex","Sometido","o"]
[null,6,null,null,null," ",1,0,null,null,0,0,null,"Articulo A2","GNC",16,16,16,0,0,0,"Productos de Generación de Nuevo Conocimiento (GNC) ","En A2  de  Publindex","Sometido","o"]
[null,7,null,null,null," ",1,0,null,null,0,0,null,"Articulo B","GNC",14,14,14,0,0,0,"Productos de Generación de Nuevo Conocimiento (GNC) ","En B  de  Publindex","Sometido","o"]
[null,8,null,null,null," ",1,0,null,null,0,0,null,"Articulo C","GNC",12,12,12,0,0,0,"Productos de Generación de Nuevo Conocimiento (GNC) ","En C  de  Publindex","Sometido","o"]
[null,9,null,null,null," ",1,0,null,null,0,0,null,"Articulo no indexado","GNC",0,0,1,null,null,null,"Productos de Generación de Nuevo Conocimiento (GNC) ","Artículo sin indexar","Sometido","o"]
[null,10,null,null,null," ",0,0,null,null,0,0,null,"Libro Completo","GNC",40,40,0,0,0,0,"Productos de Generación de Nuevo Conocimiento (GNC) ","Libro de Investigación ","Sometido","o"]
[null,11,null,null,null," ",0,0,null,null,0,0,null,"Cap. de Libro","GNC",15,15,0,0,0,0,"Productos de Generación de Nuevo Conocimiento (GNC) ","Capítulo de Libro de Investigación","Sometido","o"]
[null,12,null,null,null," ",0,0,null,null,0,0,null,"Patentes Invencion","GNC",60,60,0,0,0,0,"Productos de Generación de Nuevo Conocimiento (GNC) ","Productos o procesos tecnológicos patentados o registrados ","Resolución expedida SIC/ Patente","o"]
[null,13,null,null,null," ",0,0,null,null,0,0,null,"Patentes Utilidad","GNC",30,30,0,0,0,0,"Productos de Generación de Nuevo Conocimiento (GNC) ","Productos o procesos tecnológicos patentados o registrados de modelo de utilidad","Resolución expedida SIC/ Patente","o"]
[null,14,null,null,null," ",0,0,null,null,0,0,null,"Software","GNC",20,20,0,0,0,0,"Productos de Generación de Nuevo Conocimiento (GNC) ","Software registrado","Registro ante dirección nacional de derechos de autor","o"]
[null,15,null,null,null," ",0,0,null,null,0,0,null,"Prototipo","GNC",15,15,0,0,0,0,"Productos de Generación de Nuevo Conocimiento (GNC) ","Productos o procesos tecnológicos usualmente no patentables (Prototipo) ","Modelo funcionalidad","o"]
[null,16,null,null,null," ",0,0,null,null,0,0,null,"Empresa","GNC",30,30,0,0,0,0,"Productos de Generación de Nuevo Conocimiento (GNC) ","Empresa SpinOff en proceso de incubación","Registro creación empresa","o"]
[null,17,null,null,null," ",0,0,null,null,0,0,null,"OVA","GNC",8,8,0,0,0,0,"Productos de Generación de Nuevo Conocimiento (GNC) ","Objeto Virtual de Aprendizaje","Copia Archivo de Seguridad","o"]
[null,18,null,null,null," ",0,0,null,null,0,0,null,"AVA","GNC",15,15,0,0,0,0,"Productos de Generación de Nuevo Conocimiento (GNC) ","Aula Virtual de Aprendizaje","Copia Archivo de Seguridad","o"]
[null,19,null,null,null," ",0,0,null,null,0,0,null,"Dir. Doctorado","FRH",30,30,0,0,0,0,"Formación de Recurso Humano (FRH) ","Dirección de Tesis de Doctorado en la UMNG con temática asociadas a línea de investigación a la que pertenece el proyecto","Acta del comité de de investigacion donde se designa al director y anteproyecto de tesis doctoral o Certificado de la unidad Academica.","o"]
[null,20,null,null,null," ",0,0,null,null,0,0,null,"Dir. Maestria","FRH",15,15,0,0,0,0,"Formación de Recurso Humano (FRH) ","Dirección de Trabajos de Maestría en la UMNG con  temática asociadas a línea de investigación a la que pertenece el proyecto ","Acta del comité de de investigacion donde se designa al tutor y anteproyecto o Certificado de la unidad Academica.","o"]
[null,null,null,null,null," ",0,0,null,null,0,0,null,"Dir. Trab. Grado","FRH",10,10,0,0,0,0,"Formación de Recurso Humano (FRH) ","Dirección de Trabajos de Grado en la UMNG con temática asociadas a línea de investigación a la que pertenece el proyecto ","Copia del acta sustentación de la del proyecto de grado","o"]
[null,"P","Presupuesto asignado por produtividad comprometida",null,null,null,{"$f":"SUM(G10:G30)","v":9},{"$f":"SUM(H10:H30)+H8","v":0},{"$f":"Presupuesto!#REF!","v":{"$error":"#REF!"}},null,null,null,null,"Dir. PIC","FRH",5,0,0,0,0,0,"Formación de Recurso Humano (FRH) ","Dirección de Proyectos de Iniciación Científica en la UMNG con temática asociadas a línea de investigación a la que pertenece  el proyecto ","Informe final","o"]
[null,null,null,null,null,null,null,null,null,null,null,null,null,"Jov. Investigador","FRH",10,10,0,0,0,0,"Formación de Recurso Humano (FRH) ","Contratación de Joven Investigador  UMNG","Contrato OPS Fotocopia","o"]
[null,null,null,null,null,null,null,null,null,null,null,null,null,"Asis. Graduado(IMP)","FRH","X",20,0,0,0,0,"Formación de Recurso Humano (FRH) ","Contratación de Asistente Graduado UMNG","Contrato OPS Fotocopia","o"]
[null,null,null,null,null,null,null,null,null,null,null,null,null,"Cond. Doctorado","FRH","X",10,0,0,0,0,"Formación de Recurso Humano (FRH) ","Conducción de asignatura en  Programa Doctoral con  temática asociadas a línea de investigación a la que perteneceel proyecto ","Certificación de la Unidad Académica.","o"]
[null,"N","Sigla","Clase ",null,null,null,"No",null,null,null,null,null,"Cond. Maestria","FRH","X",5,0,0,0,0,"Formación de Recurso Humano (FRH) ","Conducción de asignatura en Maestría de investigación con temática asociadas a línea de investigación a la que pertenece el proyecto ","Acta del comité curricular aprobado los contenidos y se  verifique la articulación con la línea de investigación, copia plan de trabajo o Certificado de la unidad Academica.","o"]
[null,1,"GNC","Productos de Generación de Nuevo Conocimiento (GNC) ",null,null,null,{"$f":"COUNTIF($L$10:$L$30,C36)","v":0},null,null,null,null,null,"Ponencia Inter.","SAC",8,8,8,0,0,0,"Socialización y Apropiacióndel Conocimiento (SAC) ","Ponencia en evento Internacional (**) ","Resumen publicado en  memoria del evento y/o certificado de ponente","o"]
[null,2,"FRH","Formación de Recurso Humano (FRH) ",null,null,null,0,null,null,null,null,null,"Ponencia Nac.","SAC",6,6,6,0,0,0,"Socialización y Apropiacióndel Conocimiento (SAC) ","Ponencia en evento nacional (***)","Resumen publicado en  memoria del evento y/o certificado de ponente","o"]
[null,3,"SAC","Socialización y Apropiacióndel Conocimiento (SAC) ",null,null,null,0,null,null,null,null,null,"Ponencia Insti.","SAC",4,0,4,0,0,0,"Socialización y Apropiacióndel Conocimiento (SAC) ","Ponencia en evento Institucional ","Resumen publicado en  memoria del evento y/o certificado de ponente","o"]
[null,4,"GI","Gestión de Investigación (GI) ",null,null,null,0,null,null,null,null,null,"Org. Evento Inter.","SAC",8,8,0,0,0,0,"Socialización y Apropiacióndel Conocimiento (SAC) ","Organización de Eventos de alcance  Internacional con temáticas asociadas al tema de investigación del grupo ","Certificado de la participación de la organización del evento","o"]
[null,null,null,null,null,null,null,{"$f":"SUM(H36:H39)","v":0},null,null,null,null,null,"Org. Evento Nac.","SAC",4,4,0,0,0,0,"Socialización y Apropiacióndel Conocimiento (SAC) ","Organización de Eventos de alcance nacional con temáticas asociadas al tema de investigación del grupo ","Certificado de la participación de la organización del evento","o"]
[null,null,null,null,null,null,null,null,null,null,null,null,null,"Org. Evento Insti.","SAC",2,0,0,0,0,0,"Socialización y Apropiacióndel Conocimiento (SAC) ","Organización de Eventos de alcance  institucional contemáticas  asociadas al temde investigación del grupo ","Resumen publicado en libro de memoria del evento","o"]
[null,null,null,null,null,null,null,null,null,null,null,null,null,"Premios Inter.","SAC",5,5,0,0,0,0,"Socialización y Apropiacióndel Conocimiento (SAC) ","Recepción de Premios internacionales por resultados derivados del  proyecto ","Certificado","o"]
[null,null,null,null,null,null,null,null,null,null,null,null,null,"Premios Nac.","SAC",2.5,2.5,0,0,0,0,"Socialización y Apropiacióndel Conocimiento (SAC) ","Recepción de Premios Nacionales poresultados derivados delproyecto ","Certificado","o"]
[null,null,null,null,null,null,null,null,null,null,null,null,null,"Mat. Divulgativo","SAC",2.5,0,0,0,0,0,"Socialización y Apropiacióndel Conocimiento (SAC) ","Publicación de material  divulgativo (con ISBN) o  publicaciones en revistas no indexadas ","Sometido","o"]
[null,null,null,null,null,null,null,null,null,null,null,null,null,"Proyecto Coop. Inter.","GI",12,12,0,0,0,0,"Gestión de Investigación (GI) ","Presentación de nuevo proyecto en la misma temática del proyecto financiado con la actual convocatoria, para desarrollar en cofinanciación con entidad académica o científica extranjera. Esta nueva propuesta debe acompañarse mínimo de Carta de Acuerdo de la entidad con la que se desarrollará la cooperación internacional. ","Acuerdo o Contrato","o"]
[null,null,null,null,null,null,null,null,null,null,null,null,null,"Proyecto Coop. Nac.","GI",6,6,0,0,0,0,"Gestión de Investigación (GI) ","Presentación de nuevo proyecto en la misma temática del proyecto financiado con la actual convocatoria, para desarrollar en cofinanciación con entidad académica o científica nacional. Esta nueva propuesta debe acompañarse mínimo de Carta de Acuerdo de la entidad con la que se desarrollará la cooperación nacional. ","Registro resultados Convocatoria","o","Convenio marco o carta institucional de compromiso internacional."]
[null,null,null,null,null,null,null,null,null,null,null,null,null,"Informe final Proy.","GI",0,0,1,0,0,0,"Gestión de Investigación (GI) ","Informe final del proyecto","Documento Dilgenciado con firmas Avaladas","o","Carta u oficio donde se expresen las experiencias adquiridas."]
[null,null,null,null,null,null,null,null,null,null,null,null,null,"Informe estudiante","GI",0,0,1,0,0,0,"Gestión de Investigación (GI) ","Informe de los estudiantes participantes (en donde describan, la experiencia adquirida, y las conclusiones personales del PIC desarrollado).\n","Carta u oficio donde se expresen las experiencias adquiridas.","o"]
[null,null,null,null,null,null,null,null,null,null,null,null,null,"Cartilla","GI",0,0,2,0,0,0,"Productos de Generación de Nuevo Conocimiento (GNC) ","Cartilla o Manual de los resultados obtenidos por los estudiantes vinculados a los PIC","No aplica","o"]

{"sheet":"Integrantes","index":10,"n_rows":32,"n_cols":15,"rows_kept":32,"cut":false,"hidden":false,"merged":[[31,1,31,8],[3,1,4,8],[8,3,8,4],[8,5,8,6],[9,1,11,1],[9,3,9,4],[9,5,9,6],[12,1,14,1],[17,4,17,8],[18,5,18,6],[19,7,19,8],[20,4,20,8],[15,1,17,1],[15,3,15,4],[16,3,16,4],[18,1,20,1],[18,3,18,4],[19,3,19,4],[13,3,13,4],[13,7,13,8],[14,4,14,8],[15,5,15,6],[16,7,16,8],[10,7,10,8],[11,4,11,8],[10,3,10,4],[12,3,12,4],[12,5,12,6]]}
[]
[]
[]
[null,{"$f":"Datos_Generales!B3","v":"PRESENTACIÓN DE PROYECTOS \nDE INICIACIÓN CIENTIFÍCA 2023 - 2"}]
[]
[]
[null,"15.","Imformacion de Integrantes del Proyecto",null,null,null,{"$f":"\"FunProy_\"&I7","v":"FunProy_PIC"},"FunProy_",{"$f":"IFERROR(VLOOKUP(Elec_Conv,Dt!$K$1:$L$7,2,0),\"NA\")","v":"PIC"}]
[null,null,null,null,null,null,null,5]
[null,"No","Identificacion","Nombres",null,"Apellidos",null,"Mes","Horas",null,null,null,"N","Funcion"]
[{"$f":"B9","v":"No"},1,null,null,null,null,null,5,null,null,null,null,1,"Tutor ",{"$f":"COUNTIF($G$11:$G$31,N10)","v":1}]
[1,null,"Nivel Academico->",null,null,null,"Tutor ",null,null,null,null,null,2,"Doc.Acompañante",0]
[null,null,"Nucleo Básico de Conocimiento",null,null,null,null,null,null,null,null,null,3,"Estudiante",0]
[null,2]
[null,null,"Nivel Academico->"]
[null,null,"Nucleo Básico de Conocimiento"]
[null,3,null,null,null,null,null,null,null,{"$f":"K14","v":0},0]
[null,null,"Nivel Academico->",null,null,null,null,null,null,{"$f":"K16","v":0},0]
[null,null,"Nucleo Básico de Conocimiento",null,null,null,null,null,null,{"$f":"K17","v":0},0,null,null,"Funcion","Vinculo"]
[null,4,null,null,null,null,null,null,null,{"$f":"K18","v":0},0,null,null,"Tutor ","Doc. Carrera TC"]
[null,null,"Nivel Academico->",null,null,null,null,null,null,{"$f":"K19","v":0},0,null,null,"Tutor ","Doc. Carrera MT"]
[null,null,"Nucleo Básico de Conocimiento",null,null,null,null,null,null,{"$f":"K20","v":0},0,null,null,"Tutor ","Doc. Ocasional"]
[null,null,null,null,null,null,null,null,null,null,{"$f":"L21","v":0},null,null,"Doc.Acompañante","Doc. Carrera TC"]
[null,null,null,null,null,null,null,null,null,null,0,null,null,"Doc.Acompañante","Doc. Carrera MT"]
[null,null,null,null,null,null,null,null,null,null,0,null,null,"Estudiante","Auxiliar"]
[null,null,null,null,null,null,null,null,null,null,0]
[null,null,null,null,null,null,null,null,null,null,0]
[null,null,null,null,null,null,null,null,null,null,0]
[]
[]
[]
[]
[null,"* Ingresar los integrantes del proyectos en orden descendente, comenzando por: personal de planta, ocasionales y estudiantes."]

{"sheet":"Presupuesto","index":11,"n_rows":100,"n_cols":19,"rows_kept":100,"cut":false,"hidden":false,"merged":[[96,1,96,3],[96,4,96,8],[97,7,98,8],[55,4,55,5],[56,4,56,5],[57,4,57,5],[58,4,58,5],[60,4,60,5],[61,4,61,5],[72,2,72,8],[59,4,59,5],[37,4,37,5],[38,4,38,5],[53,4,53,5],[54,4,54,5],[89,4,93,5],[73,3,73,8],[78,2,78,4],[32,4,32,5],[33,4,33,5],[34,4,34,5],[35,4,35,5],[36,4,36,5],[3,1,4,8],[27,2,27,8],[28,3,28,8],[30,4,30,5],[31,4,31,5]]}
[]
[]
[]
[null,{"$f":"Datos_Generales!B3","v":"PRESENTACIÓN DE PROYECTOS \nDE INICIACIÓN CIENTIFÍCA 2023 - 2"}]
[]
[]
[null,"12.","Anexo Para el calculo de presupuesto contrapartida por parte de personal investigativo.",null,null,null,null,{"$f":"Integrantes!I7","v":"PIC"},{"$f":"INT(PD!H31)","v":0}]
[]
[null,"A.","Personal de Planta integrado al proyecto.",null,null,1.7]
[]
[null,"No","Sueldo Neto","Factor ","Tipo de Vinculo","Numero de meses ","Número Horas / Semanal","Valor Final","Identificación"]
[null,1,null,{"$f":"F9","v":1.7},{"$f":"INDIRECT(\"integrantes!h\"&$J12+1,1)","v":0},{"$f":"INDIRECT(\"integrantes!h\"&$J12,1)","v":5},{"$f":"INDIRECT(\"integrantes!I\"&$J12,1)","v":0},{"$f":"INT((C12*F12)/40)*G12","v":0},{"$f":"VLOOKUP($B12,Integrantes!$B$9:$I$33,2,0)","v":0},10]
[null,{"$f":"B12+1","v":2},null,{"$f":"D12","v":1.7},0,0,0,0,{"$f":"VLOOKUP($B13,Integrantes!$B$9:$I$33,2,0)","v":0},{"$f":"J12+3","v":13}]
[]
[]
[]
[]
[]
[]
[]
[]
[null,null,"Sumatoria del calculo de personal de planta \"Valor va en Centro\": ",null,null,null,null,{"$f":"SUM(H12:H21)","v":0},{"$f":"COUNTIF(I12:I21,\">\"&0)","v":0}]
[]
[null,null,null,null,null,null,null,null,null,null,"|"]
[]
[null,"13.","Información financiera  (Plan de compras) .",null,null,null,"Puntos :",{"$f":"Integrantes!H7","v":"FunProy_"},{"$f":"Integrantes!I7","v":"PIC"}]
[null,null,null,null,null,null,null,null,null,null,null,null,null,"OPS- Asistentes"]
[null,null,{"$f":"\"Proyecto títulado : \"&Datos_Generales!$D$10","v":"Proyecto títulado : "},null,null,null,null,null,null,null,null,null,null,"OPS- UMNG"]
[null,null,"Líder Responsable",{"$f":"Datos_Generales!$D$12","v":0},null,null,null,null,null,null,null,"Máximo Numero  Digitado",null,"OPS- Practica"]
[null,null,"* En proyectos IMP se debe discriminar por año el presupuesto a utilizar sin superar el la mitad del total.",null,null,null,null,null,null,null,null,2000000]
[null,"No","Rubro","Año","Descripción",null,"Vicein $","Facultad $","Externo /Otros $"]
[null,{"$f":"ROW()-31","v":1},"Personal",1,"Horas de dedicación semanales",null,"No Aplica"]
[null,{"$f":"ROW()-31","v":2},null,1,null,null,null,null,null,null,null,"TERMINOS DE REFERENCIA 2014 1"]
[null,3,null,1,null,null,null,null,null,null,null,"Cuadro de consolidación"]
[null,4,null,1,null,null,null,null,null,null,null,"RUBRO","Max","Valor Actual","% Actual",null,"Maximo",null,{"$f":"L40","v":"Materiales"}]
[null,5,null,1,null,null,null,null,null,null,null,"Personal",0,{"$f":"F80","v":0},{"$f":"D80","v":0},null,{"$f":"Dt_Maximo*M36","v":0},null,{"$f":"L44","v":"Papelería"}]
[null,6,null,1,null,null,null,null,null,null,null,"Equipos",0,0,0,null,{"$f":"Dt_Maximo*M37","v":0},null,{"$f":"L42","v":"Servicios Técnicos"}]
[null,7,null,1,null,null,null,null,null,null,null,"Software",0,0,0,null,{"$f":"Dt_Maximo*M38","v":0}]
[null,8,null,1,null,null,null,null,null,null,null,"Licenciamiento",0,{"$f":"F84","v":0},{"$f":"D84","v":0},null,{"$f":"Dt_Maximo*M39","v":0}]
[null,9,null,1,null,null,null,null,null,null,null,"Materiales",1,{"$f":"F84","v":0},{"$f":"D84","v":0},null,{"$f":"Dt_Maximo*M40","v":2000000}]
[null,10,null,1,null,null,null,null,null,null,null,"Salidas de Campo",0,{"$f":"F85","v":0},{"$f":"D85","v":0},null,{"$f":"Dt_Maximo*M41","v":0}]
[null,11,null,1,null,null,null,null,null,null,null,"Servicios Técnicos",0.5,{"$f":"F86","v":0},{"$f":"D86","v":0},null,{"$f":"Dt_Maximo*M42","v":1000000}]
[null,12,null,1,null,null,null,null,null,null,null,"Recursos Biblograficos",0,{"$f":"F87","v":0},{"$f":"D87","v":0},null,{"$f":"Dt_Maximo*M43","v":0}]
[null,13,null,1,null,null,null,null,null,null,null,"Papelería",0.05,{"$f":"F88","v":0},{"$f":"D88","v":0},null,{"$f":"Dt_Maximo*M44","v":100000}]
[null,14,null,1,null,null,null,null,null,null,null,"Movilidad",0,{"$f":"F89","v":0},{"$f":"D89","v":0},null,{"$f":"Dt_Maximo*M45","v":0}]
[null,15,null,1]
[null,16,null,1]
[null,17,null,1]
[null,18,null,1]
[null,19,null,1]
[null,20,null,1]
[null,21,null,1]
[null,22,null,1]
[null,23,null,1]
[null,24,null,1]
[null,25,null,1]
[null,26,null,1]
[null,27,null,1]
[null,28,null,1]
[null,29,null,1]
[null,30,null,1,null,null,null,null,null,null,null,"Total Presupuesto Actual",1,{"$f":"SUM(N36:N44)","v":0}]
[]
[null,null,"Totales Generales",null,null,{"$f":"SUM(G63:I63)","v":0},{"$f":"SUM(G32:G62)","v":0},0,0]
[null,null,null,null,"Total Presupuesto Año 1 :",{"$f":"IFERROR(Dt_Maximo-G64,Dt_Maximo)","v":2000000},{"$f":"SUMIF($D$32:$D$62,1,$G$32:$G$62)","v":0},{"$f":"SUMIF($D$32:$D$62,1,$H$32:$H$62)","v":0},0]
[null,null,{"$f":"IF(L64>0,M64,\"\")","v":""},null,null,null,{"$f":"SUMIF($D$32:$D$62,2,$G$32:$G$62)","v":0},{"$f":"SUMIF($D$32:$D$62,2,$H$32:$H$62)","v":0},0]
[null,null,null,null,null,null,null,null,null,null,null,"Software"]
[null,"Firma Investigador Principal",null,null,null,null,null,null,null,null,null,{"$f":"L39","v":"Licenciamiento"}]
[null,null,null,null,null,null,null,null,null,null,null,"Materiales"]
[null,null,null,null,null,null,null,null,null,null,null,"Servicios Técnicos"]
[null,null,null,null,null,null,null,null,null,null,null,{"$f":"L44","v":"Papelería"}]
[]
[null,"a.) ","Título de proyecto de investigación:"]
[null,null,{"$f":"C28","v":"Proyecto títulado : "}]
[null,null,"Líder Responsable",{"$f":"D29","v":0}]
[]
[null,"14.","Información total financiera por rubro de financiación ."]
[]
[]
[null,"No","RUBRO",null,null,"$ Financiación solicitada a VICEIN","$ Contrapartida Facultad","$ Contrapartida Externa","$ Total Rubro",null,null,null,null,"Validacion",{"$f":"IFERROR(VLOOKUP(1,$M$81:$O$88,3,0),\".\")","v":"."}]
[null,1,"Personal",{"$f":"IFERROR(F80/$E$95,0)","v":0},{"$f":"D80","v":0},0,{"$f":"SUMIF($C$32:$C$63,$C80,$H$32:$H$63)","v":0},0,{"$f":"SUM(F80:H80)","v":0},null,"%Max (Vicein)"]
[null,{"$f":"B80+1","v":2},"Equipos",0,0,{"$f":"SUMIF($C$32:$C$63,$C81,$G$32:$G$63)","v":0},{"$f":"SUMIF($C$32:$C$63,$C81,$H$32:$H$63)","v":0},0,0,null,{"$f":"IFERROR(IF($L$81=\"PIC\",$O81,$N81),0)","v":0}]
[null,3,"Software",0,0,{"$f":"SUMIF($C$32:$C$63,$C82,$G$32:$G$63)","v":0},{"$f":"SUMIF($C$32:$C$63,$C82,$H$32:$H$63)","v":0},0,0,null,{"$f":"IFERROR(IF($L$81=\"PIC\",$O82,#REF!),0)","v":0}]
[null,4,{"$f":"L39","v":"Licenciamiento"},0,0,{"$f":"SUMIF($C$32:$C$63,$C83,$G$32:$G$63)","v":0},{"$f":"SUMIF($C$32:$C$63,$C83,$H$32:$H$63)","v":0},0,0]
[null,{"$f":"B82+1","v":4},"Materiales",0,0,{"$f":"SUMIF($C$32:$C$63,$C84,$G$32:$G$63)","v":0},0,0,0,null,{"$f":"IFERROR(IF($L$81=\"PIC\",$O84,$N84),0)","v":0}]
[null,{"$f":"B84+1","v":5},"Salidas de Campo",0,0,{"$f":"SUMIF($C$32:$C$63,$C85,$G$32:$G$63)","v":0},{"$f":"SUMIF($C$32:$C$63,$C85,$H$32:$H$63)","v":0},0,0,null,{"$f":"IFERROR(IF($L$81=\"PIC\",$O85,$N85),0)","v":0}]
[null,6,"Servicios Técnicos",0,0,{"$f":"SUMIF($C$32:$C$63,$C86,$G$32:$G$63)","v":0},{"$f":"SUMIF($C$32:$C$63,$C86,$H$32:$H$63)","v":0},0,0,null,{"$f":"IFERROR(IF($L$81=\"PIC\",$O86,$N86),0)","v":"Servicios Técnicos"},null,{"$f":"IF(LEN(O86)>5,1,0)","v":0},{"$f":"C86","v":"Servicios Técnicos"},{"$f":"IF(D86>M42,\"Error: Supera el porcentaje para Servicios Técnicos.\",\".\")","v":"."}]
[null,7,"Recursos Biblograficos",0,0,{"$f":"SUMIF($C$32:$C$63,$C87,$G$32:$G$63)","v":0},{"$f":"SUMIF($C$32:$C$63,$C87,$H$32:$H$63)","v":0},0,0,null,{"$f":"IFERROR(IF($L$81=\"PIC\",$O88,$N87),0)","v":0}]
[null,8,"Papelería",0,0,{"$f":"SUMIF($C$32:$C$63,$C88,$G$32:$G$63)","v":0},{"$f":"SUMIF($C$32:$C$63,$C88,$H$32:$H$63)","v":0},0,0,null,{"$f":"IFERROR(IF($L$81=\"PIC\",#REF!,$N88),0)","v":"Papelería"},null,{"$f":"IF(LEN(O88)>3,1,0)","v":0},{"$f":"C88","v":"Papelería"},{"$f":"IF(D88>M44,\"Error : Supera el porcentaje para Materiales.\",\".\")","v":"."}]
[null,9,"Movilidad",0,0,{"$f":"SUMIF($C$32:$C$63,$C89,$G$32:$G$63)","v":0},{"$f":"SUMIF($C$32:$C$63,$C89,$H$32:$H$63)","v":0},0,0,null,{"$f":"IFERROR(IF($L$81=\"PIC\",$N89,$M89),0)","v":0}]
[null,10,"Publicaciones",{"$f":"IFERROR(F90/$F$95,0)","v":0},"Estos Rubros no son Financiables por recursos de la VICEIN por lo que cualquier valor asociado a estos rubros en el presupuesto de la vicerrectoría no serán aprobados y se descartaran.",null,{"$f":"SUMIF($C$32:$C$63,$C90,$H$32:$H$63)","v":0},0,0,null,0]
[null,11,"Viajes",0,null,null,{"$f":"SUMIF($C$32:$C$63,$C91,$H$32:$H$63)","v":0},0,0]
[null,12,"Construcciones",0,null,null,{"$f":"SUMIF($C$32:$C$63,$C92,$H$32:$H$63)","v":0},0,0]
[null,13,"Mantenimiento",0,null,null,{"$f":"SUMIF($C$32:$C$63,$C93,$H$32:$H$63)","v":0},0,0]
[null,14,"Administración",0,null,null,{"$f":"SUMIF($C$32:$C$63,$C94,$H$32:$H$63)","v":0},0,0]
[null,"T","$ Total General",{"$f":"PD!J7","v":"PIC"},{"$f":"Dt_Maximo","v":2000000},{"$f":"SUM(F80:F94)","v":0},0,0,{"$f":"SUM(I80:I94)","v":0}]
[]
[null,"Nombre Institución Externa :",null,null,"No Aplica"]
[]
[]
[null,null,null,null,null,null,null,"Firma Investigador Principal"]

{"sheet":"Grupo","index":12,"n_rows":33,"n_cols":12,"rows_kept":33,"cut":false,"hidden":true,"merged":[[26,3,26,8],[29,3,29,8],[32,3,32,8],[3,2,4,6],[10,3,10,8],[11,4,11,8],[14,3,14,8],[17,3,17,8],[20,3,20,8],[23,3,23,8]]}
[]
[]
[]
[null,null,{"$f":"Datos_Generales!B3","v":"PRESENTACIÓN DE PROYECTOS \nDE INICIACIÓN CIENTIFÍCA 2023 - 2"},null,null,null,null,"Fecha de Emisión: 2014/07/31","IN-IV-F-14"]
[null,null,null,null,null,null,null,"Revision N°:\n1","Grupo de Investigación ",null,null,{"$f":"COUNTIF(L11:L35,0)","v":9}]
[null,null,null,null,null,null,null,null,null,null,null,"Tener en cuenta "]
[null,null,"18.","CONFORMACIÓN Y TRAYECTORIA DEL GRUPO DE INVESTIGACIÓN-",null,null,null,null,null,null,null,"No debe tener mas de 999 caracteres por celda o de largo"]
[null,null,null,"Se puede utilizar la convinación de teclas (Atl + Enter) para adicionar una nueva linea en las celdas o adicionar Filas "]
[]
[null,null,"a.","Nombre del grupo de Investigación:",null,null,null,null,null,null,null,{"$f":"SUM(L11:L35)","v":0}]
[null,null,null,null,null,null,null,null,null,null,null,{"$f":"LEN(D11)","v":0}]
[null,null,null,"Link Grup Lac:",null,null,null,null,null,null,null,{"$f":"LEN(E12)","v":0}]
[null,null,null,null,null,null,null,null,null,null,null,"X"]
[null,null,"b","Nombre del lider del grupo:",null,null,null,null,null,null,null,"X"]
[null,null,null,null,null,null,null,null,null,null,null,{"$f":"LEN(D15)","v":0}]
[null,null,null,null,null,null,null,null,null,null,null,"X"]
[null,null,"c.","Visión ",null,null,null,null,null,null,null,"X"]
[null,null,null,null,null,null,null,null,null,null,null,{"$f":"LEN(D18)","v":0}]
[null,null,null,null,null,null,null,null,null,null,null,"X"]
[null,null,"d. Misión",null,null,null,null,null,null,null,null,"X"]
[null,null,null,null,null,null,null,null,null,null,null,{"$f":"LEN(D21)","v":0}]
[null,null,null,null,null,null,null,null,null,null,null,"X"]
[null,null,"e. Objetivo General",null,null,null,null,null,null,null,null,"X"]
[null,null,null,null,null,null,null,null,null,null,null,{"$f":"LEN(D24)","v":0}]
[null,null,null,null,null,null,null,null,null,null,null,"X"]
[null,null,"f.","Integrantes",null,null,null,null,null,null,null,"X"]
[null,null,null,null,null,null,null,null,null,null,null,{"$f":"LEN(D27)","v":0}]
[null,null,null,null,null,null,null,null,null,null,null,"X"]
[null,null,"g. ","Proyectos:",null,null,null,null,null,null,null,"X"]
[null,null,null,null,null,null,null,null,null,null,null,{"$f":"LEN(D30)","v":0}]
[null,null,null,null,null,null,null,null,null,null,null,"X"]
[null,null,"h. ","Productividad relacionada Grup:",null,null,null,null,null,null,null,"X"]
[null,null,null,null,null,null,null,null,null,null,null,{"$f":"LEN(D33)","v":0}]

{"sheet":"Impactos","index":13,"n_rows":24,"n_cols":12,"rows_kept":24,"cut":false,"hidden":false,"merged":[[21,4,21,8],[22,4,22,8],[8,4,8,8],[3,2,4,8],[18,4,18,8],[19,4,19,8],[20,4,20,8],[16,4,16,8],[17,4,17,8],[12,4,12,8],[13,4,13,8],[14,4,14,8],[15,4,15,8]]}
[]
[]
[]
[null,null,{"$f":"Datos_Generales!B3","v":"PRESENTACIÓN DE PROYECTOS \nDE INICIACIÓN CIENTIFÍCA 2023 - 2"}]
[null,null,null,null,null,null,null,null,null,null,null,{"$f":"SUM(L13:L131)","v":0}]
[null,null,null,null,null,null,null,null,null,null,null,{"$f":"COUNTIF(L14:L24,\"<>\"&0)","v":0}]
[null,null,"16.","ESTRUCTURA DEL PROYECTO",null,null,null,null,null,null,null,"Tener en cuenta "]
[null,null,"a.","Pertinencia a un Objetivo de Desarrollo Sostenible.",null,null,null,null,null,null,null,"No debe tener mas de 999 caracteres por celda o de largo"]
[null,null,null,"ODS: ",null,null,null,null,null,null,null,"Validación en número de caracteres"]
[]
[null,null,"b.","Pertinencia e impacto de la propuesta en el contexto social y académico."]
[]
[null,null,"No. ","Tipo ","Descripción"]
[null,null,1,null,null,null,null,null,null,null,null,{"$f":"LEN(E14)","v":0}]
[null,null,{"$f":"C14+1","v":2},null,null,null,null,null,null,null,null,0]
[null,null,3,null,null,null,null,null,null,null,null,0]
[null,null,4,null,null,null,null,null,null,null,null,0]
[null,null,5,null,null,null,null,null,null,null,null,0]
[null,null,6,null,null,null,null,null,null,null,null,0]
[null,null,7,null,null,null,null,null,null,null,null,0]
[null,null,8,null,null,null,null,null,null,null,null,0]
[null,null,9,null,null,null,null,null,null,null,null,0]
[null,null,10,null,null,null,null,null,null,null,null,0]
[null,null,null,null,null,null,null,null,null,null,null,0]

{"sheet":"Biblografia","index":14,"n_rows":29,"n_cols":12,"rows_kept":29,"cut":false,"hidden":false,"merged":[[15,3,15,8],[16,3,16,8],[17,3,17,8],[18,3,18,8],[3,2,4,8],[14,3,14,8],[9,3,9,8],[10,3,10,8],[11,3,11,8],[12,3,12,8],[13,3,13,8],[19,3,19,8],[20,3,20,8],[21,3,21,8],[22,3,22,8],[23,3,23,8],[24,3,24,8],[25,3,25,8],[26,3,26,8],[27,3,27,8],[28,3,28,8]]}
[]
[]
[]
[null,null,{"$f":"Datos_Generales!B3","v":"PRESENTACIÓN DE PROYECTOS \nDE INICIACIÓN CIENTIFÍCA 2023 - 2"},null,null,null,null,null,null,null,null,{"$f":"COUNTIF(L10:L61,\">\"&0)","v":0}]
[null,null,null,null,null,null,null,null,null,null,null,{"$f":"SUM(L10:L74)","v":0}]
[null,null,null,null,null,null,null,null,null,null,null,"Tener en cuenta "]
[null,null,"16.","ESTRUCTURA DEL PROYECTO",null,null,null,null,null,null,null,"No debe tener mas de 999 caracteres por celda o de largo"]
[null,null,"c.","Bibliografia citada en la  estructura del proyecto",null,null,null,null,null,null,null,"Validación en número de caracteres"]
[]
[null,null,1,null,null,null,null,null,null,null,null,{"$f":"LEN(D10)","v":0}]
[null,null,2,null,null,null,null,null,null,null,null,0]
[null,null,{"$f":"C11+1","v":3},null,null,null,null,null,null,null,null,0]
[null,null,4,null,null,null,null,null,null,null,null,0]
[null,null,5,null,null,null,null,null,null,null,null,0]
[null,null,6,null,null,null,null,null,null,null,null,0]
[null,null,7,null,null,null,null,null,null,null,null,0]
[null,null,8,null,null,null,null,null,null,null,null,0]
[null,null,9,null,null,null,null,null,null,null,null,0]
[null,null,10,null,null,null,null,null,null,null,null,0]
[null,null,11]
[null,null,12]
[null,null,13]
[null,null,14]
[null,null,15]
[null,null,16]
[null,null,17]
[null,null,18]
[null,null,19]
[null,null,20]

{"sheet":"Imagenes","index":15,"n_rows":18,"n_cols":13,"rows_kept":18,"cut":false,"hidden":false,"merged":[[15,2,15,9],[16,2,16,9],[17,2,17,9],[18,2,18,9],[3,1,4,7],[9,2,9,9],[10,2,10,9],[11,2,11,9],[12,2,12,9],[13,2,13,9],[14,2,14,9]]}
[]
[]
[]
[null,{"$f":"Datos_Generales!B3","v":"PRESENTACIÓN DE PROYECTOS \nDE INICIACIÓN CIENTIFÍCA 2023 - 2"},null,null,null,null,null,null,"Fecha de Emisión: 2014/07/31","IN-IV-F-14"]
[null,null,null,null,null,null,null,null,"Revision N°:\n1","Apartes"]
[]
[null,"20.","Imágenes que contiene el proyecto"]
[null,"1.","Hoja destinada para elementos que estructuralmente se ingresan en los apartes de la propuesta de investigación."]
[null,null,null,null,null,null,null,null,null,null,null,null,"No debe tener mas de 1024 caracteres o de largo"]
[null,1,null,null,null,null,null,null,null,null,null,null,{"$f":"LEN(C10)","v":0}]
[null,2,null,null,null,null,null,null,null,null,null,null,0]
[null,3,null,null,null,null,null,null,null,null,null,null,0]
[null,4,null,null,null,null,null,null,null,null,null,null,0]
[null,5,null,null,null,null,null,null,null,null,null,null,0]
[null,6,null,null,null,null,null,null,null,null,null,null,0]
[null,7,null,null,null,null,null,null,null,null,null,null,0]
[null,8,null,null,null,null,null,null,null,null,null,null,0]
[null,9,null,null,null,null,null,null,null,null,null,null,0]

{"sheet":"Normas","index":16,"n_rows":27,"n_cols":12,"rows_kept":27,"cut":false,"hidden":true,"merged":[[23,4,23,8],[24,3,24,8],[13,4,13,8],[14,4,14,8],[15,4,15,8],[16,4,16,8],[17,4,17,8],[18,4,18,8],[19,4,19,8],[11,4,11,8],[12,4,12,8],[20,4,20,8],[21,4,21,8],[22,4,22,8],[2,2,3,6],[7,4,7,8],[8,4,8,8],[9,4,9,8],[10,4,10,8]]}
[]
[]
[null,null,{"$f":"Datos_Generales!B3","v":"PRESENTACIÓN DE PROYECTOS \nDE INICIACIÓN CIENTIFÍCA 2023 - 2"},null,null,null,null,"Fecha de Emisión: 2014/07/31","IN-IV-F-14"]
[null,null,null,null,null,null,null,"Revision N°:\n1","Normas"]
[]
[null,null,"1.","Normas para el diligenciamiento de formulación de proyecto",null,null,null,null,"(No Imprimir esta hoja) ",null,null,"Tener en cuenta "]
[null,null,null,null,null,null,null,null,null,null,null,"No debe tener mas de 1024 caracteres o de largo"]
[null,null,"No","Tema","Descripción"]
[null,null,1,"Fuentes de Finaciacion","Se entiende como Contrapartida todos los aportes que dedica la Unidad Académica (Facultades a través de los Centros de Investigaciones, Departamentos, Institutos) u otras entidades para apoyar el desarrollo del  proyecto. El objetivo de esta exigencia de contrapartida es comprometer a la Unidad Académica con el buen desarrollo de la investigación,  asegurando la continuidad y estabilidad del grupo investigador.",null,null,null,null,null,null,{"$f":"LEN(E9)","v":414}]
[null,null,2,"Rubros financiables con recursos  VICEIN UMNG","Con cargo a recursos de VICEIN UMNG (en modalidad de recuperación contingente) se podrán financiar solamente los siguientes rubros: Personal, Equipos, Software, Materiales, Salidas de Campo, Servicios Técnicos, Movilidades, Material Biblografico y Papeleria",null,null,null,null,null,null,257]
[null,null,3,"Personal","Se refiere a profesionales investigadores y/o profesionales expertos nacionales e internacionales definidos como participantes en el proyecto y operarios o técnicos requeridos en el mismo. Para el cálculo de los recursos a solicitar en este rubro se debe tomar como base la escala salarial de la institución y el tiempo real dedicado por la persona al proyecto, el cual no podrá ser inferior a cinco horas semanales, tanto para personal financiado por VICEIN UMNG como por la contrapartida (Unidad Académica). ",null,null,null,null,null,null,510]
[null,null,4,"Personal","Para el cálculo de los honorarios debe tomarse en cuenta el salario mensual del docente multiplicado por un factor de 1.6 multiplicado por el número de horas de dedicación al proyecto multiplicado por el número de meses que se vinculará con el proyecto: salario x 1.61 x porcentaje de dedicación al proyecto x No. Meses de vinculación al proyecto.  Debe tenerse en cuenta, sin embargo, que independientemente de las escalas salariales de las instituciones, existen límites máximos para los pagos del personal que financia VICEIN UMNG",null,null,null,null,null,null,533]
[null,null,5,"Personal","(recuperación contingente) . De existir alguna diferencia ésta deberá  asumirla la contrapartida. Es importante especificar si el docente o investigador que se propone ya se encuentra vinculado con la UMNG. En caso de estar vinculado debe especificarse en que modalidad (Planta MT, TC, DE, o en HC). Al especificar la función del investigador dentro del proyecto se deben utilizar únicamente los siguientes términos: Investigador Principal, Coinvestigador, Auxiliar, Estudiante de maestría o doctorado. No se financiarán honorarios o bonificaciones especiales a personal de nómina de las Unidades Académicas de la UMNG. ",null,null,null,null,null,null,{"$f":"LEN(D13)","v":8}]
[null,null,6,"Equipos","La financiación para compra de equipos nuevos deberá estar sustentada en la estricta necesidad de los mismos para el desarrollo de la investigación. Es importante que los investigadores verifiquen si el equipo que necesitan ya existe en otra dependencia de su universidad o centro, o en otra institución, de la cual pudiese solicitarse en préstamo, arrendamiento o la prestación de servicios técnicos.",null,null,null,null,null,null,7]
[null,null,7,"Equipos","Deberá separarse la compra de equipo nuevo o arrendado, del uso de equipo propio. Este último se refiere al que ya existe en la institución y que por utilizarse en la investigación se acepta también como contrapartida institucional por un valor máximo del 10% de su precio comercial al estar nuevo. Las cotizaciones de los equipos deberán estar disponibles para consulta de VICEIN UMNG en el caso en que esta entidad considere necesario verificar los costos de los equipos solicitados. ",null,null,null,null,null,null,7]
[null,null,8,"Viajes","No financiable. Se refiere a  viajes relacionados  con actividades del proyecto diferentes de salidas  de campo. VICEIN UMNG financia viajes para presentación de resultados del proyecto, pasantías o formación de redes por centros de costo diferente a presupuestos de proyectos de investigación.",null,null,null,null,null,null,6]
[null,null,9,"Salidas de campo","Se aplica a gastos de medios de transporte para el traslado a zonas de muestreo y ejecución de las labores de campo propias de la investigación. Se refiere principalmente a costos de combustible, aceite o alquiler de medios de transporte cuando se requiere. Deberán desglosarse y justificarse Aquí se incluyen los costos de desplazamiento y apoyos de estadía ",null,null,null,null,null,null,16]
[null,null,10,"Materiales, insumos y servicios técnicos","Corresponden a aquellos necesarios para el desarrollo de la investigación o de la tecnología y deben presentarse a manera de listado detallado agrupado por categorías sobre las cuales se debe hacer una justificación de su necesidad y uso dentro del proyecto. El tipo de servicios técnicos (exámenes, pruebas, análisis o servicios especializados) para los cuales se solicitan recursos VICEIN UMNG debe desglosarse ",null,null,null,null,null,null,40]
[null,null,11,"Publicaciones y patentes","No financiable. Este rubro se financia a través de un centro de costo diferente a los proyectos de investigación. Se refiere a los costos de edición y publicación de artículos científicos en revistas indexadas o divulgativas reconocidas, libros, manuales, videos, cartillas, etc. que presenten los resultados del proyecto y sirvan como estrategia de comunicación de éstos. También se financiarán los costos para la solicitud de patentes de innovaciones tecnológicas derivadas del proyecto",null,null,null,null,null,null,24]
[null,null,12,"Publicaciones y patentes","Todas las publicaciones y ponencias que se realicen, deben tener un enunciado que certifique la financiación por parte de la Vicerrectoría de Investigaciones de la UMNG",null,null,null,null,null,null,24]
[null,null,13,"Presupuesto ","Los rubros : Publicaciones, Viajes , Construcciones, Mantenimiento y adminsitración no son financiables por recursos frescos de la Vicerrectoría de investigaciones.",null,null,null,null,null,null,12]
[null,null,null,null,null,null,null,null,null,null,null,0]
[null,null,null,null,null,null,null,null,null,null,null,0]
[null,null,null,null,null,null,null,null,null,null,null,0]
[null,null,null,null,null,null,null,null,null,null,null,0]
[null,null,null,null,null,null,null,null,null,null,null,0]
[null,null,null,null,null,null,null,null,null,null,null,0]